Workbook

Sheet Instructions
B2: IPCC Harvested Wood Products (HWP) Upload
B4: This file serves the IPCC Inventory Software to allow users to easily upload HWP data Thanks to FAOSTAT (Amanda Gordon and Francesco Tubiello), this Spreadsheet automatically provides FAOSTAT data on HWP for the country selected by the user.
B6: User can overwrite FAOSTAT data with country specific data to upload those to the IPCC Inventory Software
B8: Instructions for use
B9: Notes
B10: 1 | C10: Sheets with red tabs are for calculation and shall not be edited by the user
B11: 2 | C11: Sheets with yellow tabs require data are entered by the user
B12: 3 | C12: This file can upload data from the FAOSTAT database. To allow such functionality an internet connection is required
B13: 4 | C13: HWP data for a single country (as selected) can be uploaded in the sheet "Data"
B14: 5 | C14: HWP data for the entire World are contained in the sheet "World" and can be uptated clicking cell B1 (Update)
B15: 6 | C15: HWP data contained in the sheet "World" are not uploaded into the IPCC Inventory Software. Those data are provided to the user for ease of comparison, where desired
B16: 7 | C16: Depending on the internet conncetion and resources available, the time needed to data upload from FAOSTAT may be longer than expected. In such case it is recommended to minimize other computer processes.
B18: Deatiled instructions for use
B19: 1 | C19: Select the country name in cell A1 in the sheet "Data1". The spreadsheet will automatically upload data from the FAOSTAT database. The user can in alternative input data directly in the sheet overwiritng the data provided through FAOSTAT; the structure and the categories of the sheet shall remain unchanged.
B21: 2 | C21: Upload the country HWP data contained in this file to the IPCC Inventory Software, category 3.D.1, by clicking "Import HWP excel", selecting it, and clicking on "Import"
B22: Additional Notes
B23: 1 | C23: "Roundwood" category is the sum of "Industrial Roundowwd" and "Fuelwood/Wood Fuel"; thus, data need not to be input for such category
B24: 2 | C24: "Wood Pulp + Recycled Paper" category is the sum of "Wood Pulp" and "Recycled Paper"; thus, data need not to be input for such category
B25: 3 | C25: Note that "Other Industrial Roundwood" category is not a category for which IPCC default values are provided for Half-life and for Conversion factor. Thus the software applies for those variables the values provided for Sawn Wood. Where the user choses not to include such additional category in the estimate of the "HWP Contribution", data for "Other Industrial Roundwood" shall not be input in the sheet "Data". In such a case, if data are uploaded from FAOSTAT the user shall cancel data uploaded for "Other Industrial Roundwood" before uploading this file
B26: 4 | C26: FAOSTAT data on "Industrial Roundwood" are underbark. Thus where those are used in the IPCC Inventory Sofwtare the Bark expansion factor shall be added by checking the deidcated box in the "Parameters" Tab of the IPCC Inventory Software
B28: Correspondance between Data from FAO database and columns in Sheets "World" and "Data"
B29: HWP category (item) | F29: (faostat item number) | G29: element | H29: (faostat element number) | I29: column in the sheets
B30: Fuelwood / Wood Fuel | F30: 1864 | G30: Production | H30: 5516 | I30: C
G31: Imports | H31: 5616 | I31: D
G32: Exports | H32: 5916 | I32: E
B33: Sawn Wood / Sawnwood | F33: 1872 | G33: Production | H33: 5516 | I33: H
G34: Imports | H34: 5616 | I34: I
G35: Exports | H35: 5916 | I35: J
B36: Wood-Based Panels | F36: 1873 | G36: Production | H36: 5516 | I36: K
G37: Imports | H37: 5616 | I37: L
G38: Exports | H38: 5916 | I38: M
B39: Paper & Paperboard / Paper+Paperboard | F39: 1876 | G39: Production | H39: 5510 | I39: P
G40: Imports | H40: 5610 | I40: Q
G41: Exports | H41: 5910 | I41: R
B42: Wood Pulp | F42: 1875 | G42: Imports | H42: 5610 | I42: U
G43: Exports | H43: 5910 | I43: V
B44: Recycled Paper | F44: 1669 | G44: Imports | H44: 5610 | I44: W
G45: Exports | H45: 5910 | I45: X
B46: Wood Pulp + Recycled Paper (aggregated item) | F46: 1875+1669 | G46: Imports | H46: 5610 | I46: Y
G47: Exports | H47: 5910 | I47: Z
B48: Industrial Roundwood | F48: 1865 | G48: Production | H48: 5516 | I48: AB
G49: Imports | H49: 5616 | I49: AC
G50: Exports | H50: 5916 | I50: AD
B51: Other Industrial Roundwood | F51: 1871 | G51: Production | H51: 5516 | I51: AE
G52: Imports | H52: 5616 | I52: AF
G53: Exports | H53: 5916 | I53: AG
B54: Chips and particles | F54: 1619 | G54: Imports | H54: 5616 | I54: AI
G55: Exports | H55: 5916 | I55: AJ
B56: Wood charcoal | F56: 1630 | G56: Imports | H56: 5610 | I56: AK
G57: Exports | H57: 5910 | I57: AL
B58: Wood residues | F58: 1620 | G58: Imports | H58: 5616 | I58: AM
G59: Exports | H59: 5916 | I59: AN
B60: Roundwood=Fuelwood+Industrial Roundwood (aggregated items) | F60: 1864 | G60: Production | H60: 5516 | I60: AR
G61: Imports | H61: 5616 | I61: AS
G62: Exports | H62: 5916 | I62: AT

Sheet World
A1: World | C1: Fuelwood Wood Fuel | H1: Sawn Wood Sawnwood | K1: Wood-Based Panels | P1: Paper & Paperboard Paper+Paperboard | U1: Wood Pulp | W1: Recycled Paper | Y1: Wood Pulp + Recycled Paper aggregated items | AB1: Industrial Roundwood | AE1: Other Industrial Roundwood | AI1: Chips and particles | AK1: Wood charcoal | AM1: Wood residues | AR1: Roundwood (Fuelwood+Industrial Roundwood) aggregated items
A2: FAOSTAT
A3: updated | B3: 2024-02-10T12:01:23 | C3: 1864 | D3: 1864 | E3: 1864 | H3: 1872 | I3: 1872 | J3: 1872 | K3: 1873 | L3: 1873 | M3: 1873 | P3: 1876 | Q3: 1876 | R3: 1876 | U3: 1875 | V3: 1875 | W3: 1669 | X3: 1669 | AB3: 1865 | AC3: 1865 | AD3: 1865 | AE3: 1871 | AF3: 1871 | AG3: 1871 | AI3: 1619 | AJ3: 1619 | AK3: 1630 | AL3: 1630 | AM3: 1620 | AN3: 1620 | AR3: 1861 | AS3: 1861 | AT3: 1861
C4: 5516 | D4: 5616 | E4: 5916 | H4: 5516 | I4: 5616 | J4: 5916 | K4: 5516 | L4: 5616 | M4: 5916 | P4: 5510 | Q4: 5610 | R4: 5910 | U4: 5610 | V4: 5910 | W4: 5610 | X4: 5910 | Y4: 5610 | Z4: 5910 | AB4: 5516 | AC4: 5616 | AD4: 5916 | AE4: 5516 | AF4: 5616 | AG4: 5916 | AI4: 5616 | AJ4: 5916 | AK4: 5610 | AL4: 5910 | AM4: 5616 | AN4: 5916 | AR4: 5516 | AS4: 5616 | AT4: 5916
B5: Year | C5: Production m3 | D5: Imports m3 | E5: Exports m3 | H5: Production m3 | I5: Imports m3 | J5: Exports m3 | K5: Production m3 | L5: Imports m3 | M5: Exports m3 | P5: Production metric-t | Q5: Imports metric-t | R5: Exports metric-t | U5: Imports metric-t | V5: Exports metric-t | W5: Imports metric-t | X5: Exports metric-t | Y5: Imports metric-t | Z5: Exports metric-t | AB5: Production m3 | AC5: Imports m3 | AD5: Exports m3 | AE5: Production m3 | AF5: Imports m3 | AG5: Exports m3 | AI5: Imports m3 | AJ5: Exports m3 | AK5: Imports metric-t | AL5: Exports metric-t | AM5: Imports m3 | AN5: Exports m3 | AR5: Production m3 | AS5: Imports m3 | AT5: Exports m3 | AU5: Year
B6: 1961 | C6: 1498738466 | D6: 1837900 | E6: 1573000 | H6: 323575399 | I6: 38219438 | J6: 37778684 | K6: 25134700 | L6: 2714803 | M6: 2761100 | P6: 77075896 | Q6: 12792070 | R6: 12697758 | U6: 2520900 | V6: 2772600 | Y6: =IFERROR(U6,0)+IFERROR(W6,0) -> 2520900 | Z6: =IFERROR(V6,0)+IFERROR(X6,0) -> 2772600 | AB6: 1017832423 | AC6: 37998500 | AD6: 38160300 | AE6: 167496000 | AF6: 4318300 | AG6: 5045800 | AK6: 295400 | AL6: 185100 | AM6: 303700 | AN6: 330800 | AR6: =IFERROR(C6,0)+IFERROR(AB6,0) -> 2516570889 | AS6: =IFERROR(D6,0)+IFERROR(AC6,0) -> 39836400 | AT6: 39733300 | AU6: =B6 -> 1961
B7: 1962 | C7: 1491096482 | D7: 1891850 | E7: 1642000 | H7: 326104720 | I7: 39550344 | J7: 39193810 | K7: 28135300 | L7: 3101929 | M7: 3111100 | P7: 80388600 | Q7: 12825783 | R7: 12732850 | U7: 2542000 | V7: 2817500 | Y7: =IFERROR(U7,0)+IFERROR(W7,0) -> 2542000 | Z7: =IFERROR(V7,0)+IFERROR(X7,0) -> 2817500 | AB7: 1036279939 | AC7: 39147600 | AD7: 38114000 | AE7: 165326008 | AF7: 4262300 | AG7: 4915600 | AK7: 286400 | AL7: 199150 | AM7: 309300 | AN7: 454600 | AR7: =IFERROR(C7,0)+IFERROR(AB7,0) -> 2527376421 | AS7: =IFERROR(D7,0)+IFERROR(AC7,0) -> 41039450 | AT7: =IFERROR(E7,0)+IFERROR(AD7,0) -> 39756000 | AU7: =B7 -> 1962
B8: 1963 | C8: 1501308865 | D8: 2338800 | E8: 2004899 | H8: 335095362 | I8: 42021465 | J8: 42008071 | K8: 32545800 | L8: 3469466 | M8: 3514720 | P8: 85274024 | Q8: 13406264 | R8: 13615982 | U8: 3031700 | V8: 2990100 | Y8: =IFERROR(U8,0)+IFERROR(W8,0) -> 3031700 | Z8: =IFERROR(V8,0)+IFERROR(X8,0) -> 2990100 | AB8: 1049915415 | AC8: 41326203 | AD8: 42745300 | AE8: 173467000 | AF8: 3932600 | AG8: 4560900 | AK8: 251858 | AL8: 202800 | AM8: 316200 | AN8: 534500 | AR8: 2551224280 | AS8: 43665003 | AT8: 44750199 | AU8: 1963
B9: 1964 | C9: 1513488178 | D9: 2424767 | E9: 1575500 | H9: 354361463 | I9: 46029502 | J9: 45889304 | K9: 35961200 | L9: 4240470 | M9: 4239923 | P9: 91045000 | Q9: 15136397 | R9: 15354356 | U9: 3335555 | V9: 3295400 | Y9: 3335555 | Z9: 3295400 | AB9: 1110941115 | AC9: 45225801 | AD9: 47179400 | AE9: 175621500 | AF9: 3817200 | AG9: 4233700 | AI9: 1326394 | AJ9: 1219100 | AK9: 247600 | AL9: 160464 | AM9: 1221300 | AN9: 1391200 | AR9: 2624429293 | AS9: 47650568 | AT9: 48754900 | AU9: 1964
B10: 1965 | C10: 1514171639 | D10: 1709800 | E10: 1227867 | H10: 358376265 | I10: 45984719 | J10: 45130845 | K10: 39913800 | L10: 4705695 | M10: 4697719 | P10: 96525604 | Q10: 16098700 | R10: 16441056 | U10: 3332463 | V10: 3230000 | Y10: 3332463 | Z10: 3230000 | AB10: 1131572447 | AC10: 49034200 | AD10: 50547500 | AE10: 212569108 | AF10: 3980800 | AG10: 4010800 | AI10: 1293294 | AJ10: 1160000 | AK10: 263900 | AL10: 190800 | AM10: 1663100 | AN10: 1897500 | AR10: 2645744086 | AS10: 50744000 | AT10: 51775367 | AU10: 1965
B11: 1966 | C11: 1526347281 | D11: 1544300 | E11: 931600 | H11: 359031622 | I11: 44414765 | J11: 44563987 | K11: 48960182 | L11: 5461447 | M11: 5857755 | P11: 103843296 | Q11: 17816070 | R11: 18150300 | U11: 3599400 | V11: 3148000 | Y11: 3599400 | Z11: 3148000 | AB11: 1153134939 | AC11: 54012500 | AD11: 55566700 | AE11: 216099508 | AF11: 3433500 | AG11: 4075300 | AI11: 1777894 | AJ11: 1455300 | AK11: 220100 | AL11: 186900 | AM11: 1971900 | AN11: 2157700 | AR11: 2679482220 | AS11: 55556800 | AT11: 56498300 | AU11: 1966
B12: 1967 | C12: 1528549182 | D12: 1318600 | E12: 1076100 | H12: 363784349 | I12: 45246477 | J12: 44429336 | K12: 51740568 | L12: 6078082 | M12: 6434708 | P12: 105022896 | Q12: 17987520 | R12: 18225443 | U12: 3409500 | V12: 3088400 | Y12: 3409500 | Z12: 3088400 | AB12: 1182079523 | AC12: 59048200 | AD12: 60532900 | AE12: 209297500 | AF12: 3394100 | AG12: 3826000 | AI12: 2870594 | AJ12: 2572700 | AK12: 213900 | AL12: 217500 | AM12: 2248600 | AN12: 2267700 | AR12: 2710628705 | AS12: 60366800 | AT12: 61609000 | AU12: 1967
B13: 1968 | C13: 1530931056 | D13: 1038300 | E13: 1114467 | H13: 374854643 | I13: 50047604 | J13: 49196757 | K13: 58337450 | L13: 7304758 | M13: 7685838 | P13: 113115596 | Q13: 19630110 | R13: 19884500 | U13: 14740240 | V13: 14960000 | Y13: 14740240 | Z13: 14960000 | AB13: 1205667615 | AC13: 67227400 | AD13: 69099200 | AE13: 212188700 | AF13: 3384900 | AG13: 3886700 | AI13: 5428794 | AJ13: 3860300 | AK13: 208600 | AL13: 206900 | AM13: 2319000 | AN13: 2341500 | AR13: 2736598671 | AS13: 68265700 | AT13: 70213667 | AU13: 1968
B14: 1969 | C14: 1528621592 | D14: 1315800 | E14: 1300300 | H14: 384830378 | I14: 50672764 | J14: 49774610 | K14: 62547517 | L14: 8241636 | M14: 8442646 | P14: 122071408 | Q14: 22096800 | R14: 22386411 | U14: 16114300 | V14: 16198000 | Y14: 16114300 | Z14: 16198000 | AB14: 1234489039 | AC14: 72596508 | AD14: 75261800 | AE14: 205245500 | AF14: 3694400 | AG14: 3986900 | AI14: 6011494 | AJ14: 4796400 | AK14: 231333 | AL14: 261000 | AM14: 2081600 | AN14: 1933600 | AR14: 2763110631 | AS14: 73912308 | AT14: 76562100 | AU14: 1969
B15: 1970 | C15: 1542387501 | D15: 1110200 | E15: 1368900 | H15: 389090528 | I15: 52670708 | J15: 51672867 | K15: 66576465 | L15: 9010709 | M15: 9095566 | P15: 125583135 | Q15: 22812520 | R15: 23204710 | U15: 16571100 | V15: 16916900 | W15: 1791164 | X15: 1779000 | Y15: 18362264 | Z15: 18695900 | AB15: 1276437807 | AC15: 83078816 | AD15: 85647200 | AE15: 202433700 | AF15: 4334000 | AG15: 3992200 | AI15: 7373794 | AJ15: 5774400 | AK15: 264058 | AL15: 231700 | AM15: 2468600 | AN15: 2186500 | AR15: 2818825308 | AS15: 84189016 | AT15: 87016100 | AU15: 1970
B16: 1971 | C16: 1550398053 | D16: 998000 | E16: 1054400 | H16: 401472202 | I16: 53726144 | J16: 53535034 | K16: 75019559 | L16: 9390391 | M16: 9909530 | P16: 127507010 | Q16: 23951400 | R16: 23569708 | U16: 14543700 | V16: 14925500 | W16: 1616964 | X16: 1628000 | Y16: 16160664 | Z16: 16553500 | AB16: 1296442731 | AC16: 81127204 | AD16: 82069300 | AE16: 202899600 | AF16: 4762300 | AG16: 3620600 | AI16: 5344994 | AJ16: 5200000 | AK16: 261000 | AL16: 201700 | AM16: 2679500 | AN16: 2570700 | AR16: 2846840784 | AS16: 82125204 | AT16: 83123700 | AU16: 1971
B17: 1972 | C17: 1564222347 | D17: 867900 | E17: 893900 | H17: 404787077 | I17: 59481894 | J17: 58863862 | K17: 84220993 | L17: 11614471 | M17: 11415749 | P17: 136674800 | Q17: 25249100 | R17: 25310411 | U17: 16319300 | V17: 16450300 | W17: 2048000 | X17: 1879000 | Y17: 18367300 | Z17: 18329300 | AB17: 1289994563 | AC17: 86017404 | AD17: 85370600 | AE17: 199984300 | AF17: 4824300 | AG17: 3438900 | AI17: 7084894 | AJ17: 6664900 | AK17: 236700 | AL17: 153000 | AM17: 2862400 | AN17: 2569900 | AR17: 2854216910 | AS17: 86885304 | AT17: 86264500 | AU17: 1972
B18: 1973 | C18: 1565001717 | D18: 1409400 | E18: 1108800 | H18: 413430143 | I18: 66219869 | J18: 64206662 | K18: 91884567 | L18: 14431912 | M18: 13366367 | P18: 147362100 | Q18: 27118690 | R18: 27506200 | U18: 17977400 | V18: 18491100 | W18: 2571400 | X18: 2434000 | Y18: 20548800 | Z18: 20925100 | AB18: 1359410631 | AC18: 99258308 | AD18: 101173300 | AE18: 202944300 | AF18: 5271800 | AG18: 3699700 | AI18: 10260694 | AJ18: 9313900 | AK18: 269850 | AL18: 179200 | AM18: 3415200 | AN18: 3065000 | AR18: 2924412348 | AS18: 100667708 | AT18: 102282100 | AU18: 1973
B19: 1974 | C19: 1584875554 | D19: 1544800 | E19: 1022800 | H19: 398128315 | I19: 58104294 | J19: 55323858 | K19: 84554139 | L19: 12193554 | M19: 11563455 | P19: 149506908 | Q19: 29183658 | R19: 29998783 | U19: 18825400 | V19: 19141500 | W19: 3585712 | X19: 3422735 | Y19: 22411112 | Z19: 22564235 | AB19: 1350684331 | AC19: 96761316 | AD19: 94260723 | AE19: 200500300 | AF19: 5911300 | AG19: 4308100 | AI19: 11497694 | AJ19: 10761500 | AK19: 271050 | AL19: 234700 | AM19: 3633100 | AN19: 3385500 | AR19: 2935559885 | AS19: 98306116 | AT19: 95283523 | AU19: 1974
B20: 1975 | C20: 1591627605 | D20: 1417700 | E20: 801400 | H20: 381849452 | I20: 47791724 | J20: 47097372 | K20: 81011448 | L20: 11147843 | M20: 11366949 | P20: 127027725 | Q20: 23169801 | R20: 22980200 | U20: 14677700 | V20: 15058000 | W20: 2683121 | X20: 2499223 | Y20: 17360821 | Z20: 17557223 | AB20: 1294123107 | AC20: 82755100 | AD20: 85130950 | AE20: 206013300 | AF20: 4387000 | AG20: 6700500 | AI20: 10025594 | AJ20: 10005400 | AK20: 266150 | AL20: 237000 | AM20: 3161400 | AN20: 3575900 | AR20: 2885750712 | AS20: 84172800 | AT20: 85932350 | AU20: 1975
B21: 1976 | C21: 1614684617 | D21: 1275500 | E21: 539400 | H21: 406905862 | I21: 60194214 | J21: 61188396 | K21: 91795559 | L21: 13158582 | M21: 13281455 | P21: 146298208 | Q21: 26712518 | R21: 26977300 | U21: 16537747 | V21: 16905372 | W21: 3692896 | X21: 3628765 | Y21: 20230643 | Z21: 20534137 | AB21: 1369618723 | AC21: 93251518 | AD21: 97667221 | AE21: 205705300 | AF21: 4233510 | AG21: 6094240 | AI21: 11525994 | AJ21: 11816300 | AK21: 274240 | AL21: 241620 | AM21: 3753658 | AN21: 4254575 | AR21: 2984303340 | AS21: 94527018 | AT21: 98206621 | AU21: 1976
B22: 1977 | C22: 1622780443 | D22: 1336341 | E22: 794426 | H22: 417002963 | I22: 65975004 | J22: 64741889 | K22: 97424509 | L22: 13078089 | M22: 13676597 | P22: 151146000 | Q22: 28014824 | R22: 28144070 | U22: 16617006 | V22: 17065540 | W22: 3937354 | X22: 3855448 | Y22: 20554360 | Z22: 20920988 | AB22: 1378423323 | AC22: 96448466 | AD22: 97814090 | AE22: 203597400 | AF22: 4215981 | AG22: 5337100 | AI22: 16531694 | AJ22: 14018003 | AK22: 290693 | AL22: 254093 | AM22: 3181644 | AN22: 4285085 | AR22: 3001203766 | AS22: 97784807 | AT22: 98608516 | AU22: 1977
B23: 1978 | C23: 1632902929 | D23: 1050800 | E23: 379000 | H23: 426150225 | I23: 69760499 | J23: 69028670 | K23: 100231201 | L23: 14267240 | M23: 14877904 | P23: 158933700 | Q23: 30474660 | R23: 30040550 | U23: 18554300 | V23: 19020700 | W23: 4483406 | X23: 4028947 | Y23: 23037706 | Z23: 23049647 | AB23: 1421901415 | AC23: 98356308 | AD23: 98446500 | AE23: 201138400 | AF23: 4565300 | AG23: 4625900 | AI23: 15249094 | AJ23: 13201100 | AK23: 286300 | AL23: 232700 | AM23: 2718900 | AN23: 3673400 | AR23: 3054804344 | AS23: 99407108 | AT23: 98825500 | AU23: 1978
B24: 1979 | C24: 1662009854 | D24: 1077500 | E24: 477000 | H24: 428491374 | I24: 74485730 | J24: 73128721 | K24: 101406801 | L24: 15080076 | M24: 15349800 | P24: 167801808 | Q24: 32181700 | R24: 33139000 | U24: 19944700 | V24: 20166400 | W24: 5266934 | X24: 4973744 | Y24: 25211634 | Z24: 25140144 | AB24: 1457965423 | AC24: 103160712 | AD24: 99761208 | AE24: 199497100 | AF24: 4383900 | AG24: 4273400 | AI24: 17343794 | AJ24: 14790600 | AK24: 305200 | AL24: 292700 | AM24: 2923000 | AN24: 3310300 | AR24: 3119975277 | AS24: 104238212 | AT24: 100238208 | AU24: 1979
B25: 1980 | C25: 1682302640 | D25: 1058600 | E25: 531600 | H25: 420867512 | I25: 71528570 | J25: 70144759 | K25: 96891792 | L25: 13884101 | M25: 14893700 | P25: 169316596 | Q25: 33809900 | R25: 34933100 | U25: 20558200 | V25: 21181900 | W25: 5683200 | X25: 5528185 | Y25: 26241400 | Z25: 26710085 | AB25: 1446712209 | AC25: 95400712 | AD25: 93313500 | AE25: 202501270 | AF25: 4485900 | AG25: 4322400 | AI25: 19346994 | AJ25: 17469400 | AK25: 342300 | AL25: 374800 | AM25: 3122500 | AN25: 3526200 | AR25: 3129014849 | AS25: 96459312 | AT25: 93845100 | AU25: 1980
B26: 1981 | C26: 1704050800 | D26: 611900 | E26: 301000 | H26: 402783969 | I26: 64609905 | J26: 63571876 | K26: 96184739 | L26: 14880361 | M26: 15348600 | P26: 169118143 | Q26: 34240700 | R26: 35213900 | U26: 19471100 | V26: 20051400 | W26: 5338856 | X26: 5308777 | Y26: 24809956 | Z26: 25360177 | AB26: 1412402938 | AC26: 84655500 | AD26: 79046150 | AE26: 204920849 | AF26: 4463700 | AG26: 3889100 | AI26: 16641594 | AJ26: 15629200 | AK26: 320200 | AL26: 323300 | AM26: 3301000 | AN26: 3659100 | AR26: 3116453738 | AS26: 85267400 | AT26: 79347150 | AU26: 1981
B27: 1982 | C27: 1744685315 | D27: 716400 | E27: 380400 | H27: 394435693 | I27: 65402918 | J27: 64299850 | K27: 91249724 | L27: 13661061 | M27: 14147800 | P27: 166246512 | Q27: 33870400 | R27: 33490900 | U27: 18196300 | V27: 18530900 | W27: 5411093 | X27: 5240860 | Y27: 23607393 | Z27: 23771760 | AB27: 1372497942 | AC27: 81456800 | AD27: 79539004 | AE27: 209030103 | AF27: 3833900 | AG27: 3641300 | AI27: 14448394 | AJ27: 13942700 | AK27: 407000 | AL27: 335200 | AM27: 3530500 | AN27: 3510100 | AR27: 3117183257 | AS27: 82173200 | AT27: 79919404 | AU27: 1982
B28: 1983 | C28: 1746986309 | D28: 1021000 | E28: 393900 | H28: 417295813 | I28: 72801489 | J28: 72790844 | K28: 101289698 | L28: 14960905 | M28: 15351530 | P28: 176427087 | Q28: 35686700 | R28: 36215298 | U28: 20508300 | V28: 21049400 | W28: 6115374 | X28: 6817205 | Y28: 26623674 | Z28: 27866605 | AB28: 1455937099 | AC28: 86277200 | AD28: 81645696 | AE28: 211827876 | AF28: 3809900 | AG28: 2999800 | AI28: 14918594 | AJ28: 13817200 | AK28: 420900 | AL28: 378800 | AM28: 3672800 | AN28: 3481800 | AR28: 3202923408 | AS28: 87298200 | AT28: 82039596 | AU28: 1983
B29: 1984 | C29: 1767329663 | D29: 1095300 | E29: 418200 | H29: 426163218 | I29: 74987014 | J29: 74596820 | K29: 104905308 | L29: 16323505 | M29: 16389730 | P29: 189058265 | Q29: 39340150 | R29: 39568200 | U29: 21420600 | V29: 21529200 | W29: 7414441 | X29: 7572500 | Y29: 28835041 | Z29: 29101700 | AB29: 1521429471 | AC29: 87171100 | AD29: 83063100 | AE29: 219379116 | AF29: 3911500 | AG29: 2739000 | AI29: 16199294 | AJ29: 14710100 | AK29: 471600 | AL29: 372200 | AM29: 3728400 | AN29: 3693000 | AR29: 3288759134 | AS29: 88266400 | AT29: 83481300 | AU29: 1984
B30: 1985 | C30: 1771469304 | D30: 1027500 | E30: 299100 | H30: 432774687 | I30: 76593289 | J30: 73978653 | K30: 108226150 | L30: 17321918 | M30: 17551766 | P30: 192052055 | Q30: 40367115 | R30: 40804800 | U30: 21631800 | V30: 21776900 | W30: 7573286 | X30: 8530190 | Y30: 29205086 | Z30: 30307090 | AB30: 1523890091 | AC30: 89902500 | AD30: 86681776 | AE30: 223394308 | AF30: 4323600 | AG30: 2649900 | AI30: 15596394 | AJ30: 14630600 | AK30: 509600 | AL30: 299800 | AM30: 3741400 | AN30: 3674600 | AR30: 3295359395 | AS30: 90930000 | AT30: 86980876 | AU30: 1985
B31: 1986 | C31: 1780537886 | D31: 923200 | E31: 321600 | H31: 447353843 | I31: 77685752 | J31: 75342140 | K31: 115088923 | L31: 18877155 | M31: 19376186 | P31: 202361443 | Q31: 43701163 | R31: 43271683 | U31: 23237915 | V31: 23316136 | W31: 8778457 | X31: 8280751 | Y31: 32016372 | Z31: 31596887 | AB31: 1592833549 | AC31: 90016073 | AD31: 86419139 | AE31: 228047707 | AF31: 4315400 | AG31: 2265500 | AI31: 17264494 | AJ31: 15577913 | AK31: 490700 | AL31: 291000 | AM31: 4085300 | AN31: 4094000 | AR31: 3373371435 | AS31: 90939273 | AT31: 86740739 | AU31: 1986
B32: 1987 | C32: 1775438121 | D32: 869500 | E32: 410000 | H32: 465614781 | I32: 82676241 | J32: 81100240 | K32: 121230988 | L32: 22268527 | M32: 22166122 | P32: 213700010 | Q32: 47419068 | R32: 46938335 | U32: 25044034 | V32: 24638191 | W32: 9823373 | X32: 8803416 | Y32: 34867407 | Z32: 33441607 | AB32: 1653670149 | AC32: 99042276 | AD32: 95450398 | AE32: 230685818 | AF32: 5002800 | AG32: 2244200 | AI32: 18462894 | AJ32: 17700590 | AK32: 493700 | AL32: 283300 | AM32: 4457900 | AN32: 3959500 | AR32: 3429108270 | AS32: 99911776 | AT32: 95860398 | AU32: 1987
B33: 1988 | C33: 1792454281 | D33: 890000 | E33: 368600 | H33: 470499077 | I33: 83855158 | J33: 85869445 | K33: 127316558 | L33: 24418747 | M33: 24929002 | P33: 226589428 | Q33: 50279345 | R33: 50842028 | U33: 25624461 | V33: 25974508 | W33: 11174308 | X33: 12973709 | Y33: 36798769 | Z33: 38948217 | AB33: 1673623822 | AC33: 100238153 | AD33: 99188705 | AE33: 230031368 | AF33: 4867000 | AG33: 1748900 | AI33: 21542794 | AJ33: 22918540 | AK33: 429200 | AL33: 293000 | AM33: 3844000 | AN33: 3112600 | AR33: 3466078103 | AS33: 101128153 | AT33: 99557305 | AU33: 1988
B34: 1989 | C34: 1801563455 | D34: 994700 | E34: 378400 | H34: 469481122 | I34: 89327912 | J34: 85062218 | K34: 129233450 | L34: 27607387 | M34: 27356249 | P34: 232199918 | Q34: 53467349 | R34: 52131595 | U34: 26020220 | V34: 26135974 | W34: 12485090 | X34: 11418966 | Y34: 38505310 | Z34: 37554940 | AB34: 1703078915 | AC34: 97883813 | AD34: 97663706 | AE34: 232737335 | AF34: 5041800 | AG34: 1896800 | AI34: 18792394 | AJ34: 25435645 | AK34: 575600 | AL34: 419600 | AM34: 4175200 | AN34: 3649700 | AR34: 3504642370 | AS34: 98878513 | AT34: 98042106 | AU34: 1989
B35: 1990 | C35: 1833083000 | D35: 838400 | E35: 489800 | H35: 463008817 | I35: 84471461 | J35: 78148505 | K35: 123777435 | L35: 27874463 | M35: 28472710 | P35: 239353243 | Q35: 55639787 | R35: 55566815 | U35: 25189577 | V35: 24936805 | W35: 13017658 | X35: 13328787 | Y35: 38207235 | Z35: 38265592 | AB35: 1709503466 | AC35: 82591148 | AD35: 83389972 | AE35: 230401237 | AI35: 20059294 | AJ35: 23645467 | AK35: 606023 | AL35: 359500 | AM35: 3404900 | AN35: 3368200 | AR35: 3542586466 | AS35: 83429548 | AT35: 83879772 | AU35: 1990
B36: 1991 | C36: 1869868731 | D36: 1005200 | E36: 583300 | H36: 418240068 | I36: 77504791 | J36: 75544654 | K36: 120470727 | L36: 27335148 | M36: 28242649 | P36: 243079992 | Q36: 57203617 | R36: 58535800 | U36: 26282433 | V36: 26575605 | W36: 14262725 | X36: 12550920 | Y36: 40545158 | Z36: 39126525 | AB36: 1569184068 | AC36: 84311149 | AD36: 90120965 | AE36: 221466442 | AI36: 22368094 | AJ36: 26088567 | AK36: 461186 | AL36: 429400 | AM36: 3767600 | AN36: 4343300 | AR36: 3439052799 | AS36: 85316349 | AT36: 90704265 | AU36: 1991
B37: 1992 | C37: 1841461249 | D37: 1334361 | E37: 1198340 | H37: 403259529 | I37: 84047245 | J37: 82858083 | K37: 124056908 | L37: 30550933 | M37: 30996491 | P37: 246614955 | Q37: 61839530 | R37: 62077411 | U37: 28168959 | V37: 29152364 | W37: 14800474 | X37: 12740998 | Y37: 42969433 | Z37: 41893362 | AB37: 1507084038 | AC37: 83587651 | AD37: 86140206 | AE37: 180503218 | AI37: 22276943 | AJ37: 25000980 | AK37: 671207 | AL37: 600570 | AM37: 4511272 | AN37: 4900776 | AR37: 3348545287 | AS37: 84922012 | AT37: 87338546 | AU37: 1992
B38: 1993 | C38: 1809956198 | D38: 1752893 | E38: 1709382 | H38: 394458052 | I38: 88529866 | J38: 88135174 | K38: 127660150 | L38: 32082087 | M38: 33801699 | P38: 252361075 | Q38: 63312548 | R38: 64788544 | U38: 28500550 | V38: 29601542 | W38: 13418898 | X38: 11960657 | Y38: 41919448 | Z38: 41562199 | AB38: 1486064913 | AC38: 76246904 | AD38: 72920758 | AE38: 172336088 | AI38: 23049877 | AJ38: 24892243 | AK38: 638993 | AL38: 599416 | AM38: 4507447 | AN38: 4999547 | AR38: 3296021111 | AS38: 77999797 | AT38: 74630140 | AU38: 1993
B39: 1994 | C39: 1802119716 | D39: 1434302 | E39: 2231208 | H39: 395896837 | I39: 97492853 | J39: 92437429 | K39: 130520208 | L39: 35434683 | M39: 36436287 | P39: 268784434 | Q39: 69620154 | R39: 72229647 | U39: 31051260 | V39: 31654074 | W39: 16550711 | X39: 15346723 | Y39: 47601971 | Z39: 47000797 | AB39: 1486410296 | AC39: 87943592 | AD39: 77838476 | AE39: 151789660 | AI39: 27094298 | AJ39: 28746776 | AK39: 626815 | AL39: 620640 | AM39: 4981790 | AN39: 5535113 | AR39: 3288530012 | AS39: 89377894 | AT39: 80069684 | AU39: 1994
B40: 1995 | C40: 1809403744 | D40: 1123643 | E40: 2090386 | H40: 390752421 | I40: 95986969 | J40: 96902431 | K40: 141210382 | L40: 38383997 | M40: 39674176 | P40: 282382193 | Q40: 69677303 | R40: 74952512 | U40: 31942439 | V40: 33582369 | W40: 18574918 | X40: 16522775 | Y40: 50517357 | Z40: 50105144 | AB40: 1527628044 | AC40: 94932145 | AD40: 88724196 | AE40: 152932762 | AI40: 30821647 | AJ40: 34035807 | AK40: 688946 | AL40: 624415 | AM40: 4742578 | AN40: 5102858 | AR40: 3337031788 | AS40: 96055788 | AT40: 90814582 | AU40: 1995
B41: 1996 | C41: 1796500652 | D41: 1493077 | E41: 2435120 | H41: 386742898 | I41: 97284615 | J41: 96913561 | K41: 141573210 | L41: 41590766 | M41: 43162282 | P41: 284467382 | Q41: 74580628 | R41: 76110147 | U41: 32447804 | V41: 33733566 | W41: 17705694 | X41: 15308943 | Y41: 50153498 | Z41: 49042509 | AB41: 1509699422 | AC41: 82900075 | AD41: 77987647 | AE41: 150128091 | AI41: 30357778 | AJ41: 31267097 | AK41: 704372 | AL41: 733648 | AM41: 4710363 | AN41: 6307251 | AR41: 3306200074 | AS41: 84393152 | AT41: 80422767 | AU41: 1996
B42: 1997 | C42: 1816477564 | D42: 1317297 | E42: 3726571 | H42: 393750973 | I42: 105371028 | J42: 99318426 | K42: 152391315 | L42: 45488822 | M42: 46689960 | P42: 301497552 | Q42: 85728959 | R42: 86658456 | U42: 34268710 | V42: 34944663 | W42: 18698613 | X42: 17317267 | Y42: 52967323 | Z42: 52261930 | AB42: 1561592418 | AC42: 91242602 | AD42: 84037275 | AE42: 171218962 | AI42: 30729290 | AJ42: 32262338 | AK42: 759949 | AL42: 675821 | AM42: 4875540 | AN42: 5335388 | AR42: 3378069982 | AS42: 92559899 | AT42: 87763846 | AU42: 1997
B43: 1998 | C43: 1810515711 | D43: 1677155 | E43: 4564103 | H43: 378443601 | I43: 101940955 | J43: 98275263 | K43: 151452236 | L43: 45960320 | M43: 47241641 | P43: 302056942 | Q43: 87216902 | R43: 89707713 | U43: 34820237 | V43: 35005113 | W43: 21340462 | X43: 18614633 | Y43: 56160699 | Z43: 53619746 | AB43: 1541566403 | AC43: 91605786 | AD43: 85875593 | AE43: 130467168 | AI43: 31832694 | AJ43: 36291762 | AK43: 884492 | AL43: 625520 | AM43: 6055760 | AN43: 8727888 | AR43: 3352082114 | AS43: 93282941 | AT43: 90439696 | AU43: 1998
B44: 1999 | C44: 1815006045 | D44: 1761127 | E44: 3436827 | H44: 387365480 | I44: 108996420 | J44: 106319434 | K44: 164909976 | L44: 50367631 | M44: 48819689 | P44: 315929525 | Q44: 95109842 | R44: 93272281 | U44: 36594245 | V44: 37098364 | W44: 23457818 | X44: 20908840 | Y44: 60052063 | Z44: 58007204 | AB44: 1588571440 | AC44: 105636024 | AD44: 98809828 | AE44: 133551154 | AI44: 30321961 | AJ44: 35970530 | AK44: 808780 | AL44: 671109 | AM44: 6486833 | AN44: 6850606 | AR44: 3403577485 | AS44: 107397151 | AT44: 102246655 | AU44: 1999
B45: 2000 | C45: 1795244627 | D45: 2085290 | E45: 3627857 | H45: 384036891 | I45: 115769126 | J45: 114197916 | K45: 178163524 | L45: 55235333 | M45: 52602395 | P45: 324606103 | Q45: 98478247 | R45: 98103540 | U45: 37781234 | V45: 38315217 | W45: 27183606 | X45: 24650544 | Y45: 64964840 | Z45: 62965761 | AB45: 1687166387 | AC45: 115265724 | AD45: 114401729 | AE45: 135140448 | AI45: 34400740 | AJ45: 40516546 | AK45: 930790 | AL45: 907697 | AM45: 6881548 | AN45: 6953883 | AR45: 3482411014 | AS45: 117351014 | AT45: 118029586 | AU45: 2000
B46: 2001 | C46: 1802548663 | D46: 2065733 | E46: 3881896 | H46: 379433546 | I46: 112765477 | J46: 113374086 | K46: 178067567 | L46: 56659653 | M46: 56446767 | P46: 318819699 | Q46: 94965214 | R46: 93501819 | U46: 39138380 | V46: 38705045 | W46: 29449890 | X46: 25312027 | Y46: 68588270 | Z46: 64017072 | AB46: 1608348593 | AC46: 115624513 | AD46: 110836724 | AE46: 134743172 | AI46: 33412331 | AJ46: 37592619 | AK46: 1010191 | AL46: 1021516 | AM46: 7325361 | AN46: 7272582 | AR46: 3410897256 | AS46: 117690246 | AT46: 114718620 | AU46: 2001
B47: 2002 | C47: 1820643807 | D47: 2543406 | E47: 3715591 | H47: 392430390 | I47: 117788296 | J47: 120837030 | K47: 195022241 | L47: 62386768 | M47: 61585516 | P47: 329504514 | Q47: 96866117 | R47: 97791551 | U47: 40344279 | V47: 40811967 | W47: 29354350 | X47: 27011733 | Y47: 69698629 | Z47: 67823700 | AB47: 1648754932 | AC47: 117999387 | AD47: 116511846 | AE47: 133823260 | AI47: 33241858 | AJ47: 38003233 | AK47: 1022834 | AL47: 1041534 | AM47: 7792703 | AN47: 7576483 | AR47: 3469398739 | AS47: 120542793 | AT47: 120227437 | AU47: 2002
B48: 2003 | C48: 1831834645 | D48: 3284780 | E48: 4356566 | H48: 399690000 | I48: 121247120 | J48: 126159335 | K48: 218786933 | L48: 65793921 | M48: 61769738 | P48: 338785165 | Q48: 103376213 | R48: 102811657 | U48: 40796737 | V48: 41774486 | W48: 33254713 | X48: 31976249 | Y48: 74051450 | Z48: 73750735 | AB48: 1690197652 | AC48: 121106021 | AD48: 115281147 | AE48: 139116184 | AI48: 34439642 | AJ48: 38253346 | AK48: 1189067 | AL48: 1257219 | AM48: 7815289 | AN48: 8468659 | AR48: 3522032297 | AS48: 124390801 | AT48: 119637713 | AU48: 2003
B49: 2004 | C49: 1836154971 | D49: 3246511 | E49: 3965512 | H49: 425403462 | I49: 135036278 | J49: 135935624 | K49: 239260925 | L49: 74656646 | M49: 73070706 | P49: 355698469 | Q49: 109879987 | R49: 111204480 | U49: 43991465 | V49: 42812856 | W49: 36716844 | X49: 36763679 | Y49: 80708309 | Z49: 79576535 | AB49: 1746194169 | AC49: 124488682 | AD49: 117525126 | AE49: 138182232 | AI49: 38098313 | AJ49: 41957830 | AK49: 1234606 | AL49: 1415631 | AM49: 10805619 | AN49: 9881675 | AR49: 3582349140 | AS49: 127735193 | AT49: 121490638 | AU49: 2004
B50: 2005 | C50: 1825331097 | D50: 3411700.7 | E50: 4328232.2 | H50: 437813366 | I50: 135832075 | J50: 137965538 | K50: 252004373 | L50: 76133058 | M50: 76945324 | P50: 365180662 | Q50: 112119812 | R50: 113246612 | U50: 45088947.7 | V50: 43074703 | W50: 38300420 | X50: 41668030 | Y50: 83389367.7 | Z50: 84742733 | AB50: 1800570769 | AC50: 133238924.2 | AD50: 129332543 | AE50: 140296727 | AI50: 40461737 | AJ50: 45031605 | AK50: 1446851 | AL50: 1510992 | AM50: 13566226 | AN50: 12599209 | AR50: 3625901866 | AS50: 136650624.9 | AT50: 133660775.2 | AU50: 2005
B51: 2006 | C51: 1834805586 | D51: 3955672 | E51: 4545139 | H51: 447464633 | I51: 134121610 | J51: 136834817 | K51: 266675003 | L51: 79758107 | M51: 81168236 | P51: 381783753 | Q51: 115041854 | R51: 114953821 | U51: 46364611.24 | V51: 46367299 | W51: 45236053 | X51: 45380411 | Y51: 91600664.24 | Z51: 91747710 | AB51: 1750333145 | AC51: 131513612 | AD51: 130334609 | AE51: 140829183 | AI51: 39602488 | AJ51: 45119382 | AK51: 1490710 | AL51: 1761645 | AM51: 13639067 | AN51: 13561999 | AR51: 3585138731 | AS51: 135469284 | AT51: 134879748 | AU51: 2006
B52: 2007 | C52: 1841194068 | D52: 3526396 | E52: 4717593 | H52: 434303500 | I52: 134138329 | J52: 133010180 | K52: 281682240 | L52: 79552554 | M52: 82954865 | P52: 392504293 | Q52: 119001221 | R52: 118427208 | U52: 46291506 | V52: 48064168 | W52: 50239078 | X52: 51382434 | Y52: 96530584 | Z52: 99446602 | AB52: 1778957557 | AC52: 138448750 | AD52: 133483975 | AE52: 143911916 | AI52: 44037120 | AJ52: 49876977 | AK52: 1547099 | AL52: 1557711 | AM52: 17485077 | AN52: 15515256 | AR52: 3620151625 | AS52: 141975146 | AT52: 138201568 | AU52: 2007
B53: 2008 | C53: 1848396612 | D53: 3633230 | E53: 4860068 | H53: 387145719 | I53: 111801070 | J53: 117990079 | K53: 268499243 | L53: 69367884 | M53: 71590866 | P53: 390240082 | Q53: 114569161 | R53: 113926437 | U53: 47241059 | V53: 48709241 | W53: 51484522 | X53: 52929055 | Y53: 98725581 | Z53: 101638296 | AB53: 1656413205 | AC53: 119124414 | AD53: 113809661 | AE53: 147673093 | AI53: 45669576 | AJ53: 53957581 | AK53: 1826485 | AL53: 1736752 | AM53: 19696954 | AN53: 16010125 | AR53: 3504809817 | AS53: 122757644 | AT53: 118669729 | AU53: 2008
B54: 2009 | C54: 1840208705 | D54: 4815548 | E54: 6228336 | H54: 345009795 | I54: 94549059 | J54: 100969141 | K54: 263797680 | L54: 56511662 | M54: 60928741 | P54: 370969384 | Q54: 101127523 | R54: 103177764.5 | U54: 46147108.3 | V54: 48493609 | W54: 53245280.06 | X54: 56615432 | Y54: 99392388.36 | Z54: 105109041 | AB54: 1556789887 | AC54: 90123305 | AD54: 91600462 | AE54: 155389494 | AI54: 43164270 | AJ54: 43499858.46 | AK54: 1939472.2 | AL54: 1910425 | AM54: 18745261 | AN54: 17456511 | AR54: 3396998592 | AS54: 94938853 | AT54: 97828798 | AU54: 2009
B55: 2010 | C55: 1864002026 | D55: 5162314.5 | E55: 6863820 | H55: 375102239 | I55: 108891799 | J55: 112502419 | K55: 283547668 | L55: 64709598.18 | M55: 66842113.4 | P55: 392378111 | Q55: 108282667 | R55: 109716092.4 | U55: 49007098.1 | V55: 51267969 | W55: 53151632.38 | X55: 55009957 | Y55: 102158730.5 | Z55: 106277926 | AB55: 1723129396 | AC55: 110899963 | AD55: 107314419 | AE55: 167706626 | AI55: 54695434.7 | AJ55: 55434731.88 | AK55: 2162427 | AL55: 1954004 | AM55: 22981698 | AN55: 20750671 | AR55: 3587131422 | AS55: 116062277.5 | AT55: 114178239 | AU55: 2010
B56: 2011 | C56: 1870970098 | D56: 5940014.17 | E56: 8055238 | H56: 388230953 | I56: 115945161 | J56: 118644152 | K56: 301450899 | L56: 68707280.31 | M56: 70183438.2 | P56: 400088926 | Q56: 108919413.5 | R56: 109983401.7 | U56: 51400210.3 | V56: 53619140 | W56: 56632711 | X56: 59805985 | Y56: 108032921.3 | Z56: 113425125 | AB56: 1799800097 | AC56: 122616592 | AD56: 118176334 | AE56: 175927642 | AI56: 58347430.06 | AJ56: 62940449.06 | AK56: 2313241 | AL56: 2085079 | AM56: 14262708 | AN56: 17158342 | AR56: 3670770195 | AS56: 128556606.2 | AT56: 126231572 | AU56: 2011
B57: 2012 | C57: 1887396983 | D57: 5957838.16 | E57: 8195270 | H57: 403710423 | I57: 113497956 | J57: 119289933 | K57: 313705348 | L57: 70730566.31 | M57: 72855733.14 | P57: 398893819 | Q57: 106238584.8 | R57: 108126769.8 | U57: 54903067.35 | V57: 55279841.65 | W57: 58810366 | X57: 59405815 | Y57: 113713433.3 | Z57: 114685656.7 | AB57: 1797678997 | AC57: 114238468 | AD57: 110923870 | AE57: 177985389 | AI57: 55943494.63 | AJ57: 58202380.34 | AK57: 2364346.25 | AL57: 2024338 | AM57: 13570509 | AN57: 6632210 | AR57: 3685075980 | AS57: 120196306.2 | AT57: 119119140 | AU57: 2012
B58: 2013 | C58: 1897823383 | D58: 6585883.58 | E58: 8603920 | H58: 420139431 | I58: 122255066 | J58: 125770404 | K58: 337578554 | L58: 72826013.4 | M58: 75025570.14 | P58: 396575104 | Q58: 107269676 | R58: 110515222.1 | U58: 56116025.94 | V58: 56533654.05 | W58: 56861736.12 | X58: 56150189 | Y58: 112977762.1 | Z58: 112683843 | AB58: 1839351118 | AC58: 128260393.1 | AD58: 126088821 | AE58: 155290530 | AI58: 61136642.2 | AJ58: 58347659.51 | AK58: 2460364.26 | AL58: 1987128 | AM58: 11667491.27 | AN58: 8251254.91 | AR58: 3737174501 | AS58: 134846276.7 | AT58: 134692741 | AU58: 2013
B59: 2014 | C59: 1900374577 | D59: 6763723 | E59: 9105194 | H59: 433449184 | I59: 128713655 | J59: 133678403 | K59: 342451328 | L59: 75774576.4 | M59: 78290211.95 | P59: 403699716 | Q59: 109866453 | R59: 112525997.7 | U59: 57295042.65 | V59: 58108406.3 | W59: 55810138.12 | X59: 55688982 | Y59: 113105180.8 | Z59: 113797388.3 | AB59: 1862018768 | AC59: 134877200.2 | AD59: 132194273 | AE59: 167501790 | AI59: 62227497 | AJ59: 62419674.77 | AK59: 2596524.26 | AL59: 2252425.1 | AM59: 12565574.92 | AN59: 9518398.45 | AR59: 3762393345 | AS59: 141640923.2 | AT59: 141299467 | AU59: 2014
B60: 2015 | C60: 1901265439 | D60: 6130562 | E60: 9575513 | H60: 446346312 | I60: 133034618 | J60: 137480481 | K60: 344606085 | L60: 77623132.27 | M60: 80420742.19 | P60: 406684484 | Q60: 108757656 | R60: 112220334 | U60: 58825180 | V60: 58809529 | W60: 57603012 | X60: 57266044 | Y60: 116428192 | Z60: 116075573 | AB60: 1853897832 | AC60: 128153388 | AD60: 123567181 | AE60: 145957277 | AI60: 62375226.03 | AJ60: 63829091 | AK60: 2550476.29 | AL60: 2344548.1 | AM60: 11829522.92 | AN60: 9176059 | AR60: 3755163271 | AS60: 134283950 | AT60: 133142694 | AU60: 2015
B61: 2016 | C61: 1927783200 | D61: 5991772 | E61: 9411103 | H61: 480698231 | I61: 144157527 | J61: 147679476 | K61: 355617556 | L61: 82257464 | M61: 85248272 | P61: 409155937 | Q61: 110864219 | R61: 113120086.7 | U61: 62037102 | V61: 62206682 | W61: 58433228 | X61: 58153508 | Y61: 120470330 | Z61: 120360190 | AB61: 1922731838 | AC61: 134017930 | AD61: 126190319 | AE61: 149549811 | AI61: 65377409.03 | AJ61: 64981735 | AK61: 2482840 | AL61: 2279980 | AM61: 9200388.82 | AN61: 7794673 | AR61: 3850515038 | AS61: 140009702 | AT61: 135601422 | AU61: 2016
B62: 2017 | C62: 1931111419 | D62: 5084778 | E62: 8474609 | H62: 500667025 | I62: 151684603 | J62: 155570294 | K62: 357790205 | L62: 89780469.27 | M62: 90713348 | P62: 415184177 | Q62: 115648637 | R62: 115829153 | U62: 64695394 | V62: 64078900 | W62: 58796963.12 | X62: 57230993 | Y62: 123492357.1 | Z62: 121309893 | AB62: 1951902608 | AC62: 132049464 | AD62: 128378355 | AE62: 150272831 | AI62: 58324661.03 | AJ62: 68418753 | AK62: 2570866 | AL62: 2482305 | AM62: 7498337.82 | AN62: 6418031 | AR62: 3883014027 | AS62: 137134242 | AT62: 136852964 | AU62: 2017
B63: 2018 | C63: 1946047851 | D63: 5626394 | E63: 7841464 | H63: 500641345 | I63: 152806907 | J63: 160486937 | K63: 358520681 | L63: 92906258.27 | M63: 93556898 | P63: 409183981 | Q63: 116638166 | R63: 117341105 | U63: 66665535 | V63: 65752483 | W63: 55846489.12 | X63: 56225864 | Y63: 122512024.1 | Z63: 121978347 | AB63: 2057732182 | AC63: 144054612 | AD63: 137882006 | AE63: 159894106 | AI63: 62388003.03 | AJ63: 75134128 | AK63: 3148679 | AL63: 2937995 | AM63: 7457533.82 | AN63: 5621996 | AR63: 4003780033 | AS63: 149681006 | AT63: 145723470 | AU63: 2018
B64: 2019 | C64: 1940263516 | D64: 5581341 | E64: 7583949 | H64: 481932398 | I64: 153603818 | J64: 158879600 | K64: 366293759 | L64: 89781342 | M64: 88339469 | P64: 404955784 | Q64: 111356914 | R64: 113839337 | U64: 66915351 | V64: 68299303 | W64: 50492001.12 | X64: 49292408 | Y64: 117407352.1 | Z64: 117591711 | AB64: 1985982613 | AC64: 140462119 | AD64: 135635591 | AE64: 159878016 | AI64: 61785570 | AJ64: 71610279 | AK64: 3003931 | AL64: 2831933 | AM64: 8478105.82 | AN64: 5992433 | AR64: 3926246129 | AS64: 146043460 | AT64: 143219540 | AU64: 2019
B65: 2020 | C65: 1926547955 | D65: 4184028 | E65: 6173050 | H65: 479969657 | I65: 144435622 | J65: 154856886 | K65: 364573951 | L65: 91320412 | M65: 88146621 | P65: 400126216 | Q65: 110822361 | R65: 111587207 | U65: 67724829 | V65: 68258794 | W65: 45700774 | X65: 44906379 | Y65: 113425603 | Z65: 113165173 | AB65: 1983575816 | AC65: 138274848 | AD65: 136261790 | AE65: 159066276 | AI65: 54786601 | AJ65: 63735496 | AK65: 2763211 | AL65: 2796078 | AM65: 8532782.82 | AN65: 5549060 | AR65: 3910123771 | AS65: 142458876 | AT65: 142434840 | AU65: 2020
B66: 2021 | C66: 1949860042 | D66: 5657325.32 | E66: 7745572.3 | H66: 493380636 | I66: 147008981 | J66: 156248939 | K66: 387930315 | L66: 99873586.27 | M66: 100492208.4 | P66: 418403343 | Q66: 114228958.9 | R66: 115594143.1 | U66: 67062099.76 | V66: 67179831.97 | W66: 45985956.8 | X66: 47572855.06 | Y66: 113048056.6 | Z66: 114752687 | AB66: 2053899967 | AC66: 142750568 | AD66: 132111760 | AE66: 162031995 | AI66: 58687060.47 | AJ66: 73316885.89 | AK66: 2969336.4 | AL66: 2824261.57 | AM66: 9029537.61 | AN66: 6669454.85 | AR66: 4003760009 | AS66: 148407893.3 | AT66: 139857332.3 | AU66: 2021
B67: 2022 | C67: 1967294351 | D67: 5507179.75 | E67: 7621190.6 | H67: 481256472 | I67: 137332783 | J67: 143104735 | K67: 375289236 | L67: 92889427.2 | M67: 94139440.57 | P67: 414094326 | Q67: 111481503.9 | R67: 111383581.6 | U67: 68180948.15 | V67: 69530584.15 | W67: 43942727.76 | X67: 45660375.69 | Y67: 112123675.9 | Z67: 115190959.8 | AB67: 2016041202 | AC67: 118580121 | AD67: 108561428 | AE67: 158239442 | AI67: 61567515.27 | AJ67: 76836622.94 | AK67: 3382180.97 | AL67: 3161080.66 | AM67: 8358047.65 | AN67: 6235389.01 | AR67: 3983335553 | AS67: 124087300.8 | AT67: 116182618.6 | AU67: 2022
B68: 2023 | Y68: 0 | Z68: 0 | AR68: 0 | AS68: 0 | AT68: 0 | AU68: 2023
B69: 2024 | Y69: 0 | Z69: 0 | AR69: 0 | AS69: 0 | AT69: 0 | AU69: 2024
B70: 2025 | Y70: 0 | Z70: 0 | AR70: 0 | AS70: 0 | AT70: 0 | AU70: 2025
B71: 2026 | Y71: 0 | Z71: 0 | AR71: =IFERROR(C71,0)+IFERROR(AB71,0) -> 0 | AS71: =IFERROR(D71,0)+IFERROR(AC71,0) -> 0 | AT71: =IFERROR(E71,0)+IFERROR(AD71,0) -> 0 | AU71: =B71 -> 2026
B72: 2027 | Y72: =IFERROR(U72,0)+IFERROR(W72,0) -> 0 | Z72: =IFERROR(V72,0)+IFERROR(X72,0) -> 0 | AR72: 0 | AS72: 0 | AT72: 0 | AU72: 2027
B73: 2028 | Y73: 0 | Z73: 0 | AR73: 0 | AS73: 0 | AT73: 0 | AU73: 2028
B74: 2029 | Y74: 0 | Z74: 0 | AR74: 0 | AS74: 0 | AT74: 0 | AU74: 2029
B75: 2030 | Y75: 0 | Z75: 0 | AR75: 0 | AS75: 0 | AT75: 0 | AU75: 2030

Sheet Data
C1: <--- select country | H1: Sawn Wood Sawnwood | K1: Wood-Based Panels | P1: Paper & Paperboard Paper+Paperboard | U1: Wood Pulp | W1: Recycled Paper | Y1: Wood Pulp + Recycled Paper aggregated items | AB1: Industrial Roundwood | AE1: Other Industrial Roundwood | AI1: Chips and particles | AK1: Wood charcoal | AM1: Wood residues | AR1: Roundwood (Fuelwood+Industrial Roundwood) aggregated items
A2: FAOSTAT | C2: Fuelwood/Wood Fuel
A3: updated | B3: 2024-06-11T13:23:56 | C3: 1864 | D3: 1864 | E3: 1864 | H3: 1872 | I3: 1872 | J3: 1872 | K3: 1873 | L3: 1873 | M3: 1873 | P3: 1876 | Q3: 1876 | R3: 1876 | U3: 1875 | V3: 1875 | W3: 1669 | X3: 1669 | AB3: 1865 | AC3: 1865 | AD3: 1865 | AE3: 1871 | AF3: 1871 | AG3: 1871 | AI3: 1619 | AJ3: 1619 | AK3: 1630 | AL3: 1630 | AM3: 1620 | AN3: 1620 | AR3: 1861 | AS3: 1861 | AT3: 1861
C4: 5516 | D4: 5616 | E4: 5916 | H4: 5516 | I4: 5616 | J4: 5916 | K4: 5516 | L4: 5616 | M4: 5916 | P4: 5510 | Q4: 5610 | R4: 5910 | U4: 5610 | V4: 5910 | W4: 5610 | X4: 5910 | Y4: 5610 | Z4: 5910 | AB4: 5516 | AC4: 5616 | AD4: 5916 | AE4: 5516 | AF4: 5616 | AG4: 5916 | AI4: 5616 | AJ4: 5916 | AK4: 5610 | AL4: 5910 | AM4: 5616 | AN4: 5916 | AR4: 5516 | AS4: 5616 | AT4: 5916
B5: Year | C5: Production m3 | D5: Imports m3 | E5: Exports m3 | H5: Production m3 | I5: Imports m3 | J5: Exports m3 | K5: Production m3 | L5: Imports m3 | M5: Exports m3 | P5: Production metric-t | Q5: Imports metric-t | R5: Exports metric-t | U5: Imports metric-t | V5: Exports metric-t | W5: Imports metric-t | X5: Exports metric-t | Y5: Imports metric-t | Z5: Exports metric-t | AB5: Production m3 | AC5: Imports m3 | AD5: Exports m3 | AE5: Production m3 | AF5: Imports m3 | AG5: Exports m3 | AI5: Imports m3 | AJ5: Exports m3 | AK5: Imports metric-t | AL5: Exports metric-t | AM5: Imports m3 | AN5: Exports m3 | AR5: Production m3 | AS5: Imports m3 | AT5: Exports m3 | AU5: Year
B6: 1961 | C6: 1498738466 | D6: 1837900 | E6: 1573000 | H6: 323575399 | I6: 38219438 | J6: 37778684 | K6: 25134700 | L6: 2714803 | M6: 2761100 | P6: 77075896 | Q6: 12792070 | R6: 12697758 | U6: 2520900 | V6: 2772600 | Y6: =IFERROR(U6,0)+IFERROR(W6,0) -> 2520900 | Z6: =IFERROR(V6,0)+IFERROR(X6,0) -> 2772600 | AB6: 1017832423 | AC6: 37998500 | AD6: 38160300 | AE6: 167496000 | AF6: 4318300 | AG6: 5045800 | AK6: 295400 | AL6: 185100 | AM6: 303700 | AN6: 330800 | AR6: =IFERROR(C6,0)+IFERROR(AB6,0) -> 2516570889 | AS6: =IFERROR(D6,0)+IFERROR(AC6,0) -> 39836400 | AT6: 39733300 | AU6: =B6 -> 1961
B7: 1962 | C7: 1491096482 | D7: 1891850 | E7: 1642000 | H7: 326104720 | I7: 39550344 | J7: 39193810 | K7: 28135300 | L7: 3101929 | M7: 3111100 | P7: 80388600 | Q7: 12825783 | R7: 12732850 | U7: 2542000 | V7: 2817500 | Y7: =IFERROR(U7,0)+IFERROR(W7,0) -> 2542000 | Z7: =IFERROR(V7,0)+IFERROR(X7,0) -> 2817500 | AB7: 1036279939 | AC7: 39147600 | AD7: 38114000 | AE7: 165326008 | AF7: 4262300 | AG7: 4915600 | AK7: 286400 | AL7: 199150 | AM7: 309300 | AN7: 454600 | AR7: =IFERROR(C7,0)+IFERROR(AB7,0) -> 2527376421 | AS7: 41039450 | AT7: 39756000 | AU7: =B7 -> 1962
B8: 1963 | C8: 1501308865 | D8: 2338800 | E8: 2004899 | H8: 335095362 | I8: 42021465 | J8: 42008071 | K8: 32545800 | L8: 3469466 | M8: 3514720 | P8: 85274024 | Q8: 13406264 | R8: 13615982 | U8: 3031700 | V8: 2990100 | Y8: =IFERROR(U8,0)+IFERROR(W8,0) -> 3031700 | Z8: 2990100 | AB8: 1049915415 | AC8: 41326203 | AD8: 42745300 | AE8: 173467000 | AF8: 3932600 | AG8: 4560900 | AK8: 251858 | AL8: 202800 | AM8: 316200 | AN8: 534500 | AR8: 2551224280 | AS8: 43665003 | AT8: 44750199 | AU8: 1963
B9: 1964 | C9: 1513488178 | D9: 2424767 | E9: 1575500 | H9: 354361463 | I9: 46029502 | J9: 45889304 | K9: 35961200 | L9: 4240470 | M9: 4239923 | P9: 91045000 | Q9: 15136397 | R9: 15354356 | U9: 3335555 | V9: 3295400 | Y9: 3335555 | Z9: 3295400 | AB9: 1110941115 | AC9: 45225801 | AD9: 47179400 | AE9: 175621500 | AF9: 3817200 | AG9: 4233700 | AI9: 1326394 | AJ9: 1219100 | AK9: 247600 | AL9: 160464 | AM9: 1221300 | AN9: 1391200 | AR9: 2624429293 | AS9: 47650568 | AT9: 48754900 | AU9: 1964
B10: 1965 | C10: 1514171639 | D10: 1709800 | E10: 1227867 | H10: 358376265 | I10: 45984719 | J10: 45130845 | K10: 39913800 | L10: 4705695 | M10: 4697719 | P10: 96525604 | Q10: 16098700 | R10: 16441056 | U10: 3332463 | V10: 3230000 | Y10: 3332463 | Z10: 3230000 | AB10: 1131572447 | AC10: 49034200 | AD10: 50547500 | AE10: 212569108 | AF10: 3980800 | AG10: 4010800 | AI10: 1293294 | AJ10: 1160000 | AK10: 263900 | AL10: 190800 | AM10: 1663100 | AN10: 1897500 | AR10: 2645744086 | AS10: 50744000 | AT10: 51775367 | AU10: 1965
B11: 1966 | C11: 1526347281 | D11: 1544300 | E11: 931600 | H11: 359031622 | I11: 44414765 | J11: 44563987 | K11: 48960182 | L11: 5461447 | M11: 5857755 | P11: 103843296 | Q11: 17816070 | R11: 18150300 | U11: 3599400 | V11: 3148000 | Y11: 3599400 | Z11: 3148000 | AB11: 1153134939 | AC11: 54012500 | AD11: 55566700 | AE11: 216099508 | AF11: 3433500 | AG11: 4075300 | AI11: 1777894 | AJ11: 1455300 | AK11: 220100 | AL11: 186900 | AM11: 1971900 | AN11: 2157700 | AR11: 2679482220 | AS11: 55556800 | AT11: 56498300 | AU11: 1966
B12: 1967 | C12: 1528549182 | D12: 1318600 | E12: 1076100 | H12: 363784349 | I12: 45246477 | J12: 44429336 | K12: 51740568 | L12: 6078082 | M12: 6434708 | P12: 105022896 | Q12: 17987520 | R12: 18225443 | U12: 3409500 | V12: 3088400 | Y12: 3409500 | Z12: 3088400 | AB12: 1182079523 | AC12: 59048200 | AD12: 60532900 | AE12: 209297500 | AF12: 3394100 | AG12: 3826000 | AI12: 2870594 | AJ12: 2572700 | AK12: 213900 | AL12: 217500 | AM12: 2248600 | AN12: 2267700 | AR12: 2710628705 | AS12: 60366800 | AT12: 61609000 | AU12: 1967
B13: 1968 | C13: 1530931056 | D13: 1038300 | E13: 1114467 | H13: 374854643 | I13: 50047604 | J13: 49196757 | K13: 58337450 | L13: 7304758 | M13: 7685838 | P13: 113115596 | Q13: 19630110 | R13: 19884500 | U13: 14740240 | V13: 14960000 | Y13: 14740240 | Z13: 14960000 | AB13: 1205667615 | AC13: 67227400 | AD13: 69099200 | AE13: 212188700 | AF13: 3384900 | AG13: 3886700 | AI13: 5428794 | AJ13: 3860300 | AK13: 208600 | AL13: 206900 | AM13: 2319000 | AN13: 2341500 | AR13: 2736598671 | AS13: 68265700 | AT13: 70213667 | AU13: 1968
B14: 1969 | C14: 1528621592 | D14: 1315800 | E14: 1300300 | H14: 384830378 | I14: 50672764 | J14: 49774610 | K14: 62547517 | L14: 8241636 | M14: 8442646 | P14: 122071408 | Q14: 22096800 | R14: 22386411 | U14: 16114300 | V14: 16198000 | Y14: 16114300 | Z14: 16198000 | AB14: 1234489039 | AC14: 72596508 | AD14: 75261800 | AE14: 205245500 | AF14: 3694400 | AG14: 3986900 | AI14: 6011494 | AJ14: 4796400 | AK14: 231333 | AL14: 261000 | AM14: 2081600 | AN14: 1933600 | AR14: 2763110631 | AS14: 73912308 | AT14: 76562100 | AU14: 1969
B15: 1970 | C15: 1542387501 | D15: 1110200 | E15: 1368900 | H15: 389090528 | I15: 52670708 | J15: 51672867 | K15: 66576465 | L15: 9010709 | M15: 9095566 | P15: 125583135 | Q15: 22812520 | R15: 23204710 | U15: 16571100 | V15: 16916900 | W15: 1791164 | X15: 1779000 | Y15: 18362264 | Z15: 18695900 | AB15: 1276437807 | AC15: 83078816 | AD15: 85647200 | AE15: 202433700 | AF15: 4334000 | AG15: 3992200 | AI15: 7373794 | AJ15: 5774400 | AK15: 264058 | AL15: 231700 | AM15: 2468600 | AN15: 2186500 | AR15: 2818825308 | AS15: 84189016 | AT15: 87016100 | AU15: 1970
B16: 1971 | C16: 1550398053 | D16: 998000 | E16: 1054400 | H16: 401472202 | I16: 53726144 | J16: 53535034 | K16: 75019559 | L16: 9390391 | M16: 9909530 | P16: 127507010 | Q16: 23951400 | R16: 23569708 | U16: 14543700 | V16: 14925500 | W16: 1616964 | X16: 1628000 | Y16: 16160664 | Z16: 16553500 | AB16: 1296442731 | AC16: 81127204 | AD16: 82069300 | AE16: 202899600 | AF16: 4762300 | AG16: 3620600 | AI16: 5344994 | AJ16: 5200000 | AK16: 261000 | AL16: 201700 | AM16: 2679500 | AN16: 2570700 | AR16: 2846840784 | AS16: 82125204 | AT16: 83123700 | AU16: 1971
B17: 1972 | C17: 1564222347 | D17: 867900 | E17: 893900 | H17: 404787077 | I17: 59481894 | J17: 58863862 | K17: 84220993 | L17: 11614471 | M17: 11415749 | P17: 136674800 | Q17: 25249100 | R17: 25310411 | U17: 16319300 | V17: 16450300 | W17: 2048000 | X17: 1879000 | Y17: 18367300 | Z17: 18329300 | AB17: 1289994563 | AC17: 86017404 | AD17: 85370600 | AE17: 199984300 | AF17: 4824300 | AG17: 3438900 | AI17: 7084894 | AJ17: 6664900 | AK17: 236700 | AL17: 153000 | AM17: 2862400 | AN17: 2569900 | AR17: 2854216910 | AS17: 86885304 | AT17: 86264500 | AU17: 1972
B18: 1973 | C18: 1565001717 | D18: 1409400 | E18: 1108800 | H18: 413430143 | I18: 66219869 | J18: 64206662 | K18: 91884567 | L18: 14431912 | M18: 13366367 | P18: 147362100 | Q18: 27118690 | R18: 27506200 | U18: 17977400 | V18: 18491100 | W18: 2571400 | X18: 2434000 | Y18: 20548800 | Z18: 20925100 | AB18: 1359410631 | AC18: 99258308 | AD18: 101173300 | AE18: 202944300 | AF18: 5271800 | AG18: 3699700 | AI18: 10260694 | AJ18: 9313900 | AK18: 269850 | AL18: 179200 | AM18: 3415200 | AN18: 3065000 | AR18: 2924412348 | AS18: 100667708 | AT18: 102282100 | AU18: 1973
B19: 1974 | C19: 1584875554 | D19: 1544800 | E19: 1022800 | H19: 398128315 | I19: 58104294 | J19: 55323858 | K19: 84554139 | L19: 12193554 | M19: 11563455 | P19: 149506908 | Q19: 29183658 | R19: 29998783 | U19: 18825400 | V19: 19141500 | W19: 3585712 | X19: 3422735 | Y19: 22411112 | Z19: 22564235 | AB19: 1350684331 | AC19: 96761316 | AD19: 94260723 | AE19: 200500300 | AF19: 5911300 | AG19: 4308100 | AI19: 11497694 | AJ19: 10761500 | AK19: 271050 | AL19: 234700 | AM19: 3633100 | AN19: 3385500 | AR19: 2935559885 | AS19: 98306116 | AT19: 95283523 | AU19: 1974
B20: 1975 | C20: 1591627605 | D20: 1417700 | E20: 801400 | H20: 381849452 | I20: 47791724 | J20: 47097372 | K20: 81011448 | L20: 11147843 | M20: 11366949 | P20: 127027725 | Q20: 23169801 | R20: 22980200 | U20: 14677700 | V20: 15058000 | W20: 2683121 | X20: 2499223 | Y20: 17360821 | Z20: 17557223 | AB20: 1294123107 | AC20: 82755100 | AD20: 85130950 | AE20: 206013300 | AF20: 4387000 | AG20: 6700500 | AI20: 10025594 | AJ20: 10005400 | AK20: 266150 | AL20: 237000 | AM20: 3161400 | AN20: 3575900 | AR20: 2885750712 | AS20: 84172800 | AT20: 85932350 | AU20: 1975
B21: 1976 | C21: 1614684617 | D21: 1275500 | E21: 539400 | H21: 406905862 | I21: 60194214 | J21: 61188396 | K21: 91795559 | L21: 13158582 | M21: 13281455 | P21: 146298208 | Q21: 26712518 | R21: 26977300 | U21: 16537747 | V21: 16905372 | W21: 3692896 | X21: 3628765 | Y21: 20230643 | Z21: 20534137 | AB21: 1369618723 | AC21: 93251518 | AD21: 97667221 | AE21: 205705300 | AF21: 4233510 | AG21: 6094240 | AI21: 11525994 | AJ21: 11816300 | AK21: 274240 | AL21: 241620 | AM21: 3753658 | AN21: 4254575 | AR21: 2984303340 | AS21: 94527018 | AT21: 98206621 | AU21: 1976
B22: 1977 | C22: 1622780443 | D22: 1336341 | E22: 794426 | H22: 417002963 | I22: 65975004 | J22: 64741889 | K22: 97424509 | L22: 13078089 | M22: 13676597 | P22: 151146000 | Q22: 28014824 | R22: 28144070 | U22: 16617006 | V22: 17065540 | W22: 3937354 | X22: 3855448 | Y22: 20554360 | Z22: 20920988 | AB22: 1378423323 | AC22: 96448466 | AD22: 97814090 | AE22: 203597400 | AF22: 4215981 | AG22: 5337100 | AI22: 16531694 | AJ22: 14018003 | AK22: 290693 | AL22: 254093 | AM22: 3181644 | AN22: 4285085 | AR22: 3001203766 | AS22: 97784807 | AT22: 98608516 | AU22: 1977
B23: 1978 | C23: 1632902929 | D23: 1050800 | E23: 379000 | H23: 426150225 | I23: 69760499 | J23: 69028670 | K23: 100231201 | L23: 14267240 | M23: 14877904 | P23: 158933700 | Q23: 30474660 | R23: 30040550 | U23: 18554300 | V23: 19020700 | W23: 4483406 | X23: 4028947 | Y23: 23037706 | Z23: 23049647 | AB23: 1421901415 | AC23: 98356308 | AD23: 98446500 | AE23: 201138400 | AF23: 4565300 | AG23: 4625900 | AI23: 15249094 | AJ23: 13201100 | AK23: 286300 | AL23: 232700 | AM23: 2718900 | AN23: 3673400 | AR23: 3054804344 | AS23: 99407108 | AT23: 98825500 | AU23: 1978
B24: 1979 | C24: 1662009854 | D24: 1077500 | E24: 477000 | H24: 428491374 | I24: 74485730 | J24: 73128721 | K24: 101406801 | L24: 15080076 | M24: 15349800 | P24: 167801808 | Q24: 32181700 | R24: 33139000 | U24: 19944700 | V24: 20166400 | W24: 5266934 | X24: 4973744 | Y24: 25211634 | Z24: 25140144 | AB24: 1457965423 | AC24: 103160712 | AD24: 99761208 | AE24: 199497100 | AF24: 4383900 | AG24: 4273400 | AI24: 17343794 | AJ24: 14790600 | AK24: 305200 | AL24: 292700 | AM24: 2923000 | AN24: 3310300 | AR24: 3119975277 | AS24: 104238212 | AT24: 100238208 | AU24: 1979
B25: 1980 | C25: 1682302640 | D25: 1058600 | E25: 531600 | H25: 420867512 | I25: 71528570 | J25: 70144759 | K25: 96891792 | L25: 13884101 | M25: 14893700 | P25: 169316596 | Q25: 33809900 | R25: 34933100 | U25: 20558200 | V25: 21181900 | W25: 5683200 | X25: 5528185 | Y25: 26241400 | Z25: 26710085 | AB25: 1446712209 | AC25: 95400712 | AD25: 93313500 | AE25: 202501270 | AF25: 4485900 | AG25: 4322400 | AI25: 19346994 | AJ25: 17469400 | AK25: 342300 | AL25: 374800 | AM25: 3122500 | AN25: 3526200 | AR25: 3129014849 | AS25: 96459312 | AT25: 93845100 | AU25: 1980
B26: 1981 | C26: 1704050800 | D26: 611900 | E26: 301000 | H26: 402783969 | I26: 64609905 | J26: 63571876 | K26: 96184739 | L26: 14880361 | M26: 15348600 | P26: 169118143 | Q26: 34240700 | R26: 35213900 | U26: 19471100 | V26: 20051400 | W26: 5338856 | X26: 5308777 | Y26: 24809956 | Z26: 25360177 | AB26: 1412402938 | AC26: 84655500 | AD26: 79046150 | AE26: 204920849 | AF26: 4463700 | AG26: 3889100 | AI26: 16641594 | AJ26: 15629200 | AK26: 320200 | AL26: 323300 | AM26: 3301000 | AN26: 3659100 | AR26: 3116453738 | AS26: 85267400 | AT26: 79347150 | AU26: 1981
B27: 1982 | C27: 1744685315 | D27: 716400 | E27: 380400 | H27: 394435693 | I27: 65402918 | J27: 64299850 | K27: 91249724 | L27: 13661061 | M27: 14147800 | P27: 166246512 | Q27: 33870400 | R27: 33490900 | U27: 18196300 | V27: 18530900 | W27: 5411093 | X27: 5240860 | Y27: 23607393 | Z27: 23771760 | AB27: 1372497942 | AC27: 81456800 | AD27: 79539004 | AE27: 209030103 | AF27: 3833900 | AG27: 3641300 | AI27: 14448394 | AJ27: 13942700 | AK27: 407000 | AL27: 335200 | AM27: 3530500 | AN27: 3510100 | AR27: 3117183257 | AS27: 82173200 | AT27: 79919404 | AU27: 1982
B28: 1983 | C28: 1746986309 | D28: 1021000 | E28: 393900 | H28: 417295813 | I28: 72801489 | J28: 72790844 | K28: 101289698 | L28: 14960905 | M28: 15351530 | P28: 176427087 | Q28: 35686700 | R28: 36215298 | U28: 20508300 | V28: 21049400 | W28: 6115374 | X28: 6817205 | Y28: 26623674 | Z28: 27866605 | AB28: 1455937099 | AC28: 86277200 | AD28: 81645696 | AE28: 211827876 | AF28: 3809900 | AG28: 2999800 | AI28: 14918594 | AJ28: 13817200 | AK28: 420900 | AL28: 378800 | AM28: 3672800 | AN28: 3481800 | AR28: 3202923408 | AS28: 87298200 | AT28: 82039596 | AU28: 1983
B29: 1984 | C29: 1767329663 | D29: 1095300 | E29: 418200 | H29: 426163218 | I29: 74987014 | J29: 74596820 | K29: 104905308 | L29: 16323505 | M29: 16389730 | P29: 189058265 | Q29: 39340150 | R29: 39568200 | U29: 21420600 | V29: 21529200 | W29: 7414441 | X29: 7572500 | Y29: 28835041 | Z29: 29101700 | AB29: 1521429471 | AC29: 87171100 | AD29: 83063100 | AE29: 219379116 | AF29: 3911500 | AG29: 2739000 | AI29: 16199294 | AJ29: 14710100 | AK29: 471600 | AL29: 372200 | AM29: 3728400 | AN29: 3693000 | AR29: 3288759134 | AS29: 88266400 | AT29: 83481300 | AU29: 1984
B30: 1985 | C30: 1771469304 | D30: 1027500 | E30: 299100 | H30: 432774687 | I30: 76593289 | J30: 73978653 | K30: 108226150 | L30: 17321918 | M30: 17551766 | P30: 192052055 | Q30: 40367115 | R30: 40804800 | U30: 21631800 | V30: 21776900 | W30: 7573286 | X30: 8530190 | Y30: 29205086 | Z30: 30307090 | AB30: 1523890091 | AC30: 89902500 | AD30: 86681776 | AE30: 223394308 | AF30: 4323600 | AG30: 2649900 | AI30: 15596394 | AJ30: 14630600 | AK30: 509600 | AL30: 299800 | AM30: 3741400 | AN30: 3674600 | AR30: 3295359395 | AS30: 90930000 | AT30: 86980876 | AU30: 1985
B31: 1986 | C31: 1780537886 | D31: 923200 | E31: 321600 | H31: 447353843 | I31: 77685752 | J31: 75342140 | K31: 115088923 | L31: 18877155 | M31: 19376186 | P31: 202361443 | Q31: 43701163 | R31: 43271683 | U31: 23237915 | V31: 23316136 | W31: 8778457 | X31: 8280751 | Y31: 32016372 | Z31: 31596887 | AB31: 1592833549 | AC31: 90016073 | AD31: 86419139 | AE31: 228047707 | AF31: 4315400 | AG31: 2265500 | AI31: 17264494 | AJ31: 15577913 | AK31: 490700 | AL31: 291000 | AM31: 4085300 | AN31: 4094000 | AR31: 3373371435 | AS31: 90939273 | AT31: 86740739 | AU31: 1986
B32: 1987 | C32: 1775438121 | D32: 869500 | E32: 410000 | H32: 465614781 | I32: 82676241 | J32: 81100240 | K32: 121230988 | L32: 22268527 | M32: 22166122 | P32: 213700010 | Q32: 47419068 | R32: 46938335 | U32: 25044034 | V32: 24638191 | W32: 9823373 | X32: 8803416 | Y32: 34867407 | Z32: 33441607 | AB32: 1653670149 | AC32: 99042276 | AD32: 95450398 | AE32: 230685818 | AF32: 5002800 | AG32: 2244200 | AI32: 18462894 | AJ32: 17700590 | AK32: 493700 | AL32: 283300 | AM32: 4457900 | AN32: 3959500 | AR32: 3429108270 | AS32: 99911776 | AT32: 95860398 | AU32: 1987
B33: 1988 | C33: 1792454281 | D33: 890000 | E33: 368600 | H33: 470499077 | I33: 83855158 | J33: 85869445 | K33: 127316558 | L33: 24418747 | M33: 24929002 | P33: 226589428 | Q33: 50279345 | R33: 50842028 | U33: 25624461 | V33: 25974508 | W33: 11174308 | X33: 12973709 | Y33: 36798769 | Z33: 38948217 | AB33: 1673623822 | AC33: 100238153 | AD33: 99188705 | AE33: 230031368 | AF33: 4867000 | AG33: 1748900 | AI33: 21542794 | AJ33: 22918540 | AK33: 429200 | AL33: 293000 | AM33: 3844000 | AN33: 3112600 | AR33: 3466078103 | AS33: 101128153 | AT33: 99557305 | AU33: 1988
B34: 1989 | C34: 1801563455 | D34: 994700 | E34: 378400 | H34: 469481122 | I34: 89327912 | J34: 85062218 | K34: 129233450 | L34: 27607387 | M34: 27356249 | P34: 232199918 | Q34: 53467349 | R34: 52131595 | U34: 26020220 | V34: 26135974 | W34: 12485090 | X34: 11418966 | Y34: 38505310 | Z34: 37554940 | AB34: 1703078915 | AC34: 97883813 | AD34: 97663706 | AE34: 232737335 | AF34: 5041800 | AG34: 1896800 | AI34: 18792394 | AJ34: 25435645 | AK34: 575600 | AL34: 419600 | AM34: 4175200 | AN34: 3649700 | AR34: 3504642370 | AS34: 98878513 | AT34: 98042106 | AU34: 1989
B35: 1990 | C35: 1833083000 | D35: 838400 | E35: 489800 | H35: 463008817 | I35: 84471461 | J35: 78148505 | K35: 123777435 | L35: 27874463 | M35: 28472710 | P35: 239353243 | Q35: 55639787 | R35: 55566815 | U35: 25189577 | V35: 24936805 | W35: 13017658 | X35: 13328787 | Y35: 38207235 | Z35: 38265592 | AB35: 1709503466 | AC35: 82591148 | AD35: 83389972 | AE35: 230401237 | AI35: 20059294 | AJ35: 23645467 | AK35: 606023 | AL35: 359500 | AM35: 3404900 | AN35: 3368200 | AR35: 3542586466 | AS35: 83429548 | AT35: 83879772 | AU35: 1990
B36: 1991 | C36: 1869868731 | D36: 1005200 | E36: 583300 | H36: 418240068 | I36: 77504791 | J36: 75544654 | K36: 120470727 | L36: 27335148 | M36: 28242649 | P36: 243079992 | Q36: 57203617 | R36: 58535800 | U36: 26282433 | V36: 26575605 | W36: 14262725 | X36: 12550920 | Y36: 40545158 | Z36: 39126525 | AB36: 1569184068 | AC36: 84311149 | AD36: 90120965 | AE36: 221466442 | AI36: 22368094 | AJ36: 26088567 | AK36: 461186 | AL36: 429400 | AM36: 3767600 | AN36: 4343300 | AR36: 3439052799 | AS36: 85316349 | AT36: 90704265 | AU36: 1991
B37: 1992 | C37: 1841461249 | D37: 1334361 | E37: 1198340 | H37: 403259529 | I37: 84047245 | J37: 82858083 | K37: 124056908 | L37: 30550933 | M37: 30996491 | P37: 246614955 | Q37: 61839530 | R37: 62077411 | U37: 28168959 | V37: 29152364 | W37: 14800474 | X37: 12740998 | Y37: 42969433 | Z37: 41893362 | AB37: 1507084038 | AC37: 83587651 | AD37: 86140206 | AE37: 180503218 | AI37: 22276943 | AJ37: 25000980 | AK37: 671207 | AL37: 600570 | AM37: 4511272 | AN37: 4900776 | AR37: 3348545287 | AS37: 84922012 | AT37: 87338546 | AU37: 1992
B38: 1993 | C38: 1809956198 | D38: 1752893 | E38: 1709382 | H38: 394458052 | I38: 88529866 | J38: 88135174 | K38: 127660150 | L38: 32082087 | M38: 33801699 | P38: 252361075 | Q38: 63312548 | R38: 64788544 | U38: 28500550 | V38: 29601542 | W38: 13418898 | X38: 11960657 | Y38: 41919448 | Z38: 41562199 | AB38: 1486064913 | AC38: 76246904 | AD38: 72920758 | AE38: 172336088 | AI38: 23049877 | AJ38: 24892243 | AK38: 638993 | AL38: 599416 | AM38: 4507447 | AN38: 4999547 | AR38: 3296021111 | AS38: 77999797 | AT38: 74630140 | AU38: 1993
B39: 1994 | C39: 1802119716 | D39: 1434302 | E39: 2231208 | H39: 395896837 | I39: 97492853 | J39: 92437429 | K39: 130520208 | L39: 35434683 | M39: 36436287 | P39: 268784434 | Q39: 69620154 | R39: 72229647 | U39: 31051260 | V39: 31654074 | W39: 16550711 | X39: 15346723 | Y39: 47601971 | Z39: 47000797 | AB39: 1486410296 | AC39: 87943592 | AD39: 77838476 | AE39: 151789660 | AI39: 27094298 | AJ39: 28746776 | AK39: 626815 | AL39: 620640 | AM39: 4981790 | AN39: 5535113 | AR39: 3288530012 | AS39: 89377894 | AT39: 80069684 | AU39: 1994
B40: 1995 | C40: 1809403744 | D40: 1123643 | E40: 2090386 | H40: 390752421 | I40: 95986969 | J40: 96902431 | K40: 141210382 | L40: 38383997 | M40: 39674176 | P40: 282382193 | Q40: 69677303 | R40: 74952512 | U40: 31942439 | V40: 33582369 | W40: 18574918 | X40: 16522775 | Y40: 50517357 | Z40: 50105144 | AB40: 1527628044 | AC40: 94932145 | AD40: 88724196 | AE40: 152932762 | AI40: 30821647 | AJ40: 34035807 | AK40: 688946 | AL40: 624415 | AM40: 4742578 | AN40: 5102858 | AR40: 3337031788 | AS40: 96055788 | AT40: 90814582 | AU40: 1995
B41: 1996 | C41: 1796500652 | D41: 1493077 | E41: 2435120 | H41: 386742898 | I41: 97284615 | J41: 96913561 | K41: 141573210 | L41: 41590766 | M41: 43162282 | P41: 284467382 | Q41: 74580628 | R41: 76110147 | U41: 32447804 | V41: 33733566 | W41: 17705694 | X41: 15308943 | Y41: 50153498 | Z41: 49042509 | AB41: 1509699422 | AC41: 82900075 | AD41: 77987647 | AE41: 150128091 | AI41: 30357778 | AJ41: 31267097 | AK41: 704372 | AL41: 733648 | AM41: 4710363 | AN41: 6307251 | AR41: 3306200074 | AS41: 84393152 | AT41: 80422767 | AU41: 1996
B42: 1997 | C42: 1816477564 | D42: 1317297 | E42: 3726571 | H42: 393750973 | I42: 105371028 | J42: 99318426 | K42: 152391315 | L42: 45488822 | M42: 46689960 | P42: 301497552 | Q42: 85728959 | R42: 86658456 | U42: 34268710 | V42: 34944663 | W42: 18698613 | X42: 17317267 | Y42: 52967323 | Z42: 52261930 | AB42: 1561592418 | AC42: 91242602 | AD42: 84037275 | AE42: 171218962 | AI42: 30729290 | AJ42: 32262338 | AK42: 759949 | AL42: 675821 | AM42: 4875540 | AN42: 5335388 | AR42: 3378069982 | AS42: 92559899 | AT42: 87763846 | AU42: 1997
B43: 1998 | C43: 1810515711 | D43: 1677155 | E43: 4564103 | H43: 378443601 | I43: 101940955 | J43: 98275263 | K43: 151452236 | L43: 45960320 | M43: 47241641 | P43: 302056942 | Q43: 87216902 | R43: 89707713 | U43: 34820237 | V43: 35005113 | W43: 21340462 | X43: 18614633 | Y43: 56160699 | Z43: 53619746 | AB43: 1541566403 | AC43: 91605786 | AD43: 85875593 | AE43: 130467168 | AI43: 31832694 | AJ43: 36291762 | AK43: 884492 | AL43: 625520 | AM43: 6055760 | AN43: 8727888 | AR43: 3352082114 | AS43: 93282941 | AT43: 90439696 | AU43: 1998
B44: 1999 | C44: 1815006045 | D44: 1761127 | E44: 3436827 | H44: 387365480 | I44: 108996420 | J44: 106319434 | K44: 164909976 | L44: 50367631 | M44: 48819689 | P44: 315929525 | Q44: 95109842 | R44: 93272281 | U44: 36594245 | V44: 37098364 | W44: 23457818 | X44: 20908840 | Y44: 60052063 | Z44: 58007204 | AB44: 1588571440 | AC44: 105636024 | AD44: 98809828 | AE44: 133551154 | AI44: 30321961 | AJ44: 35970530 | AK44: 808780 | AL44: 671109 | AM44: 6486833 | AN44: 6850606 | AR44: 3403577485 | AS44: 107397151 | AT44: 102246655 | AU44: 1999
B45: 2000 | C45: 1795244627 | D45: 2085290 | E45: 3627857 | H45: 384036891 | I45: 115769126 | J45: 114197916 | K45: 178163524 | L45: 55235333 | M45: 52602395 | P45: 324606103 | Q45: 98478247 | R45: 98103540 | U45: 37781234 | V45: 38315217 | W45: 27183606 | X45: 24650544 | Y45: 64964840 | Z45: 62965761 | AB45: 1687166387 | AC45: 115265724 | AD45: 114401729 | AE45: 135140448 | AI45: 34400740 | AJ45: 40516546 | AK45: 930790 | AL45: 907697 | AM45: 6881548 | AN45: 6953883 | AR45: 3482411014 | AS45: 117351014 | AT45: 118029586 | AU45: 2000
B46: 2001 | C46: 1802548663 | D46: 2065733 | E46: 3881896 | H46: 379433546 | I46: 112765477 | J46: 113374086 | K46: 178067567 | L46: 56659653 | M46: 56446767 | P46: 318819699 | Q46: 94965214 | R46: 93501819 | U46: 39138380 | V46: 38705045 | W46: 29449890 | X46: 25312027 | Y46: 68588270 | Z46: 64017072 | AB46: 1608348593 | AC46: 115624513 | AD46: 110836724 | AE46: 134743172 | AI46: 33412331 | AJ46: 37592619 | AK46: 1010191 | AL46: 1021516 | AM46: 7325361 | AN46: 7272582 | AR46: 3410897256 | AS46: 117690246 | AT46: 114718620 | AU46: 2001
B47: 2002 | C47: 1820643807 | D47: 2543406 | E47: 3715591 | H47: 392430390 | I47: 117788296 | J47: 120837030 | K47: 195022241 | L47: 62386768 | M47: 61585516 | P47: 329504514 | Q47: 96866117 | R47: 97791551 | U47: 40344279 | V47: 40811967 | W47: 29354350 | X47: 27011733 | Y47: 69698629 | Z47: 67823700 | AB47: 1648754932 | AC47: 117999387 | AD47: 116511846 | AE47: 133823260 | AI47: 33241858 | AJ47: 38003233 | AK47: 1022834 | AL47: 1041534 | AM47: 7792703 | AN47: 7576483 | AR47: 3469398739 | AS47: 120542793 | AT47: 120227437 | AU47: 2002
B48: 2003 | C48: 1831834645 | D48: 3284780 | E48: 4356566 | H48: 399690000 | I48: 121247120 | J48: 126159335 | K48: 218786933 | L48: 65793921 | M48: 61769738 | P48: 338785165 | Q48: 103376213 | R48: 102811657 | U48: 40796737 | V48: 41774486 | W48: 33254713 | X48: 31976249 | Y48: 74051450 | Z48: 73750735 | AB48: 1690197652 | AC48: 121106021 | AD48: 115281147 | AE48: 139116184 | AI48: 34439642 | AJ48: 38253346 | AK48: 1189067 | AL48: 1257219 | AM48: 7815289 | AN48: 8468659 | AR48: 3522032297 | AS48: 124390801 | AT48: 119637713 | AU48: 2003
B49: 2004 | C49: 1836154971 | D49: 3246511 | E49: 3965512 | H49: 425403462 | I49: 135036278 | J49: 135935624 | K49: 239260925 | L49: 74656646 | M49: 73070706 | P49: 355698469 | Q49: 109879987 | R49: 111204480 | U49: 43991465 | V49: 42812856 | W49: 36716844 | X49: 36763679 | Y49: 80708309 | Z49: 79576535 | AB49: 1746194169 | AC49: 124488682 | AD49: 117525126 | AE49: 138182232 | AI49: 38098313 | AJ49: 41957830 | AK49: 1234606 | AL49: 1415631 | AM49: 10805619 | AN49: 9881675 | AR49: 3582349140 | AS49: 127735193 | AT49: 121490638 | AU49: 2004
B50: 2005 | C50: 1825331097 | D50: 3411700.7 | E50: 4328232.2 | H50: 437813366 | I50: 135832075 | J50: 137965538 | K50: 252004373 | L50: 76133058 | M50: 76945324 | P50: 365180662 | Q50: 112119812 | R50: 113246612 | U50: 45088947.7 | V50: 43074703 | W50: 38300420 | X50: 41668030 | Y50: 83389367.7 | Z50: 84742733 | AB50: 1800570769 | AC50: 133238924.2 | AD50: 129332543 | AE50: 140296727 | AI50: 40461737 | AJ50: 45031605 | AK50: 1446851 | AL50: 1510992 | AM50: 13566226 | AN50: 12599209 | AR50: 3625901866 | AS50: 136650624.9 | AT50: 133660775.2 | AU50: 2005
B51: 2006 | C51: 1834805586 | D51: 3955672 | E51: 4545139 | H51: 447464633 | I51: 134121610 | J51: 136834817 | K51: 266675003 | L51: 79758107 | M51: 81168236 | P51: 381783753 | Q51: 115041854 | R51: 114953821 | U51: 46364611.24 | V51: 46367299 | W51: 45236053 | X51: 45380411 | Y51: 91600664.24 | Z51: 91747710 | AB51: 1750333145 | AC51: 131513612 | AD51: 130334609 | AE51: 140829183 | AI51: 39602488 | AJ51: 45119382 | AK51: 1490710 | AL51: 1761645 | AM51: 13639067 | AN51: 13561999 | AR51: 3585138731 | AS51: 135469284 | AT51: 134879748 | AU51: 2006
B52: 2007 | C52: 1841194068 | D52: 3526396 | E52: 4717593 | H52: 434303500 | I52: 134138329 | J52: 133010180 | K52: 281682240 | L52: 79552554 | M52: 82954865 | P52: 392504293 | Q52: 119001221 | R52: 118427208 | U52: 46291506 | V52: 48064168 | W52: 50239078 | X52: 51382434 | Y52: 96530584 | Z52: 99446602 | AB52: 1778957557 | AC52: 138448750 | AD52: 133483975 | AE52: 143911916 | AI52: 44037120 | AJ52: 49876977 | AK52: 1547099 | AL52: 1557711 | AM52: 17485077 | AN52: 15515256 | AR52: 3620151625 | AS52: 141975146 | AT52: 138201568 | AU52: 2007
B53: 2008 | C53: 1848396612 | D53: 3633230 | E53: 4860068 | H53: 387145719 | I53: 111801070 | J53: 117990079 | K53: 268499243 | L53: 69367884 | M53: 71590866 | P53: 390240082 | Q53: 114569161 | R53: 113926437 | U53: 47241059 | V53: 48709241 | W53: 51484522 | X53: 52929055 | Y53: 98725581 | Z53: 101638296 | AB53: 1656413205 | AC53: 119124414 | AD53: 113809661 | AE53: 147673093 | AI53: 45669576 | AJ53: 53957581 | AK53: 1826485 | AL53: 1736752 | AM53: 19696954 | AN53: 16010125 | AR53: 3504809817 | AS53: 122757644 | AT53: 118669729 | AU53: 2008
B54: 2009 | C54: 1840208705 | D54: 4815548 | E54: 6228336 | H54: 345009795 | I54: 94549059 | J54: 100969141 | K54: 263797680 | L54: 56511662 | M54: 60928741 | P54: 370969384 | Q54: 101127523 | R54: 103177764.5 | U54: 46147108.3 | V54: 48493609 | W54: 53245280.06 | X54: 56615432 | Y54: 99392388.36 | Z54: 105109041 | AB54: 1556789887 | AC54: 90123305 | AD54: 91600462 | AE54: 155389494 | AI54: 43164270 | AJ54: 43499858.46 | AK54: 1939472.2 | AL54: 1910425 | AM54: 18745261 | AN54: 17456511 | AR54: 3396998592 | AS54: 94938853 | AT54: 97828798 | AU54: 2009
B55: 2010 | C55: 1864002026 | D55: 5162314.5 | E55: 6863820 | H55: 375102239 | I55: 108891799 | J55: 112502419 | K55: 283547668 | L55: 64709598.18 | M55: 66842113.4 | P55: 392378111 | Q55: 108282667 | R55: 109716092.4 | U55: 49007098.1 | V55: 51267969 | W55: 53151632.38 | X55: 55009957 | Y55: 102158730.5 | Z55: 106277926 | AB55: 1723129396 | AC55: 110899963 | AD55: 107314419 | AE55: 167706626 | AI55: 54695434.7 | AJ55: 55434731.88 | AK55: 2162427 | AL55: 1954004 | AM55: 22981698 | AN55: 20750671 | AR55: 3587131422 | AS55: 116062277.5 | AT55: 114178239 | AU55: 2010
B56: 2011 | C56: 1870970098 | D56: 5940014.17 | E56: 8055238 | H56: 388230953 | I56: 115945161 | J56: 118644152 | K56: 301450899 | L56: 68707280.31 | M56: 70183438.2 | P56: 400088926 | Q56: 108919413.5 | R56: 109983401.7 | U56: 51400210.3 | V56: 53619140 | W56: 56632711 | X56: 59805985 | Y56: 108032921.3 | Z56: 113425125 | AB56: 1799800097 | AC56: 122616592 | AD56: 118176334 | AE56: 175927642 | AI56: 58347430.06 | AJ56: 62940449.06 | AK56: 2313241 | AL56: 2085079 | AM56: 14262708 | AN56: 17158342 | AR56: 3670770195 | AS56: 128556606.2 | AT56: 126231572 | AU56: 2011
B57: 2012 | C57: 1887396983 | D57: 5957838.16 | E57: 8195270 | H57: 403710423 | I57: 113497956 | J57: 119289933 | K57: 313705348 | L57: 70730566.31 | M57: 72855733.14 | P57: 398893819 | Q57: 106238584.8 | R57: 108126769.8 | U57: 54903067.35 | V57: 55279841.65 | W57: 58810366 | X57: 59405815 | Y57: 113713433.3 | Z57: 114685656.7 | AB57: 1797678997 | AC57: 114238468 | AD57: 110923870 | AE57: 177985389 | AI57: 55943494.63 | AJ57: 58202380.34 | AK57: 2364346.25 | AL57: 2024338 | AM57: 13570509 | AN57: 6632210 | AR57: 3685075980 | AS57: 120196306.2 | AT57: 119119140 | AU57: 2012
B58: 2013 | C58: 1897823383 | D58: 6585883.58 | E58: 8603920 | H58: 420139431 | I58: 122255066 | J58: 125770404 | K58: 337578554 | L58: 72826013.4 | M58: 75025570.14 | P58: 396575104 | Q58: 107269676 | R58: 110515222.1 | U58: 56116025.94 | V58: 56533654.05 | W58: 56861736.12 | X58: 56150189 | Y58: 112977762.1 | Z58: 112683843 | AB58: 1839351118 | AC58: 128260393.1 | AD58: 126088821 | AE58: 155290530 | AI58: 61136642.2 | AJ58: 58347659.51 | AK58: 2460364.26 | AL58: 1987128 | AM58: 11667491.27 | AN58: 8251254.91 | AR58: 3737174501 | AS58: 134846276.7 | AT58: 134692741 | AU58: 2013
B59: 2014 | C59: 1900374577 | D59: 6763723 | E59: 9105194 | H59: 433449184 | I59: 128713655 | J59: 133678403 | K59: 342451328 | L59: 75774576.4 | M59: 78290211.95 | P59: 403699716 | Q59: 109866453 | R59: 112525997.7 | U59: 57295042.65 | V59: 58108406.3 | W59: 55810138.12 | X59: 55688982 | Y59: 113105180.8 | Z59: 113797388.3 | AB59: 1862018768 | AC59: 134877200.2 | AD59: 132194273 | AE59: 167501790 | AI59: 62227497 | AJ59: 62419674.77 | AK59: 2596524.26 | AL59: 2252425.1 | AM59: 12565574.92 | AN59: 9518398.45 | AR59: 3762393345 | AS59: 141640923.2 | AT59: 141299467 | AU59: 2014
B60: 2015 | C60: 1901265439 | D60: 6130562 | E60: 9575513 | H60: 446346312 | I60: 133034618 | J60: 137480481 | K60: 344606085 | L60: 77623132.27 | M60: 80420742.19 | P60: 406684484 | Q60: 108757656 | R60: 112220334 | U60: 58825180 | V60: 58809529 | W60: 57603012 | X60: 57266044 | Y60: 116428192 | Z60: 116075573 | AB60: 1853897832 | AC60: 128153388 | AD60: 123567181 | AE60: 145957277 | AI60: 62375226.03 | AJ60: 63829091 | AK60: 2550476.29 | AL60: 2344548.1 | AM60: 11829522.92 | AN60: 9176059 | AR60: 3755163271 | AS60: 134283950 | AT60: 133142694 | AU60: 2015
B61: 2016 | C61: 1927783200 | D61: 5991772 | E61: 9411103 | H61: 480698231 | I61: 144157527 | J61: 147679476 | K61: 355617556 | L61: 82257464 | M61: 85248272 | P61: 409155937 | Q61: 110864219 | R61: 113120086.7 | U61: 62037102 | V61: 62206682 | W61: 58433228 | X61: 58153508 | Y61: 120470330 | Z61: 120360190 | AB61: 1922731838 | AC61: 134017930 | AD61: 126190319 | AE61: 149549811 | AI61: 65377409.03 | AJ61: 64981735 | AK61: 2482840 | AL61: 2279980 | AM61: 9200388.82 | AN61: 7794673 | AR61: 3850515038 | AS61: 140009702 | AT61: 135601422 | AU61: 2016
B62: 2017 | C62: 1931111419 | D62: 5084778 | E62: 8474609 | H62: 500667025 | I62: 151684603 | J62: 155570294 | K62: 357790205 | L62: 89780469.27 | M62: 90713348 | P62: 415184177 | Q62: 115648637 | R62: 115829153 | U62: 64695394 | V62: 64078900 | W62: 58796963.12 | X62: 57230993 | Y62: 123492357.1 | Z62: 121309893 | AB62: 1951902608 | AC62: 132049464 | AD62: 128378355 | AE62: 150272831 | AI62: 58324661.03 | AJ62: 68418753 | AK62: 2570866 | AL62: 2482305 | AM62: 7498337.82 | AN62: 6418031 | AR62: 3883014027 | AS62: 137134242 | AT62: 136852964 | AU62: 2017
B63: 2018 | C63: 1946047851 | D63: 5626394 | E63: 7841464 | H63: 500641345 | I63: 152806907 | J63: 160486937 | K63: 358520681 | L63: 92906258.27 | M63: 93556898 | P63: 409183981 | Q63: 116638166 | R63: 117341105 | U63: 66665535 | V63: 65752483 | W63: 55846489.12 | X63: 56225864 | Y63: 122512024.1 | Z63: 121978347 | AB63: 2057732182 | AC63: 144054612 | AD63: 137882006 | AE63: 159894106 | AI63: 62388003.03 | AJ63: 75134128 | AK63: 3148679 | AL63: 2937995 | AM63: 7457533.82 | AN63: 5621996 | AR63: 4003780033 | AS63: 149681006 | AT63: 145723470 | AU63: 2018
B64: 2019 | C64: 1940263516 | D64: 5581341 | E64: 7583949 | H64: 481932398 | I64: 153603818 | J64: 158879600 | K64: 366293759 | L64: 89781342 | M64: 88339469 | P64: 404955784 | Q64: 111356914 | R64: 113839337 | U64: 66915351 | V64: 68299303 | W64: 50492001.12 | X64: 49292408 | Y64: 117407352.1 | Z64: 117591711 | AB64: 1985982613 | AC64: 140462119 | AD64: 135635591 | AE64: 159878016 | AI64: 61785570 | AJ64: 71610279 | AK64: 3003931 | AL64: 2831933 | AM64: 8478105.82 | AN64: 5992433 | AR64: 3926246129 | AS64: 146043460 | AT64: 143219540 | AU64: 2019
B65: 2020 | C65: 1926547955 | D65: 4184028 | E65: 6173050 | H65: 479969657 | I65: 144435622 | J65: 154856886 | K65: 364573951 | L65: 91320412 | M65: 88146621 | P65: 400126216 | Q65: 110822361 | R65: 111587207 | U65: 67724829 | V65: 68258794 | W65: 45700774 | X65: 44906379 | Y65: 113425603 | Z65: 113165173 | AB65: 1983575816 | AC65: 138274848 | AD65: 136261790 | AE65: 159066276 | AI65: 54786601 | AJ65: 63735496 | AK65: 2763211 | AL65: 2796078 | AM65: 8532782.82 | AN65: 5549060 | AR65: 3910123771 | AS65: 142458876 | AT65: 142434840 | AU65: 2020
B66: 2021 | C66: 1949860042 | D66: 5657325.32 | E66: 7745572.3 | H66: 493380636 | I66: 147008981 | J66: 156248939 | K66: 387930315 | L66: 99873586.27 | M66: 100492208.4 | P66: 418403343 | Q66: 114228958.9 | R66: 115594143.1 | U66: 67062099.76 | V66: 67179831.97 | W66: 45985956.8 | X66: 47572855.06 | Y66: 113048056.6 | Z66: 114752687 | AB66: 2053899967 | AC66: 142750568 | AD66: 132111760 | AE66: 162031995 | AI66: 58687060.47 | AJ66: 73316885.89 | AK66: 2969336.4 | AL66: 2824261.57 | AM66: 9029537.61 | AN66: 6669454.85 | AR66: 4003760009 | AS66: 148407893.3 | AT66: 139857332.3 | AU66: 2021
B67: 2022 | C67: 1967294351 | D67: 5507179.75 | E67: 7621190.6 | H67: 481256472 | I67: 137332783 | J67: 143104735 | K67: 375289236 | L67: 92889427.2 | M67: 94139440.57 | P67: 414094326 | Q67: 111481503.9 | R67: 111383581.6 | U67: 68180948.15 | V67: 69530584.15 | W67: 43942727.76 | X67: 45660375.69 | Y67: 112123675.9 | Z67: 115190959.8 | AB67: 2016041202 | AC67: 118580121 | AD67: 108561428 | AE67: 158239442 | AI67: 61567515.27 | AJ67: 76836622.94 | AK67: 3382180.97 | AL67: 3161080.66 | AM67: 8358047.65 | AN67: 6235389.01 | AR67: 3983335553 | AS67: 124087300.8 | AT67: 116182618.6 | AU67: 2022
B68: 2023 | Y68: 0 | Z68: 0 | AR68: 0 | AS68: 0 | AT68: 0 | AU68: 2023
B69: 2024 | Y69: 0 | Z69: 0 | AR69: 0 | AS69: 0 | AT69: 0 | AU69: 2024
B70: 2025 | Y70: 0 | Z70: 0 | AR70: 0 | AS70: 0 | AT70: 0 | AU70: 2025
B71: 2026 | Y71: 0 | Z71: 0 | AR71: =IFERROR(C71,0)+IFERROR(AB71,0) -> 0 | AS71: 0 | AT71: 0 | AU71: =B71 -> 2026
B72: 2027 | Y72: =IFERROR(U72,0)+IFERROR(W72,0) -> 0 | Z72: 0 | AR72: 0 | AS72: 0 | AT72: 0 | AU72: 2027
B73: 2028 | Y73: 0 | Z73: 0 | AR73: 0 | AS73: 0 | AT73: 0 | AU73: 2028
B74: 2029 | Y74: 0 | Z74: 0 | AR74: 0 | AS74: 0 | AT74: 0 | AU74: 2029
B75: 2030 | Y75: 0 | Z75: 0 | AR75: 0 | AS75: 0 | AT75: 0 | AU75: 2030

Sheet data_download
A1: Area List: | B1: 251 | E1: Download codes: | I1: Download data World: | M1: Download data Area:
A3: code | B3: label | C3: aggregate_type | E3: Area Code | F3: Item Code | G3: ElementCode | I3: Item-Element | J3: Year | K3: Value | M3: Item-Element | N3: Year | O3: Value | Q3: Macro parameters:
A4: 2 | B4: Afghanistan | C4: 0 | E4: =OFFSET(areaList,areaSelected,0) -> 5000 | F4: 1864 | G4: 2510 | M4: 1864-5516 | N4: 1961 | O4: 1498738466 | Q4: Start cell | R4: C6
A5: 3 | B5: Albania | C5: 0 | F5: 1872 | G5: 2610 | M5: 1864-5616 | N5: 1961 | O5: 1837900 | Q5: Item row | R5: 3
A6: 4 | B6: Algeria | C6: 0 | F6: 1873 | G6: 2910 | M6: 1864-5916 | N6: 1961 | O6: 1573000 | Q6: Element row | R6: 4
A7: 5 | B7: American Samoa | C7: 0 | F7: 1876 | M7: 1864-5516 | N7: 1962 | O7: 1491096482 | Q7: Year column | R7: B
A8: 6 | B8: Andorra | C8: 0 | F8: 1875 | M8: 1864-5616 | N8: 1962 | O8: 1891850 | Q8: Last column | R8: AN
A9: 7 | B9: Angola | C9: 0 | F9: 1669 | M9: 1864-5916 | N9: 1962 | O9: 1642000
A10: 258 | B10: Anguilla | C10: 0 | F10: 1865 | M10: 1864-5516 | N10: 1963 | O10: 1501308865
A11: 30 | B11: Antarctica | C11: 0 | F11: 1871 | M11: 1864-5616 | N11: 1963 | O11: 2338800
A12: 8 | B12: Antigua and Barbuda | C12: 0 | F12: 1619 | M12: 1864-5916 | N12: 1963 | O12: 2004899
A13: 9 | B13: Argentina | C13: 0 | F13: 1630 | M13: 1864-5516 | N13: 1964 | O13: 1513488178
A14: 1 | B14: Armenia | C14: 0 | F14: 1620 | M14: 1864-5616 | N14: 1964 | O14: 2424767
A15: 22 | B15: Aruba | C15: 0 | M15: 1864-5916 | N15: 1964 | O15: 1575500
A16: 10 | B16: Australia | C16: 0 | M16: 1864-5516 | N16: 1965 | O16: 1514171639
A17: 11 | B17: Austria | C17: 0 | M17: 1864-5616 | N17: 1965 | O17: 1709800
A18: 52 | B18: Azerbaijan | C18: 0 | M18: 1864-5916 | N18: 1965 | O18: 1227867
A19: 12 | B19: Bahamas | C19: 0 | M19: 1864-5516 | N19: 1966 | O19: 1526347281
A20: 13 | B20: Bahrain | C20: 0 | M20: 1864-5616 | N20: 1966 | O20: 1544300
A21: 16 | B21: Bangladesh | C21: 0 | M21: 1864-5916 | N21: 1966 | O21: 931600
A22: 14 | B22: Barbados | C22: 0 | M22: 1864-5516 | N22: 1967 | O22: 1528549182
A23: 57 | B23: Belarus | C23: 0 | M23: 1864-5616 | N23: 1967 | O23: 1318600
A24: 255 | B24: Belgium | C24: 0 | M24: 1864-5916 | N24: 1967 | O24: 1076100
A25: 15 | B25: Belgium-Luxembourg | C25: 0 | M25: 1864-5516 | N25: 1968 | O25: 1530931056
A26: 23 | B26: Belize | C26: 0 | M26: 1864-5616 | N26: 1968 | O26: 1038300
A27: 53 | B27: Benin | C27: 0 | M27: 1864-5916 | N27: 1968 | O27: 1114467
A28: 17 | B28: Bermuda | C28: 0 | M28: 1864-5516 | N28: 1969 | O28: 1528621592
A29: 18 | B29: Bhutan | C29: 0 | M29: 1864-5616 | N29: 1969 | O29: 1315800
A30: 19 | B30: Bolivia (Plurinational State of) | C30: 0 | M30: 1864-5916 | N30: 1969 | O30: 1300300
A31: 80 | B31: Bosnia and Herzegovina | C31: 0 | M31: 1864-5516 | N31: 1970 | O31: 1542387501
A32: 20 | B32: Botswana | C32: 0 | M32: 1864-5616 | N32: 1970 | O32: 1110200
A33: 21 | B33: Brazil | C33: 0 | M33: 1864-5916 | N33: 1970 | O33: 1368900
A34: 239 | B34: British Virgin Islands | C34: 0 | M34: 1864-5516 | N34: 1971 | O34: 1550398053
A35: 26 | B35: Brunei Darussalam | C35: 0 | M35: 1864-5616 | N35: 1971 | O35: 998000
A36: 27 | B36: Bulgaria | C36: 0 | M36: 1864-5916 | N36: 1971 | O36: 1054400
A37: 233 | B37: Burkina Faso | C37: 0 | M37: 1864-5516 | N37: 1972 | O37: 1564222347
A38: 29 | B38: Burundi | C38: 0 | M38: 1864-5616 | N38: 1972 | O38: 867900
A39: 35 | B39: Cabo Verde | C39: 0 | M39: 1864-5916 | N39: 1972 | O39: 893900
A40: 115 | B40: Cambodia | C40: 0 | M40: 1864-5516 | N40: 1973 | O40: 1565001717
A41: 32 | B41: Cameroon | C41: 0 | M41: 1864-5616 | N41: 1973 | O41: 1409400
A42: 33 | B42: Canada | C42: 0 | M42: 1864-5916 | N42: 1973 | O42: 1108800
A43: 36 | B43: Cayman Islands | C43: 0 | M43: 1864-5516 | N43: 1974 | O43: 1584875554
A44: 37 | B44: Central African Republic | C44: 0 | M44: 1864-5616 | N44: 1974 | O44: 1544800
A45: 39 | B45: Chad | C45: 0 | M45: 1864-5916 | N45: 1974 | O45: 1022800
A46: 259 | B46: Channel Islands | C46: 0 | M46: 1864-5516 | N46: 1975 | O46: 1591627605
A47: 40 | B47: Chile | C47: 0 | M47: 1864-5616 | N47: 1975 | O47: 1417700
A48: 351 | B48: China | C48: 0 | M48: 1864-5916 | N48: 1975 | O48: 801400
A49: 96 | B49: China, Hong Kong SAR | C49: 0 | M49: 1864-5516 | N49: 1976 | O49: 1614684617
A50: 128 | B50: China, Macao SAR | C50: 0 | M50: 1864-5616 | N50: 1976 | O50: 1275500
A51: 41 | B51: China, mainland | C51: 0 | M51: 1864-5916 | N51: 1976 | O51: 539400
A52: 214 | B52: China, Taiwan Province of | C52: 0 | M52: 1864-5516 | N52: 1977 | O52: 1622780443
A53: 42 | B53: Christmas Island | C53: 0 | M53: 1864-5616 | N53: 1977 | O53: 1336341
A54: 43 | B54: Cocos (Keeling) Islands | C54: 0 | M54: 1864-5916 | N54: 1977 | O54: 794426
A55: 44 | B55: Colombia | C55: 0 | M55: 1864-5516 | N55: 1978 | O55: 1632902929
A56: 45 | B56: Comoros | C56: 0 | M56: 1864-5616 | N56: 1978 | O56: 1050800
A57: 46 | B57: Congo | C57: 0 | M57: 1864-5916 | N57: 1978 | O57: 379000
A58: 47 | B58: Cook Islands | C58: 0 | M58: 1864-5516 | N58: 1979 | O58: 1662009854
A59: 48 | B59: Costa Rica | C59: 0 | M59: 1864-5616 | N59: 1979 | O59: 1077500
A60: 107 | B60: Côte d'Ivoire | C60: 0 | M60: 1864-5916 | N60: 1979 | O60: 477000
A61: 98 | B61: Croatia | C61: 0 | M61: 1864-5516 | N61: 1980 | O61: 1682302640
A62: 49 | B62: Cuba | C62: 0 | M62: 1864-5616 | N62: 1980 | O62: 1058600
A63: 279 | B63: Curaçao | C63: 0 | M63: 1864-5916 | N63: 1980 | O63: 531600
A64: 50 | B64: Cyprus | C64: 0 | M64: 1864-5516 | N64: 1981 | O64: 1704050800
A65: 167 | B65: Czechia | C65: 0 | M65: 1864-5616 | N65: 1981 | O65: 611900
A66: 51 | B66: Czechoslovakia | C66: 0 | M66: 1864-5916 | N66: 1981 | O66: 301000
A67: 116 | B67: Democratic People's Republic of Korea | C67: 0 | M67: 1864-5516 | N67: 1982 | O67: 1744685315
A68: 250 | B68: Democratic Republic of the Congo | C68: 0 | M68: 1864-5616 | N68: 1982 | O68: 716400
A69: 54 | B69: Denmark | C69: 0 | M69: 1864-5916 | N69: 1982 | O69: 380400
A70: 72 | B70: Djibouti | C70: 0 | M70: 1864-5516 | N70: 1983 | O70: 1746986309
A71: 55 | B71: Dominica | C71: 0 | M71: 1864-5616 | N71: 1983 | O71: 1021000
A72: 56 | B72: Dominican Republic | C72: 0 | M72: 1864-5916 | N72: 1983 | O72: 393900
A73: 58 | B73: Ecuador | C73: 0 | M73: 1864-5516 | N73: 1984 | O73: 1767329663
A74: 59 | B74: Egypt | C74: 0 | M74: 1864-5616 | N74: 1984 | O74: 1095300
A75: 60 | B75: El Salvador | C75: 0 | M75: 1864-5916 | N75: 1984 | O75: 418200
A76: 61 | B76: Equatorial Guinea | C76: 0 | M76: 1864-5516 | N76: 1985 | O76: 1771469304
A77: 178 | B77: Eritrea | C77: 0 | M77: 1864-5616 | N77: 1985 | O77: 1027500
A78: 63 | B78: Estonia | C78: 0 | M78: 1864-5916 | N78: 1985 | O78: 299100
A79: 209 | B79: Eswatini | C79: 0 | M79: 1864-5516 | N79: 1986 | O79: 1780537886
A80: 238 | B80: Ethiopia | C80: 0 | M80: 1864-5616 | N80: 1986 | O80: 923200
A81: 62 | B81: Ethiopia PDR | C81: 0 | M81: 1864-5916 | N81: 1986 | O81: 321600
A82: 65 | B82: Falkland Islands (Malvinas) | C82: 0 | M82: 1864-5516 | N82: 1987 | O82: 1775438121
A83: 64 | B83: Faroe Islands | C83: 0 | M83: 1864-5616 | N83: 1987 | O83: 869500
A84: 66 | B84: Fiji | C84: 0 | M84: 1864-5916 | N84: 1987 | O84: 410000
A85: 67 | B85: Finland | C85: 0 | M85: 1864-5516 | N85: 1988 | O85: 1792454281
A86: 68 | B86: France | C86: 0 | M86: 1864-5616 | N86: 1988 | O86: 890000
A87: 69 | B87: French Guiana | C87: 0 | M87: 1864-5916 | N87: 1988 | O87: 368600
A88: 70 | B88: French Polynesia | C88: 0 | M88: 1864-5516 | N88: 1989 | O88: 1801563455
A89: 71 | B89: French Southern Territories | C89: 0 | M89: 1864-5616 | N89: 1989 | O89: 994700
A90: 74 | B90: Gabon | C90: 0 | M90: 1864-5916 | N90: 1989 | O90: 378400
A91: 75 | B91: Gambia | C91: 0 | M91: 1864-5516 | N91: 1990 | O91: 1833083000
A92: 73 | B92: Georgia | C92: 0 | M92: 1864-5616 | N92: 1990 | O92: 838400
A93: 79 | B93: Germany | C93: 0 | M93: 1864-5916 | N93: 1990 | O93: 489800
A94: 81 | B94: Ghana | C94: 0 | M94: 1864-5516 | N94: 1991 | O94: 1869868731
A95: 82 | B95: Gibraltar | C95: 0 | M95: 1864-5616 | N95: 1991 | O95: 1005200
A96: 84 | B96: Greece | C96: 0 | M96: 1864-5916 | N96: 1991 | O96: 583300
A97: 85 | B97: Greenland | C97: 0 | M97: 1864-5516 | N97: 1992 | O97: 1841461249
A98: 86 | B98: Grenada | C98: 0 | M98: 1864-5616 | N98: 1992 | O98: 1334361
A99: 87 | B99: Guadeloupe | C99: 0 | M99: 1864-5916 | N99: 1992 | O99: 1198340
A100: 88 | B100: Guam | C100: 0 | M100: 1864-5516 | N100: 1993 | O100: 1809956198
A101: 89 | B101: Guatemala | C101: 0 | M101: 1864-5616 | N101: 1993 | O101: 1752893
A102: 90 | B102: Guinea | C102: 0 | M102: 1864-5916 | N102: 1993 | O102: 1709382
A103: 175 | B103: Guinea-Bissau | C103: 0 | M103: 1864-5516 | N103: 1994 | O103: 1802119716
A104: 91 | B104: Guyana | C104: 0 | M104: 1864-5616 | N104: 1994 | O104: 1434302
A105: 93 | B105: Haiti | C105: 0 | M105: 1864-5916 | N105: 1994 | O105: 2231208
A106: 94 | B106: Holy See | C106: 0 | M106: 1864-5516 | N106: 1995 | O106: 1809403744
A107: 95 | B107: Honduras | C107: 0 | M107: 1864-5616 | N107: 1995 | O107: 1123643
A108: 97 | B108: Hungary | C108: 0 | M108: 1864-5916 | N108: 1995 | O108: 2090386
A109: 99 | B109: Iceland | C109: 0 | M109: 1864-5516 | N109: 1996 | O109: 1796500652
A110: 100 | B110: India | C110: 0 | M110: 1864-5616 | N110: 1996 | O110: 1493077
A111: 101 | B111: Indonesia | C111: 0 | M111: 1864-5916 | N111: 1996 | O111: 2435120
A112: 102 | B112: Iran (Islamic Republic of) | C112: 0 | M112: 1864-5516 | N112: 1997 | O112: 1816477564
A113: 103 | B113: Iraq | C113: 0 | M113: 1864-5616 | N113: 1997 | O113: 1317297
A114: 104 | B114: Ireland | C114: 0 | M114: 1864-5916 | N114: 1997 | O114: 3726571
A115: 264 | B115: Isle of Man | C115: 0 | M115: 1864-5516 | N115: 1998 | O115: 1810515711
A116: 105 | B116: Israel | C116: 0 | M116: 1864-5616 | N116: 1998 | O116: 1677155
A117: 106 | B117: Italy | C117: 0 | M117: 1864-5916 | N117: 1998 | O117: 4564103
A118: 109 | B118: Jamaica | C118: 0 | M118: 1864-5516 | N118: 1999 | O118: 1815006045
A119: 110 | B119: Japan | C119: 0 | M119: 1864-5616 | N119: 1999 | O119: 1761127
A120: 112 | B120: Jordan | C120: 0 | M120: 1864-5916 | N120: 1999 | O120: 3436827
A121: 108 | B121: Kazakhstan | C121: 0 | M121: 1864-5516 | N121: 2000 | O121: 1795244627
A122: 114 | B122: Kenya | C122: 0 | M122: 1864-5616 | N122: 2000 | O122: 2085290
A123: 83 | B123: Kiribati | C123: 0 | M123: 1864-5916 | N123: 2000 | O123: 3627857
A124: 118 | B124: Kuwait | C124: 0 | M124: 1864-5516 | N124: 2001 | O124: 1802548663
A125: 113 | B125: Kyrgyzstan | C125: 0 | M125: 1864-5616 | N125: 2001 | O125: 2065733
A126: 120 | B126: Lao People's Democratic Republic | C126: 0 | M126: 1864-5916 | N126: 2001 | O126: 3881896
A127: 119 | B127: Latvia | C127: 0 | M127: 1864-5516 | N127: 2002 | O127: 1820643807
A128: 121 | B128: Lebanon | C128: 0 | M128: 1864-5616 | N128: 2002 | O128: 2543406
A129: 122 | B129: Lesotho | C129: 0 | M129: 1864-5916 | N129: 2002 | O129: 3715591
A130: 123 | B130: Liberia | C130: 0 | M130: 1864-5516 | N130: 2003 | O130: 1831834645
A131: 124 | B131: Libya | C131: 0 | M131: 1864-5616 | N131: 2003 | O131: 3284780
A132: 125 | B132: Liechtenstein | C132: 0 | M132: 1864-5916 | N132: 2003 | O132: 4356566
A133: 126 | B133: Lithuania | C133: 0 | M133: 1864-5516 | N133: 2004 | O133: 1836154971
A134: 256 | B134: Luxembourg | C134: 0 | M134: 1864-5616 | N134: 2004 | O134: 3246511
A135: 129 | B135: Madagascar | C135: 0 | M135: 1864-5916 | N135: 2004 | O135: 3965512
A136: 130 | B136: Malawi | C136: 0 | M136: 1864-5516 | N136: 2005 | O136: 1825331097
A137: 131 | B137: Malaysia | C137: 0 | M137: 1864-5616 | N137: 2005 | O137: 3411700.7
A138: 132 | B138: Maldives | C138: 0 | M138: 1864-5916 | N138: 2005 | O138: 4328232.2
A139: 133 | B139: Mali | C139: 0 | M139: 1864-5516 | N139: 2006 | O139: 1834805586
A140: 134 | B140: Malta | C140: 0 | M140: 1864-5616 | N140: 2006 | O140: 3955672
A141: 127 | B141: Marshall Islands | C141: 0 | M141: 1864-5916 | N141: 2006 | O141: 4545139
A142: 135 | B142: Martinique | C142: 0 | M142: 1864-5516 | N142: 2007 | O142: 1841194068
A143: 136 | B143: Mauritania | C143: 0 | M143: 1864-5616 | N143: 2007 | O143: 3526396
A144: 137 | B144: Mauritius | C144: 0 | M144: 1864-5916 | N144: 2007 | O144: 4717593
A145: 270 | B145: Mayotte | C145: 0 | M145: 1864-5516 | N145: 2008 | O145: 1848396612
A146: 138 | B146: Mexico | C146: 0 | M146: 1864-5616 | N146: 2008 | O146: 3633230
A147: 145 | B147: Micronesia (Federated States of) | C147: 0 | M147: 1864-5916 | N147: 2008 | O147: 4860068
A148: 140 | B148: Monaco | C148: 0 | M148: 1864-5516 | N148: 2009 | O148: 1840208705
A149: 141 | B149: Mongolia | C149: 0 | M149: 1864-5616 | N149: 2009 | O149: 4815548
A150: 273 | B150: Montenegro | C150: 0 | M150: 1864-5916 | N150: 2009 | O150: 6228336
A151: 142 | B151: Montserrat | C151: 0 | M151: 1864-5516 | N151: 2010 | O151: 1864002026
A152: 143 | B152: Morocco | C152: 0 | M152: 1864-5616 | N152: 2010 | O152: 5162314.5
A153: 144 | B153: Mozambique | C153: 0 | M153: 1864-5916 | N153: 2010 | O153: 6863820
A154: 28 | B154: Myanmar | C154: 0 | M154: 1864-5516 | N154: 2011 | O154: 1870970098
A155: 147 | B155: Namibia | C155: 0 | M155: 1864-5616 | N155: 2011 | O155: 5940014.17
A156: 148 | B156: Nauru | C156: 0 | M156: 1864-5916 | N156: 2011 | O156: 8055238
A157: 149 | B157: Nepal | C157: 0 | M157: 1864-5516 | N157: 2012 | O157: 1887396983
A158: 150 | B158: Netherlands (Kingdom of the) | C158: 0 | M158: 1864-5616 | N158: 2012 | O158: 5957838.16
A159: 151 | B159: Netherlands Antilles (former) | C159: 0 | M159: 1864-5916 | N159: 2012 | O159: 8195270
A160: 153 | B160: New Caledonia | C160: 0 | M160: 1864-5516 | N160: 2013 | O160: 1897823383
A161: 156 | B161: New Zealand | C161: 0 | M161: 1864-5616 | N161: 2013 | O161: 6585883.58
A162: 157 | B162: Nicaragua | C162: 0 | M162: 1864-5916 | N162: 2013 | O162: 8603920
A163: 158 | B163: Niger | C163: 0 | M163: 1864-5516 | N163: 2014 | O163: 1900374577
A164: 159 | B164: Nigeria | C164: 0 | M164: 1864-5616 | N164: 2014 | O164: 6763723
A165: 160 | B165: Niue | C165: 0 | M165: 1864-5916 | N165: 2014 | O165: 9105194
A166: 161 | B166: Norfolk Island | C166: 0 | M166: 1864-5516 | N166: 2015 | O166: 1901265439
A167: 154 | B167: North Macedonia | C167: 0 | M167: 1864-5616 | N167: 2015 | O167: 6130562
A168: 163 | B168: Northern Mariana Islands | C168: 0 | M168: 1864-5916 | N168: 2015 | O168: 9575513
A169: 162 | B169: Norway | C169: 0 | M169: 1864-5516 | N169: 2016 | O169: 1927783200
A170: 221 | B170: Oman | C170: 0 | M170: 1864-5616 | N170: 2016 | O170: 5991772
A171: 164 | B171: Pacific Islands Trust Territory | C171: 0 | M171: 1864-5916 | N171: 2016 | O171: 9411103
A172: 165 | B172: Pakistan | C172: 0 | M172: 1864-5516 | N172: 2017 | O172: 1931111419
A173: 180 | B173: Palau | C173: 0 | M173: 1864-5616 | N173: 2017 | O173: 5084778
A174: 299 | B174: Palestine | C174: 0 | M174: 1864-5916 | N174: 2017 | O174: 8474609
A175: 166 | B175: Panama | C175: 0 | M175: 1864-5516 | N175: 2018 | O175: 1946047851
A176: 168 | B176: Papua New Guinea | C176: 0 | M176: 1864-5616 | N176: 2018 | O176: 5626394
A177: 169 | B177: Paraguay | C177: 0 | M177: 1864-5916 | N177: 2018 | O177: 7841464
A178: 170 | B178: Peru | C178: 0 | M178: 1864-5516 | N178: 2019 | O178: 1940263516
A179: 171 | B179: Philippines | C179: 0 | M179: 1864-5616 | N179: 2019 | O179: 5581341
A180: 172 | B180: Pitcairn | C180: 0 | M180: 1864-5916 | N180: 2019 | O180: 7583949
A181: 173 | B181: Poland | C181: 0 | M181: 1864-5516 | N181: 2020 | O181: 1926547955
A182: 174 | B182: Portugal | C182: 0 | M182: 1864-5616 | N182: 2020 | O182: 4184028
A183: 177 | B183: Puerto Rico | C183: 0 | M183: 1864-5916 | N183: 2020 | O183: 6173050
A184: 179 | B184: Qatar | C184: 0 | M184: 1864-5516 | N184: 2021 | O184: 1949860042
A185: 117 | B185: Republic of Korea | C185: 0 | M185: 1864-5616 | N185: 2021 | O185: 5657325.32
A186: 146 | B186: Republic of Moldova | C186: 0 | M186: 1864-5916 | N186: 2021 | O186: 7745572.3
A187: 182 | B187: Réunion | C187: 0 | M187: 1864-5516 | N187: 2022 | O187: 1967294351
A188: 183 | B188: Romania | C188: 0 | M188: 1864-5616 | N188: 2022 | O188: 5507179.75
A189: 185 | B189: Russian Federation | C189: 0 | M189: 1864-5916 | N189: 2022 | O189: 7621190.6
A190: 184 | B190: Rwanda | C190: 0 | M190: 1865-5516 | N190: 1961 | O190: 1017832423
A191: 187 | B191: Saint Helena, Ascension and Tristan da Cunha | C191: 0 | M191: 1865-5616 | N191: 1961 | O191: 37998500
A192: 188 | B192: Saint Kitts and Nevis | C192: 0 | M192: 1865-5916 | N192: 1961 | O192: 38160300
A193: 189 | B193: Saint Lucia | C193: 0 | M193: 1865-5516 | N193: 1962 | O193: 1036279939
A194: 281 | B194: Saint Martin (French part) | C194: 0 | M194: 1865-5616 | N194: 1962 | O194: 39147600
A195: 190 | B195: Saint Pierre and Miquelon | C195: 0 | M195: 1865-5916 | N195: 1962 | O195: 38114000
A196: 191 | B196: Saint Vincent and the Grenadines | C196: 0 | M196: 1865-5516 | N196: 1963 | O196: 1049915415
A197: 244 | B197: Samoa | C197: 0 | M197: 1865-5616 | N197: 1963 | O197: 41326203
A198: 192 | B198: San Marino | C198: 0 | M198: 1865-5916 | N198: 1963 | O198: 42745300
A199: 193 | B199: Sao Tome and Principe | C199: 0 | M199: 1865-5516 | N199: 1964 | O199: 1110941115
A200: 194 | B200: Saudi Arabia | C200: 0 | M200: 1865-5616 | N200: 1964 | O200: 45225801
A201: 195 | B201: Senegal | C201: 0 | M201: 1865-5916 | N201: 1964 | O201: 47179400
... 1778 more rows

Sheet world_pivot
A1: World
B2: 1865-5516 | C2: 1865-5616 | D2: 1865-5916 | E2: 1871-5516 | F2: 1871-5616 | G2: 1871-5916 | H2: 1630-5510 | I2: 1630-5610 | J2: 1630-5910 | K2: 1619-5516 | L2: 1619-5616 | M2: 1619-5916 | N2: 1620-5516 | O2: 1620-5616 | P2: 1620-5916 | Q2: 1872-5516 | R2: 1872-5616 | S2: 1872-5916 | T2: 1873-5516 | U2: 1873-5616 | V2: 1873-5916 | W2: 1875-5510 | X2: 1875-5610 | Y2: 1875-5910 | Z2: 1669-5510 | AA2: 1669-5610 | AB2: 1669-5910 | AC2: 1876-5510 | AD2: 1876-5610 | AE2: 1876-5910 | AF2: (blank) | AG2: 1864-5516 | AH2: 1864-5616 | AI2: 1864-5916
A3: 1961 | B3: 1017832423 | C3: 37998500 | D3: 38160300 | E3: 167496000 | F3: 4318300 | G3: 5045800 | H3: 16450614 | I3: 295400 | J3: 185100 | O3: 303700 | P3: 330800 | Q3: 323575399 | R3: 38219438 | S3: 37778684 | T3: 25134700 | U3: 2714803 | V3: 2761100 | W3: 61548400 | X3: 2520900 | Y3: 2772600 | Z3: 15383200 | AC3: 77075896 | AD3: 12792070 | AE3: 12697758 | AG3: 1498738466 | AH3: 1837900 | AI3: 1573000
A4: 1962 | B4: 1036279939 | C4: 39147600 | D4: 38114000 | E4: 165326008 | F4: 4262300 | G4: 4915600 | H4: 16668433 | I4: 286400 | J4: 199150 | O4: 309300 | P4: 454600 | Q4: 326104720 | R4: 39550344 | S4: 39193810 | T4: 28135300 | U4: 3101929 | V4: 3111100 | W4: 63696800 | X4: 2542000 | Y4: 2817500 | Z4: 15680000 | AC4: 80388600 | AD4: 12825783 | AE4: 12732850 | AG4: 1491096482 | AH4: 1891850 | AI4: 1642000
A5: 1963 | B5: 1049915415 | C5: 41326203 | D5: 42745300 | E5: 173467000 | F5: 3932600 | G5: 4560900 | H5: 16791879 | I5: 251858 | J5: 202800 | O5: 316200 | P5: 534500 | Q5: 335095362 | R5: 42021465 | S5: 42008071 | T5: 32545800 | U5: 3469466 | V5: 3514720 | W5: 68525400 | X5: 3031700 | Y5: 2990100 | Z5: 15849000 | AC5: 85274024 | AD5: 13406264 | AE5: 13615982 | AG5: 1501308865 | AH5: 2338800 | AI5: 2004899
A6: 1964 | B6: 1110941115 | C6: 45225801 | D6: 47179400 | E6: 175621500 | F6: 3817200 | G6: 4233700 | H6: 17341958 | I6: 247600 | J6: 160464 | L6: 1326394 | M6: 1219100 | O6: 1221300 | P6: 1391200 | Q6: 354361463 | R6: 46029502 | S6: 45889304 | T6: 35961200 | U6: 4240470 | V6: 4239923 | W6: 73567000 | X6: 3335555 | Y6: 3295400 | Z6: 17367000 | AC6: 91045000 | AD6: 15136397 | AE6: 15354356 | AG6: 1513488178 | AH6: 2424767 | AI6: 1575500
A7: 1965 | B7: 1131572447 | C7: 49034200 | D7: 50547500 | E7: 212569108 | F7: 3980800 | G7: 4010800 | H7: 17650825 | I7: 263900 | J7: 190800 | L7: 1293294 | M7: 1160000 | O7: 1663100 | P7: 1897500 | Q7: 358376265 | R7: 45984719 | S7: 45130845 | T7: 39913800 | U7: 4705695 | V7: 4697719 | W7: 77557400 | X7: 3332463 | Y7: 3230000 | Z7: 17620000 | AC7: 96525604 | AD7: 16098700 | AE7: 16441056 | AG7: 1514171639 | AH7: 1709800 | AI7: 1227867
A8: 1966 | B8: 1153134939 | C8: 54012500 | D8: 55566700 | E8: 216099508 | F8: 3433500 | G8: 4075300 | H8: 18014882 | I8: 220100 | J8: 186900 | L8: 1777894 | M8: 1455300 | O8: 1971900 | P8: 2157700 | Q8: 359031622 | R8: 44414765 | S8: 44563987 | T8: 48960182 | U8: 5461447 | V8: 5857755 | W8: 82857600 | X8: 3599400 | Y8: 3148000 | Z8: 19406000 | AC8: 103843296 | AD8: 17816070 | AE8: 18150300 | AG8: 1526347281 | AH8: 1544300 | AI8: 931600
A9: 1967 | B9: 1182079523 | C9: 59048200 | D9: 60532900 | E9: 209297500 | F9: 3394100 | G9: 3826000 | H9: 18368615 | I9: 213900 | J9: 217500 | L9: 2870594 | M9: 2572700 | O9: 2248600 | P9: 2267700 | Q9: 363784349 | R9: 45246477 | S9: 44429336 | T9: 51740568 | U9: 6078082 | V9: 6434708 | W9: 84815800 | X9: 3409500 | Y9: 3088400 | Z9: 19739000 | AC9: 105022896 | AD9: 17987520 | AE9: 18225443 | AG9: 1528549182 | AH9: 1318600 | AI9: 1076100
A10: 1968 | B10: 1205667615 | C10: 67227400 | D10: 69099200 | E10: 212188700 | F10: 3384900 | G10: 3886700 | H10: 18782530 | I10: 208600 | J10: 206900 | L10: 5428794 | M10: 3860300 | O10: 2319000 | P10: 2341500 | Q10: 374854643 | R10: 50047604 | S10: 49196757 | T10: 58337450 | U10: 7304758 | V10: 7685838 | W10: 91640700 | X10: 14740240 | Y10: 14960000 | Z10: 21129000 | AC10: 113115596 | AD10: 19630110 | AE10: 19884500 | AG10: 1530931056 | AH10: 1038300 | AI10: 1114467
A11: 1969 | B11: 1234489039 | C11: 72596508 | D11: 75261800 | E11: 205245500 | F11: 3694400 | G11: 3986900 | H11: 19162486 | I11: 231333 | J11: 261000 | L11: 6011494 | M11: 4796400 | O11: 2081600 | P11: 1933600 | Q11: 384830378 | R11: 50672764 | S11: 49774610 | T11: 62547517 | U11: 8241636 | V11: 8442646 | W11: 97909800 | X11: 16114300 | Y11: 16198000 | Z11: 22428000 | AC11: 122071408 | AD11: 22096800 | AE11: 22386411 | AG11: 1528621592 | AH11: 1315800 | AI11: 1300300
A12: 1970 | B12: 1276437807 | C12: 83078816 | D12: 85647200 | E12: 202433700 | F12: 4334000 | G12: 3992200 | H12: 19601941 | I12: 264058 | J12: 231700 | L12: 7373794 | M12: 5774400 | O12: 2468600 | P12: 2186500 | Q12: 389090528 | R12: 52670708 | S12: 51672867 | T12: 66576465 | U12: 9010709 | V12: 9095566 | W12: 101649500 | X12: 16571100 | Y12: 16916900 | Z12: 30758000 | AA12: 1791164 | AB12: 1779000 | AC12: 125583135 | AD12: 22812520 | AE12: 23204710 | AG12: 1542387501 | AH12: 1110200 | AI12: 1368900
A13: 1971 | B13: 1296442731 | C13: 81127204 | D13: 82069300 | E13: 202899600 | F13: 4762300 | G13: 3620600 | H13: 20055071 | I13: 261000 | J13: 201700 | L13: 5344994 | M13: 5200000 | O13: 2679500 | P13: 2570700 | Q13: 401472202 | R13: 53726144 | S13: 53535034 | T13: 75019559 | U13: 9390391 | V13: 9909530 | W13: 101373200 | X13: 14543700 | Y13: 14925500 | Z13: 31320000 | AA13: 1616964 | AB13: 1628000 | AC13: 127507010 | AD13: 23951400 | AE13: 23569708 | AG13: 1550398053 | AH13: 998000 | AI13: 1054400
A14: 1972 | B14: 1289994563 | C14: 86017404 | D14: 85370600 | E14: 199984300 | F14: 4824300 | G14: 3438900 | H14: 20797891 | I14: 236700 | J14: 153000 | L14: 7084894 | M14: 6664900 | O14: 2862400 | P14: 2569900 | Q14: 404787077 | R14: 59481894 | S14: 58863862 | T14: 84220993 | U14: 11614471 | V14: 11415749 | W14: 107172600 | X14: 16319300 | Y14: 16450300 | Z14: 34278000 | AA14: 2048000 | AB14: 1879000 | AC14: 136674800 | AD14: 25249100 | AE14: 25310411 | AG14: 1564222347 | AH14: 867900 | AI14: 893900
A15: 1973 | B15: 1359410631 | C15: 99258308 | D15: 101173300 | E15: 202944300 | F15: 5271800 | G15: 3699700 | H15: 21172785 | I15: 269850 | J15: 179200 | L15: 10260694 | M15: 9313900 | O15: 3415200 | P15: 3065000 | Q15: 413430143 | R15: 66219869 | S15: 64206662 | T15: 91884567 | U15: 14431912 | V15: 13366367 | W15: 113399600 | X15: 17977400 | Y15: 18491100 | Z15: 38660000 | AA15: 2571400 | AB15: 2434000 | AC15: 147362100 | AD15: 27118690 | AE15: 27506200 | AG15: 1565001717 | AH15: 1409400 | AI15: 1108800
A16: 1974 | B16: 1350684331 | C16: 96761316 | D16: 94260723 | E16: 200500300 | F16: 5911300 | G16: 4308100 | H16: 21996391 | I16: 271050 | J16: 234700 | L16: 11497694 | M16: 10761500 | N16: 7700 | O16: 3633100 | P16: 3385500 | Q16: 398128315 | R16: 58104294 | S16: 55323858 | T16: 84554139 | U16: 12193554 | V16: 11563455 | W16: 116651400 | X16: 18825400 | Y16: 19141500 | Z16: 39313000 | AA16: 3585712 | AB16: 3422735 | AC16: 149506908 | AD16: 29183658 | AE16: 29998783 | AG16: 1584875554 | AH16: 1544800 | AI16: 1022800
A17: 1975 | B17: 1294123107 | C17: 82755100 | D17: 85130950 | E17: 206013300 | F17: 4387000 | G17: 6700500 | H17: 22382885 | I17: 266150 | J17: 237000 | L17: 10025594 | M17: 10005400 | N17: 6400 | O17: 3161400 | P17: 3575900 | Q17: 381849452 | R17: 47791724 | S17: 47097372 | T17: 81011448 | U17: 11147843 | V17: 11366949 | W17: 101784073 | X17: 14677700 | Y17: 15058000 | Z17: 35074000 | AA17: 2683121 | AB17: 2499223 | AC17: 127027725 | AD17: 23169801 | AE17: 22980200 | AG17: 1591627605 | AH17: 1417700 | AI17: 801400
A18: 1976 | B18: 1369618723 | C18: 93251518 | D18: 97667221 | E18: 205705300 | F18: 4233510 | G18: 6094240 | H18: 23010036 | I18: 274240 | J18: 241620 | L18: 11525994 | M18: 11816300 | N18: 7300 | O18: 3753658 | P18: 4254575 | Q18: 406905862 | R18: 60194214 | S18: 61188396 | T18: 91795559 | U18: 13158582 | V18: 13281455 | W18: 111034200 | X18: 16537747 | Y18: 16905372 | Z18: 40479000 | AA18: 3692896 | AB18: 3628765 | AC18: 146298208 | AD18: 26712518 | AE18: 26977300 | AG18: 1614684617 | AH18: 1275500 | AI18: 539400
A19: 1977 | B19: 1378423323 | C19: 96448466 | D19: 97814090 | E19: 203597400 | F19: 4215981 | G19: 5337100 | H19: 23590525 | I19: 290693 | J19: 254093 | L19: 16531694 | M19: 14018003 | N19: 7300 | O19: 3181644 | P19: 4285085 | Q19: 417002963 | R19: 65975004 | S19: 64741889 | T19: 97424509 | U19: 13078089 | V19: 13676597 | W19: 112525800 | X19: 16617006 | Y19: 17065540 | Z19: 43082000 | AA19: 3937354 | AB19: 3855448 | AC19: 151146000 | AD19: 28014824 | AE19: 28144070 | AG19: 1622780443 | AH19: 1336341 | AI19: 794426
A20: 1978 | B20: 1421901415 | C20: 98356308 | D20: 98446500 | E20: 201138400 | F20: 4565300 | G20: 4625900 | H20: 24389109 | I20: 286300 | J20: 232700 | L20: 15249094 | M20: 13201100 | N20: 7300 | O20: 2718900 | P20: 3673400 | Q20: 426150225 | R20: 69760499 | S20: 69028670 | T20: 100231201 | U20: 14267240 | V20: 14877904 | W20: 118226300 | X20: 18554300 | Y20: 19020700 | Z20: 45126000 | AA20: 4483406 | AB20: 4028947 | AC20: 158933700 | AD20: 30474660 | AE20: 30040550 | AG20: 1632902929 | AH20: 1050800 | AI20: 379000
A21: 1979 | B21: 1457965423 | C21: 103160712 | D21: 99761208 | E21: 199497100 | F21: 4383900 | G21: 4273400 | H21: 24976997 | I21: 305200 | J21: 292700 | L21: 17343794 | M21: 14790600 | N21: 7700 | O21: 2923000 | P21: 3310300 | Q21: 428491374 | R21: 74485730 | S21: 73128721 | T21: 101406801 | U21: 15080076 | V21: 15349800 | W21: 123148100 | X21: 19944700 | Y21: 20166400 | Z21: 47152000 | AA21: 5266934 | AB21: 4973744 | AC21: 167801808 | AD21: 32181700 | AE21: 33139000 | AG21: 1662009854 | AH21: 1077500 | AI21: 477000
A22: 1980 | B22: 1446712209 | C22: 95400712 | D22: 93313500 | E22: 202501270 | F22: 4485900 | G22: 4322400 | H22: 25896079 | I22: 342300 | J22: 374800 | L22: 19346994 | M22: 17469400 | N22: 7300 | O22: 3122500 | P22: 3526200 | Q22: 420867512 | R22: 71528570 | S22: 70144759 | T22: 96891792 | U22: 13884101 | V22: 14893700 | W22: 125679208 | X22: 20558200 | Y22: 21181900 | Z22: 50540000 | AA22: 5683200 | AB22: 5528185 | AC22: 169316596 | AD22: 33809900 | AE22: 34933100 | AG22: 1682302640 | AH22: 1058600 | AI22: 531600
A23: 1981 | B23: 1412402938 | C23: 84655500 | D23: 79046150 | E23: 204920849 | F23: 4463700 | G23: 3889100 | H23: 26496268 | I23: 320200 | J23: 323300 | L23: 16641594 | M23: 15629200 | N23: 6400 | O23: 3301000 | P23: 3659100 | Q23: 402783969 | R23: 64609905 | S23: 63571876 | T23: 96184739 | U23: 14880361 | V23: 15348600 | W23: 125363516 | X23: 19471100 | Y23: 20051400 | Z23: 51417000 | AA23: 5338856 | AB23: 5308777 | AC23: 169118143 | AD23: 34240700 | AE23: 35213900 | AG23: 1704050800 | AH23: 611900 | AI23: 301000
A24: 1982 | B24: 1372497942 | C24: 81456800 | D24: 79539004 | E24: 209030103 | F24: 3833900 | G24: 3641300 | H24: 27212732 | I24: 407000 | J24: 335200 | L24: 14448394 | M24: 13942700 | N24: 6300 | O24: 3530500 | P24: 3510100 | Q24: 394435693 | R24: 65402918 | S24: 64299850 | T24: 91249724 | U24: 13661061 | V24: 14147800 | W24: 119535708 | X24: 18196300 | Y24: 18530900 | Z24: 51831000 | AA24: 5411093 | AB24: 5240860 | AC24: 166246512 | AD24: 33870400 | AE24: 33490900 | AG24: 1744685315 | AH24: 716400 | AI24: 380400
A25: 1983 | B25: 1455937099 | C25: 86277200 | D25: 81645696 | E25: 211827876 | F25: 3809900 | G25: 2999800 | H25: 28158498 | I25: 420900 | J25: 378800 | L25: 14918594 | M25: 13817200 | N25: 6300000 | O25: 3672800 | P25: 3481800 | Q25: 417295813 | R25: 72801489 | S25: 72790844 | T25: 101289698 | U25: 14960905 | V25: 15351530 | W25: 127076708 | X25: 20508300 | Y25: 21049400 | Z25: 55298900 | AA25: 6115374 | AB25: 6817205 | AC25: 176427087 | AD25: 35686700 | AE25: 36215298 | AG25: 1746986309 | AH25: 1021000 | AI25: 393900
A26: 1984 | B26: 1521429471 | C26: 87171100 | D26: 83063100 | E26: 219379116 | F26: 3911500 | G26: 2739000 | H26: 28971134 | I26: 471600 | J26: 372200 | L26: 16199294 | M26: 14710100 | N26: 6600000 | O26: 3728400 | P26: 3693000 | Q26: 426163218 | R26: 74987014 | S26: 74596820 | T26: 104905308 | U26: 16323505 | V26: 16389730 | W26: 135077808 | X26: 21420600 | Y26: 21529200 | Z26: 59977100 | AA26: 7414441 | AB26: 7572500 | AC26: 189058265 | AD26: 39340150 | AE26: 39568200 | AG26: 1767329663 | AH26: 1095300 | AI26: 418200
A27: 1985 | B27: 1523890091 | C27: 89902500 | D27: 86681776 | E27: 223394308 | F27: 4323600 | G27: 2649900 | H27: 29701375 | I27: 509600 | J27: 299800 | L27: 15596394 | M27: 14630600 | N27: 6600000 | O27: 3741400 | P27: 3674600 | Q27: 432774687 | R27: 76593289 | S27: 73978653 | T27: 108226150 | U27: 17321918 | V27: 17551766 | W27: 134318500 | X27: 21631800 | Y27: 21776900 | Z27: 61058000 | AA27: 7573286 | AB27: 8530190 | AC27: 192052055 | AD27: 40367115 | AE27: 40804800 | AG27: 1771469304 | AH27: 1027500 | AI27: 299100
A28: 1986 | B28: 1592833549 | C28: 90016073 | D28: 86419139 | E28: 228047707 | F28: 4315400 | G28: 2265500 | H28: 30515355 | I28: 490700 | J28: 291000 | L28: 17264494 | M28: 15577913 | N28: 6300000 | O28: 4085300 | P28: 4094000 | Q28: 447353843 | R28: 77685752 | S28: 75342140 | T28: 115088923 | U28: 18877155 | V28: 19376186 | W28: 140146008 | X28: 23237915 | Y28: 23316136 | Z28: 65607008 | AA28: 8778457 | AB28: 8280751 | AC28: 202361443 | AD28: 43701163 | AE28: 43271683 | AG28: 1780537886 | AH28: 923200 | AI28: 321600
A29: 1987 | B29: 1653670149 | C29: 99042276 | D29: 95450398 | E29: 230685818 | F29: 5002800 | G29: 2244200 | H29: 31240272 | I29: 493700 | J29: 283300 | L29: 18462894 | M29: 17700590 | N29: 6902000 | O29: 4457900 | P29: 3959500 | Q29: 465614781 | R29: 82676241 | S29: 81100240 | T29: 121230988 | U29: 22268527 | V29: 22166122 | W29: 146496116 | X29: 25044034 | Y29: 24638191 | Z29: 69965000 | AA29: 9823373 | AB29: 8803416 | AC29: 213700010 | AD29: 47419068 | AE29: 46938335 | AG29: 1775438121 | AH29: 869500 | AI29: 410000
A30: 1988 | B30: 1673623822 | C30: 100238153 | D30: 99188705 | E30: 230031368 | F30: 4867000 | G30: 1748900 | H30: 32231812 | I30: 429200 | J30: 293000 | L30: 21542794 | M30: 22918540 | N30: 6910000 | O30: 3844000 | P30: 3112600 | Q30: 470499077 | R30: 83855158 | S30: 85869445 | T30: 127316558 | U30: 24418747 | V30: 24929002 | W30: 151444908 | X30: 25624461 | Y30: 25974508 | Z30: 76148008 | AA30: 11174308 | AB30: 12973709 | AC30: 226589428 | AD30: 50279345 | AE30: 50842028 | AG30: 1792454281 | AH30: 890000 | AI30: 368600
A31: 1989 | B31: 1703078915 | C31: 97883813 | D31: 97663706 | E31: 232737335 | F31: 5041800 | G31: 1896800 | H31: 29177371 | I31: 575600 | J31: 419600 | L31: 18792394 | M31: 25435645 | N31: 7430000 | O31: 4175200 | P31: 3649700 | Q31: 469481122 | R31: 89327912 | S31: 85062218 | T31: 129233450 | U31: 27607387 | V31: 27356249 | W31: 156083100 | X31: 26020220 | Y31: 26135974 | Z31: 82018808 | AA31: 12485090 | AB31: 11418966 | AC31: 232199918 | AD31: 53467349 | AE31: 52131595 | AG31: 1801563455 | AH31: 994700 | AI31: 378400
A32: 1990 | B32: 1709503466 | C32: 82591148 | D32: 83389972 | E32: 230401237 | H32: 28609785 | I32: 606023 | J32: 359500 | L32: 20059294 | M32: 23645467 | N32: 7503000 | O32: 3404900 | P32: 3368200 | Q32: 463008817 | R32: 84471461 | S32: 78148505 | T32: 123777435 | U32: 27874463 | V32: 28472710 | W32: 154798200 | X32: 25189577 | Y32: 24936805 | Z32: 84253078 | AA32: 13017658 | AB32: 13328787 | AC32: 239353243 | AD32: 55639787 | AE32: 55566815 | AG32: 1833083000 | AH32: 838400 | AI32: 489800
A33: 1991 | B33: 1569184068 | C33: 84311149 | D33: 90120965 | E33: 221466442 | H33: 29742156 | I33: 461186 | J33: 429400 | L33: 22368094 | M33: 26088567 | N33: 23257000 | O33: 3767600 | P33: 4343300 | Q33: 418240068 | R33: 77504791 | S33: 75544654 | T33: 120470727 | U33: 27335148 | V33: 28242649 | W33: 155178233 | X33: 26282433 | Y33: 26575605 | Z33: 89436908 | AA33: 14262725 | AB33: 12550920 | AC33: 243079992 | AD33: 57203617 | AE33: 58535800 | AG33: 1869868731 | AH33: 1005200 | AI33: 583300
A34: 1992 | B34: 1507084038 | C34: 83587651 | D34: 86140206 | E34: 180503218 | H34: 29308573 | I34: 671207 | J34: 600570 | L34: 22276943 | M34: 25000980 | N34: 49853500 | O34: 4511272 | P34: 4900776 | Q34: 403259529 | R34: 84047245 | S34: 82858083 | T34: 124056908 | U34: 30550933 | V34: 30996491 | W34: 152845822 | X34: 28168959 | Y34: 29152364 | Z34: 92935648 | AA34: 14800474 | AB34: 12740998 | AC34: 246614955 | AD34: 61839530 | AE34: 62077411 | AG34: 1841461249 | AH34: 1334361 | AI34: 1198340
A35: 1993 | B35: 1486064913 | C35: 76246904 | D35: 72920758 | E35: 172336088 | H35: 29959604 | I35: 638993 | J35: 599416 | L35: 23049877 | M35: 24892243 | N35: 63985500 | O35: 4507447 | P35: 4999547 | Q35: 394458052 | R35: 88529866 | S35: 88135174 | T35: 127660150 | U35: 32082087 | V35: 33801699 | W35: 151208675 | X35: 28500550 | Y35: 29601542 | Z35: 97073200 | AA35: 13418898 | AB35: 11960657 | AC35: 252361075 | AD35: 63312548 | AE35: 64788544 | AG35: 1809956198 | AH35: 1752893 | AI35: 1709382
A36: 1994 | B36: 1486410296 | C36: 87943592 | D36: 77838476 | E36: 151789660 | H36: 35084101 | I36: 626815 | J36: 620640 | L36: 27094298 | M36: 28746776 | N36: 69807500 | O36: 4981790 | P36: 5535113 | Q36: 395896837 | R36: 97492853 | S36: 92437429 | T36: 130520208 | U36: 35434683 | V36: 36436287 | W36: 161910768 | X36: 31051260 | Y36: 31654074 | Z36: 107703100 | AA36: 16550711 | AB36: 15346723 | AC36: 268784434 | AD36: 69620154 | AE36: 72229647 | AG36: 1802119716 | AH36: 1434302 | AI36: 2231208
A37: 1995 | B37: 1527628044 | C37: 94932145 | D37: 88724196 | E37: 152932762 | H37: 35743279 | I37: 688946 | J37: 624415 | L37: 30821647 | M37: 34035807 | N37: 79014300 | O37: 4742578 | P37: 5102858 | Q37: 390752421 | R37: 95986969 | S37: 96902431 | T37: 141210382 | U37: 38383997 | V37: 39674176 | W37: 161571317 | X37: 31942439 | Y37: 33582369 | Z37: 114411600 | AA37: 18574918 | AB37: 16522775 | AC37: 282382193 | AD37: 69677303 | AE37: 74952512 | AG37: 1809403744 | AH37: 1123643 | AI37: 2090386
A38: 1996 | B38: 1509699422 | C38: 82900075 | D38: 77987647 | E38: 150128091 | H38: 35488284 | I38: 704372 | J38: 733648 | L38: 30357778 | M38: 31267097 | N38: 73869800 | O38: 4710363 | P38: 6307251 | Q38: 386742898 | R38: 97284615 | S38: 96913561 | T38: 141573210 | U38: 41590766 | V38: 43162282 | W38: 156441635 | X38: 32447804 | Y38: 33733566 | Z38: 117212600 | AA38: 17705694 | AB38: 15308943 | AC38: 284467382 | AD38: 74580628 | AE38: 76110147 | AG38: 1796500652 | AH38: 1493077 | AI38: 2435120
A39: 1997 | B39: 1561592418 | C39: 91242602 | D39: 84037275 | E39: 171218962 | H39: 34740562 | I39: 759949 | J39: 675821 | L39: 30729290 | M39: 32262338 | N39: 89938600 | O39: 4875540 | P39: 5335388 | Q39: 393750973 | R39: 105371028 | S39: 99318426 | T39: 152391315 | U39: 45488822 | V39: 46689960 | W39: 162503657 | X39: 34268710 | Y39: 34944663 | Z39: 120804400 | AA39: 18698613 | AB39: 17317267 | AC39: 301497552 | AD39: 85728959 | AE39: 86658456 | AG39: 1816477564 | AH39: 1317297 | AI39: 3726571
A40: 1998 | B40: 1541566403 | C40: 91605786 | D40: 85875593 | E40: 130467168 | H40: 36007384 | I40: 884492 | J40: 625520 | K40: 196654913 | L40: 31832694 | M40: 36291762 | N40: 89986448 | O40: 6055760 | P40: 8727888 | Q40: 378443601 | R40: 101940955 | S40: 98275263 | T40: 151452236 | U40: 45960320 | V40: 47241641 | W40: 159756665 | X40: 34820237 | Y40: 35005113 | Z40: 123746458 | AA40: 21340462 | AB40: 18614633 | AC40: 302056942 | AD40: 87216902 | AE40: 89707713 | AG40: 1810515711 | AH40: 1677155 | AI40: 4564103
A41: 1999 | B41: 1588571440 | C41: 105636024 | D41: 98809828 | E41: 133551154 | H41: 37102579 | I41: 808780 | J41: 671109 | K41: 223114320 | L41: 30321961 | M41: 35970530 | N41: 102769048 | O41: 6486833 | P41: 6850606 | Q41: 387365480 | R41: 108996420 | S41: 106319434 | T41: 164909976 | U41: 50367631 | V41: 48819689 | W41: 163433779 | X41: 36594245 | Y41: 37098364 | Z41: 131454968 | AA41: 23457818 | AB41: 20908840 | AC41: 315929525 | AD41: 95109842 | AE41: 93272281 | AG41: 1815006045 | AH41: 1761127 | AI41: 3436827
A42: 2000 | B42: 1687166387 | C42: 115265724 | D42: 114401729 | E42: 135140448 | H42: 36720927 | I42: 930790 | J42: 907697 | K42: 232480235 | L42: 34400740 | M42: 40516546 | N42: 97489562 | O42: 6881548 | P42: 6953883 | Q42: 384036891 | R42: 115769126 | S42: 114197916 | T42: 178163524 | U42: 55235333 | V42: 52602395 | W42: 171114970 | X42: 37781234 | Y42: 38315217 | Z42: 143417974 | AA42: 27183606 | AB42: 24650544 | AC42: 324606103 | AD42: 98478247 | AE42: 98103540 | AG42: 1795244627 | AH42: 2085290 | AI42: 3627857
A43: 2001 | B43: 1608348593 | C43: 115624513 | D43: 110836724 | E43: 134743172 | H43: 37889920 | I43: 1010191 | J43: 1021516 | K43: 226609389 | L43: 33412331 | M43: 37592619 | N43: 96599429 | O43: 7325361 | P43: 7272582 | Q43: 379433546 | R43: 112765477 | S43: 113374086 | T43: 178067567 | U43: 56659653 | V43: 56446767 | W43: 163993414 | X43: 39138380 | Y43: 38705045 | Z43: 143735183 | AA43: 29449890 | AB43: 25312027 | AC43: 318819699 | AD43: 94965214 | AE43: 93501819 | AG43: 1802548663 | AH43: 2065733 | AI43: 3881896
A44: 2002 | B44: 1648754932 | C44: 117999387 | D44: 116511846 | E44: 133823260 | H44: 40015839 | I44: 1022834 | J44: 1041534 | K44: 238172613 | L44: 33241858 | M44: 38003233 | N44: 102425780 | O44: 7792703 | P44: 7576483 | Q44: 392430390 | R44: 117788296 | S44: 120837030 | T44: 195022241 | U44: 62386768 | V44: 61585516 | W44: 167163548 | X44: 40344279 | Y44: 40811967 | Z44: 151299569 | AA44: 29354350 | AB44: 27011733 | AC44: 329504514 | AD44: 96866117 | AE44: 97791551 | AG44: 1820643807 | AH44: 2543406 | AI44: 3715591
A45: 2003 | B45: 1690197652 | C45: 121106021 | D45: 115281147 | E45: 139116184 | H45: 42386668 | I45: 1189067 | J45: 1257219 | K45: 258954571 | L45: 34439642 | M45: 38253346 | N45: 112967496 | O45: 7815289 | P45: 8468659 | Q45: 399690000 | R45: 121247120 | S45: 126159335 | T45: 218786933 | U45: 65793921 | V45: 61769738 | W45: 169908698 | X45: 40796737 | Y45: 41774486 | Z45: 157214169 | AA45: 33254713 | AB45: 31976249 | AC45: 338785165 | AD45: 103376213 | AE45: 102811657 | AG45: 1831834645 | AH45: 3284780 | AI45: 4356566
A46: 2004 | B46: 1746194169 | C46: 124488682 | D46: 117525126 | E46: 138182232 | H46: 43080717 | I46: 1234606 | J46: 1415631 | K46: 276493077 | L46: 38098313 | M46: 41957830 | N46: 128083002 | O46: 10805619 | P46: 9881675 | Q46: 425403462 | R46: 135036278 | S46: 135935624 | T46: 239260925 | U46: 74656646 | V46: 73070706 | W46: 174648265 | X46: 43991465 | Y46: 42812856 | Z46: 165036722 | AA46: 36716844 | AB46: 36763679 | AC46: 355698469 | AD46: 109879987 | AE46: 111204480 | AG46: 1836154971 | AH46: 3246511 | AI46: 3965512
A47: 2005 | B47: 1800570769 | C47: 133238924.2 | D47: 129332543 | E47: 140296727 | H47: 43910867 | I47: 1446851 | J47: 1510992 | K47: 274545437 | L47: 40461737 | M47: 45031605 | N47: 163476449 | O47: 13566226 | P47: 12599209 | Q47: 437813366 | R47: 135832075 | S47: 137965538 | T47: 252004373 | U47: 76133058 | V47: 76945324 | W47: 173849097 | X47: 45088947.7 | Y47: 43074703 | Z47: 173969399 | AA47: 38300420 | AB47: 41668030 | AC47: 365180662 | AD47: 112119812 | AE47: 113246612 | AG47: 1825331097 | AH47: 3411700.7 | AI47: 4328232.2
A48: 2006 | B48: 1750333145 | C48: 131513612 | D48: 130334609 | E48: 140829183 | H48: 44771801 | I48: 1490710 | J48: 1761645 | K48: 278951866 | L48: 39602488 | M48: 45119382 | N48: 170073680 | O48: 13639067 | P48: 13561999 | Q48: 447464633 | R48: 134121610 | S48: 136834817 | T48: 266675003 | U48: 79758107 | V48: 81168236 | W48: 175614862 | X48: 46364611.24 | Y48: 46367299 | Z48: 188018843 | AA48: 45236053 | AB48: 45380411 | AC48: 381783753 | AD48: 115041854 | AE48: 114953821 | AG48: 1834805586 | AH48: 3955672 | AI48: 4545139
A49: 2007 | B49: 1778957557 | C49: 138448750 | D49: 133483975 | E49: 143911916 | H49: 46837187 | I49: 1547099 | J49: 1557711 | K49: 277396894 | L49: 44037120 | M49: 49876977 | N49: 164845208 | O49: 17485077 | P49: 15515256 | Q49: 434303500 | R49: 134138329 | S49: 133010180 | T49: 281682240 | U49: 79552554 | V49: 82954865 | W49: 180969754 | X49: 46291506 | Y49: 48064168 | Z49: 197373687 | AA49: 50239078 | AB49: 51382434 | AC49: 392504293 | AD49: 119001221 | AE49: 118427208 | AG49: 1841194068 | AH49: 3526396 | AI49: 4717593
A50: 2008 | B50: 1656413205 | C50: 119124414 | D50: 113809661 | E50: 147673093 | H50: 46933875 | I50: 1826485 | J50: 1736752 | K50: 268709640 | L50: 45669576 | M50: 53957581 | N50: 189252499 | O50: 19696954 | P50: 16010125 | Q50: 387145719 | R50: 111801070 | S50: 117990079 | T50: 268499243 | U50: 69367884 | V50: 71590866 | W50: 177284468 | X50: 47241059 | Y50: 48709241 | Z50: 203372962 | AA50: 51484522 | AB50: 52929055 | AC50: 390240082 | AD50: 114569161 | AE50: 113926437 | AG50: 1848396612 | AH50: 3633230 | AI50: 4860068
A51: 2009 | B51: 1556789887 | C51: 90123305 | D51: 91600462 | E51: 155389494 | H51: 45520176 | I51: 1939472.2 | J51: 1910425 | K51: 245902388 | L51: 43164270 | M51: 43499858.46 | N51: 189043019 | O51: 18745261 | P51: 17456511 | Q51: 345009795 | R51: 94549059 | S51: 100969141 | T51: 263797680 | U51: 56511662 | V51: 60928741 | W51: 160349084 | X51: 46147108.3 | Y51: 48493609 | Z51: 204532820 | AA51: 53245280.06 | AB51: 56615432 | AC51: 370969384 | AD51: 101127523 | AE51: 103177764.5 | AG51: 1840208705 | AH51: 4815548 | AI51: 6228336
A52: 2010 | B52: 1723129396 | C52: 110899963 | D52: 107314419 | E52: 167706626 | H52: 46464359 | I52: 2162427 | J52: 1954004 | K52: 265385230 | L52: 54695434.7 | M52: 55434731.88 | N52: 209249945 | O52: 22981698 | P52: 20750671 | Q52: 375102239 | R52: 108891799 | S52: 112502419 | T52: 283547668 | U52: 64709598.18 | V52: 66842113.4 | W52: 170828720 | X52: 49007098.1 | Y52: 51267969 | Z52: 212733257 | AA52: 53151632.38 | AB52: 55009957 | AC52: 392378111 | AD52: 108282667 | AE52: 109716092.4 | AG52: 1864002026 | AH52: 5162314.5 | AI52: 6863820
A53: 2011 | B53: 1799800097 | C53: 122616592 | D53: 118176334 | E53: 175927642 | H53: 47664518 | I53: 2313241 | J53: 2085079 | K53: 271377216 | L53: 58347430.06 | M53: 62940449.06 | N53: 211906311 | O53: 14262708 | P53: 17158342 | Q53: 388230953 | R53: 115945161 | S53: 118644152 | T53: 301450899 | U53: 68707280.31 | V53: 70183438.2 | W53: 173946182 | X53: 51400210.3 | Y53: 53619140 | Z53: 216507549 | AA53: 56632711 | AB53: 59805985 | AC53: 400088926 | AD53: 108919413.5 | AE53: 109983401.7 | AG53: 1870970098 | AH53: 5940014.17 | AI53: 8055238
A54: 2012 | B54: 1797678997 | C54: 114238468 | D54: 110923870 | E54: 177985389 | H54: 49166674 | I54: 2364346.25 | J54: 2024338 | K54: 279918770 | L54: 55943494.63 | M54: 58202380.34 | N54: 217394155 | O54: 13570509 | P54: 6632210 | Q54: 403710423 | R54: 113497956 | S54: 119289933 | T54: 313705348 | U54: 70730566.31 | V54: 72855733.14 | W54: 171617872 | X54: 54903067.35 | Y54: 55279841.65 | Z54: 218945259 | AA54: 58810366 | AB54: 59405815 | AC54: 398893819 | AD54: 106238584.8 | AE54: 108126769.8 | AG54: 1887396983 | AH54: 5957838.16 | AI54: 8195270
A55: 2013 | B55: 1839351118 | C55: 128260393.1 | D55: 126088821 | E55: 155290530 | H55: 50791555 | I55: 2460364.26 | J55: 1987128 | K55: 242900755 | L55: 61136642.2 | M55: 58347659.51 | N55: 233933694 | O55: 11667491.27 | P55: 8251254.91 | Q55: 420139431 | R55: 122255066 | S55: 125770404 | T55: 337578554 | U55: 72826013.4 | V55: 75025570.14 | W55: 172410158 | X55: 56116025.94 | Y55: 56533654.05 | Z55: 220125847 | AA55: 56861736.12 | AB55: 56150189 | AC55: 396575104 | AD55: 107269676 | AE55: 110515222.1 | AG55: 1897823383 | AH55: 6585883.58 | AI55: 8603920
A56: 2014 | B56: 1862018768 | C56: 134877200.2 | D56: 132194273 | E56: 167501790 | H56: 51580932 | I56: 2596524.26 | J56: 2252425.1 | K56: 251266380 | L56: 62227497 | M56: 62419674.77 | N56: 232494703 | O56: 12565574.92 | P56: 9518398.45 | Q56: 433449184 | R56: 128713655 | S56: 133678403 | T56: 342451328 | U56: 75774576.4 | V56: 78290211.95 | W56: 176181139 | X56: 57295042.65 | Y56: 58108406.3 | Z56: 227779471 | AA56: 55810138.12 | AB56: 55688982 | AC56: 403699716 | AD56: 109866453 | AE56: 112525997.7 | AG56: 1900374577 | AH56: 6763723 | AI56: 9105194
A57: 2015 | B57: 1853897832 | C57: 128153388 | D57: 123567181 | E57: 145957277 | H57: 51202189 | I57: 2550476.29 | J57: 2344548.1 | K57: 263112219 | L57: 62375226.03 | M57: 63829091 | N57: 230503693 | O57: 11829522.92 | P57: 9176059 | Q57: 446346312 | R57: 133034618 | S57: 137480481 | T57: 344606085 | U57: 77623132.27 | V57: 80420742.19 | W57: 176854398 | X57: 58825180 | Y57: 58809529 | Z57: 228604481 | AA57: 57603012 | AB57: 57266044 | AC57: 406684484 | AD57: 108757656 | AE57: 112220334 | AG57: 1901265439 | AH57: 6130562 | AI57: 9575513
A58: 2016 | B58: 1922731838 | C58: 134017930 | D58: 126190319 | E58: 149549811 | H58: 50757420 | I58: 2482840 | J58: 2279980 | K58: 276569893 | L58: 65377409.03 | M58: 64981735 | N58: 223795349 | O58: 9200388.82 | P58: 7794673 | Q58: 480698231 | R58: 144157527 | S58: 147679476 | T58: 355617556 | U58: 82257464 | V58: 85248272 | W58: 181553773 | X58: 62037102 | Y58: 62206682 | Z58: 230918306 | AA58: 58433228 | AB58: 58153508 | AC58: 409155937 | AD58: 110864219 | AE58: 113120086.7 | AG58: 1927783200 | AH58: 5991772 | AI58: 9411103
A59: 2017 | B59: 1951902608 | C59: 132049464 | D59: 128378355 | E59: 150272831 | H59: 51596795 | I59: 2570866 | J59: 2482305 | K59: 267505793 | L59: 58324661.03 | M59: 68418753 | N59: 225898654 | O59: 7498337.82 | P59: 6418031 | Q59: 500667025 | R59: 151684603 | S59: 155570294 | T59: 357790205 | U59: 89780469.27 | V59: 90713348 | W59: 183669744 | X59: 64695394 | Y59: 64078900 | Z59: 234444359 | AA59: 58796963.12 | AB59: 57230993 | AC59: 415184177 | AD59: 115648637 | AE59: 115829153 | AG59: 1931111419 | AH59: 5084778 | AI59: 8474609
A60: 2018 | B60: 2057732182 | C60: 144054612 | D60: 137882006 | E60: 159894106 | H60: 53158590 | I60: 3148679 | J60: 2937995 | K60: 275483927 | L60: 62388003.03 | M60: 75134128 | N60: 239884368 | O60: 7457533.82 | P60: 5621996 | Q60: 500641345 | R60: 152806907 | S60: 160486937 | T60: 358520681 | U60: 92906258.27 | V60: 93556898 | W60: 191784957 | X60: 66665535 | Y60: 65752483 | Z60: 232512269 | AA60: 55846489.12 | AB60: 56225864 | AC60: 409183981 | AD60: 116638166 | AE60: 117341105 | AG60: 1946047851 | AH60: 5626394 | AI60: 7841464
A61: 2019 | B61: 1985982613 | C61: 140462119 | D61: 135635591 | E61: 159878016 | H61: 53449283 | I61: 3003931 | J61: 2831933 | K61: 273283918 | L61: 61785570 | M61: 71610279 | N61: 237883823 | O61: 8478105.82 | P61: 5992433 | Q61: 481932398 | R61: 153603818 | S61: 158879600 | T61: 366293759 | U61: 89781342 | V61: 88339469 | W61: 189473923 | X61: 66915351 | Y61: 68299303 | Z61: 230937107 | AA61: 50492001.12 | AB61: 49292408 | AC61: 404955784 | AD61: 111356914 | AE61: 113839337 | AG61: 1940263516 | AH61: 5581341 | AI61: 7583949
A62: 2020 | B62: 1983575816 | C62: 138274848 | D62: 136261790 | E62: 159066276 | H62: 54104368 | I62: 2763211 | J62: 2796078 | K62: 262938213 | L62: 54786601 | M62: 63735496 | N62: 235814387 | O62: 8532782.82 | P62: 5549060 | Q62: 479969657 | R62: 144435622 | S62: 154856886 | T62: 364573951 | U62: 91320412 | V62: 88146621 | W62: 188398517 | X62: 67724829 | Y62: 68258794 | Z62: 228284686 | AA62: 45700774 | AB62: 44906379 | AC62: 400126216 | AD62: 110822361 | AE62: 111587207 | AG62: 1926547955 | AH62: 4184028 | AI62: 6173050
A63: 2021 | B63: 2053899967 | C63: 142750568 | D63: 132111760 | E63: 162031995 | H63: 55956439 | I63: 2969336.4 | J63: 2824261.57 | K63: 270299541 | L63: 58687060.47 | M63: 73316885.89 | N63: 241620493 | O63: 9029537.61 | P63: 6669454.85 | Q63: 493380636 | R63: 147008981 | S63: 156248939 | T63: 387930315 | U63: 99873586.27 | V63: 100492208.4 | W63: 193823121 | X63: 67062099.76 | Y63: 67179831.97 | Z63: 242330601 | AA63: 45985956.8 | AB63: 47572855.06 | AC63: 418403343 | AD63: 114228958.9 | AE63: 115594143.1 | AG63: 1949860042 | AH63: 5657325.32 | AI63: 7745572.3
A64: 2022 | B64: 2016041202 | C64: 118580121 | D64: 108561428 | E64: 158239442 | H64: 57229684 | I64: 3382180.97 | J64: 3161080.66 | K64: 268735237 | L64: 61567515.27 | M64: 76836622.94 | N64: 240980673 | O64: 8358047.65 | P64: 6235389.01 | Q64: 481256472 | R64: 137332783 | S64: 143104735 | T64: 375289236 | U64: 92889427.2 | V64: 94139440.57 | W64: 195794184 | X64: 68180948.15 | Y64: 69530584.15 | Z64: 239446937 | AA64: 43942727.76 | AB64: 45660375.69 | AC64: 414094326 | AD64: 111481503.9 | AE64: 111383581.6 | AG64: 1967294351 | AH64: 5507179.75 | AI64: 7621190.6
A65: 2023
A66: 2024
A67: 2025
A68: 2026
A69: 2027
A70: 2028
A71: 2029
A72: 2030

Sheet area_pivot
A1: Area
B2: 1876-5610 | C2: 1873-5916 | D2: 1865-5616 | E2: 1872-5616 | F2: 1872-5916 | G2: 1873-5616 | H2: 1876-5910 | I2: 1620-5916 | J2: 1669-5910 | K2: 1865-5916 | L2: 1875-5610 | M2: 1875-5910 | N2: 1865-5516 | O2: 1872-5516 | P2: 1873-5516 | Q2: (blank) | R2: 1630-5510 | S2: 1630-5610 | T2: 1630-5910 | U2: 1619-5616 | V2: 1620-5616 | W2: 1669-5610 | X2: 1871-5516 | Y2: 1864-5516 | Z2: 1864-5616 | AA2: 1864-5916 | AB2: 1619-5916 | AC2: 1669-5510 | AD2: 1876-5510 | AE2: 1871-5616 | AF2: 1871-5916 | AG2: 1619-5516 | AH2: 1620-5516 | AI2: 1875-5510
A3: 1961 | B3: 12792070 | C3: 2761100 | D3: 37998500 | E3: 38219438 | F3: 37778684 | G3: 2714803 | H3: 12697758 | I3: 330800 | K3: 38160300 | L3: 2520900 | M3: 2772600 | N3: 1017832423 | O3: 323575399 | P3: 25134700 | R3: 16450614 | S3: 295400 | T3: 185100 | V3: 303700 | X3: 167496000 | Y3: 1498738466 | Z3: 1837900 | AA3: 1573000 | AC3: 15383200 | AD3: 77075896 | AE3: 4318300 | AF3: 5045800 | AI3: 61548400
A4: 1962 | B4: 12825783 | C4: 3111100 | D4: 39147600 | E4: 39550344 | F4: 39193810 | G4: 3101929 | H4: 12732850 | I4: 454600 | K4: 38114000 | L4: 2542000 | M4: 2817500 | N4: 1036279939 | O4: 326104720 | P4: 28135300 | R4: 16668433 | S4: 286400 | T4: 199150 | V4: 309300 | X4: 165326008 | Y4: 1491096482 | Z4: 1891850 | AA4: 1642000 | AC4: 15680000 | AD4: 80388600 | AE4: 4262300 | AF4: 4915600 | AI4: 63696800
A5: 1963 | B5: 13406264 | C5: 3514720 | D5: 41326203 | E5: 42021465 | F5: 42008071 | G5: 3469466 | H5: 13615982 | I5: 534500 | K5: 42745300 | L5: 3031700 | M5: 2990100 | N5: 1049915415 | O5: 335095362 | P5: 32545800 | R5: 16791879 | S5: 251858 | T5: 202800 | V5: 316200 | X5: 173467000 | Y5: 1501308865 | Z5: 2338800 | AA5: 2004899 | AC5: 15849000 | AD5: 85274024 | AE5: 3932600 | AF5: 4560900 | AI5: 68525400
A6: 1964 | B6: 15136397 | C6: 4239923 | D6: 45225801 | E6: 46029502 | F6: 45889304 | G6: 4240470 | H6: 15354356 | I6: 1391200 | K6: 47179400 | L6: 3335555 | M6: 3295400 | N6: 1110941115 | O6: 354361463 | P6: 35961200 | R6: 17341958 | S6: 247600 | T6: 160464 | U6: 1326394 | V6: 1221300 | X6: 175621500 | Y6: 1513488178 | Z6: 2424767 | AA6: 1575500 | AB6: 1219100 | AC6: 17367000 | AD6: 91045000 | AE6: 3817200 | AF6: 4233700 | AI6: 73567000
A7: 1965 | B7: 16098700 | C7: 4697719 | D7: 49034200 | E7: 45984719 | F7: 45130845 | G7: 4705695 | H7: 16441056 | I7: 1897500 | K7: 50547500 | L7: 3332463 | M7: 3230000 | N7: 1131572447 | O7: 358376265 | P7: 39913800 | R7: 17650825 | S7: 263900 | T7: 190800 | U7: 1293294 | V7: 1663100 | X7: 212569108 | Y7: 1514171639 | Z7: 1709800 | AA7: 1227867 | AB7: 1160000 | AC7: 17620000 | AD7: 96525604 | AE7: 3980800 | AF7: 4010800 | AI7: 77557400
A8: 1966 | B8: 17816070 | C8: 5857755 | D8: 54012500 | E8: 44414765 | F8: 44563987 | G8: 5461447 | H8: 18150300 | I8: 2157700 | K8: 55566700 | L8: 3599400 | M8: 3148000 | N8: 1153134939 | O8: 359031622 | P8: 48960182 | R8: 18014882 | S8: 220100 | T8: 186900 | U8: 1777894 | V8: 1971900 | X8: 216099508 | Y8: 1526347281 | Z8: 1544300 | AA8: 931600 | AB8: 1455300 | AC8: 19406000 | AD8: 103843296 | AE8: 3433500 | AF8: 4075300 | AI8: 82857600
A9: 1967 | B9: 17987520 | C9: 6434708 | D9: 59048200 | E9: 45246477 | F9: 44429336 | G9: 6078082 | H9: 18225443 | I9: 2267700 | K9: 60532900 | L9: 3409500 | M9: 3088400 | N9: 1182079523 | O9: 363784349 | P9: 51740568 | R9: 18368615 | S9: 213900 | T9: 217500 | U9: 2870594 | V9: 2248600 | X9: 209297500 | Y9: 1528549182 | Z9: 1318600 | AA9: 1076100 | AB9: 2572700 | AC9: 19739000 | AD9: 105022896 | AE9: 3394100 | AF9: 3826000 | AI9: 84815800
A10: 1968 | B10: 19630110 | C10: 7685838 | D10: 67227400 | E10: 50047604 | F10: 49196757 | G10: 7304758 | H10: 19884500 | I10: 2341500 | K10: 69099200 | L10: 14740240 | M10: 14960000 | N10: 1205667615 | O10: 374854643 | P10: 58337450 | R10: 18782530 | S10: 208600 | T10: 206900 | U10: 5428794 | V10: 2319000 | X10: 212188700 | Y10: 1530931056 | Z10: 1038300 | AA10: 1114467 | AB10: 3860300 | AC10: 21129000 | AD10: 113115596 | AE10: 3384900 | AF10: 3886700 | AI10: 91640700
A11: 1969 | B11: 22096800 | C11: 8442646 | D11: 72596508 | E11: 50672764 | F11: 49774610 | G11: 8241636 | H11: 22386411 | I11: 1933600 | K11: 75261800 | L11: 16114300 | M11: 16198000 | N11: 1234489039 | O11: 384830378 | P11: 62547517 | R11: 19162486 | S11: 231333 | T11: 261000 | U11: 6011494 | V11: 2081600 | X11: 205245500 | Y11: 1528621592 | Z11: 1315800 | AA11: 1300300 | AB11: 4796400 | AC11: 22428000 | AD11: 122071408 | AE11: 3694400 | AF11: 3986900 | AI11: 97909800
A12: 1970 | B12: 22812520 | C12: 9095566 | D12: 83078816 | E12: 52670708 | F12: 51672867 | G12: 9010709 | H12: 23204710 | I12: 2186500 | J12: 1779000 | K12: 85647200 | L12: 16571100 | M12: 16916900 | N12: 1276437807 | O12: 389090528 | P12: 66576465 | R12: 19601941 | S12: 264058 | T12: 231700 | U12: 7373794 | V12: 2468600 | W12: 1791164 | X12: 202433700 | Y12: 1542387501 | Z12: 1110200 | AA12: 1368900 | AB12: 5774400 | AC12: 30758000 | AD12: 125583135 | AE12: 4334000 | AF12: 3992200 | AI12: 101649500
A13: 1971 | B13: 23951400 | C13: 9909530 | D13: 81127204 | E13: 53726144 | F13: 53535034 | G13: 9390391 | H13: 23569708 | I13: 2570700 | J13: 1628000 | K13: 82069300 | L13: 14543700 | M13: 14925500 | N13: 1296442731 | O13: 401472202 | P13: 75019559 | R13: 20055071 | S13: 261000 | T13: 201700 | U13: 5344994 | V13: 2679500 | W13: 1616964 | X13: 202899600 | Y13: 1550398053 | Z13: 998000 | AA13: 1054400 | AB13: 5200000 | AC13: 31320000 | AD13: 127507010 | AE13: 4762300 | AF13: 3620600 | AI13: 101373200
A14: 1972 | B14: 25249100 | C14: 11415749 | D14: 86017404 | E14: 59481894 | F14: 58863862 | G14: 11614471 | H14: 25310411 | I14: 2569900 | J14: 1879000 | K14: 85370600 | L14: 16319300 | M14: 16450300 | N14: 1289994563 | O14: 404787077 | P14: 84220993 | R14: 20797891 | S14: 236700 | T14: 153000 | U14: 7084894 | V14: 2862400 | W14: 2048000 | X14: 199984300 | Y14: 1564222347 | Z14: 867900 | AA14: 893900 | AB14: 6664900 | AC14: 34278000 | AD14: 136674800 | AE14: 4824300 | AF14: 3438900 | AI14: 107172600
A15: 1973 | B15: 27118690 | C15: 13366367 | D15: 99258308 | E15: 66219869 | F15: 64206662 | G15: 14431912 | H15: 27506200 | I15: 3065000 | J15: 2434000 | K15: 101173300 | L15: 17977400 | M15: 18491100 | N15: 1359410631 | O15: 413430143 | P15: 91884567 | R15: 21172785 | S15: 269850 | T15: 179200 | U15: 10260694 | V15: 3415200 | W15: 2571400 | X15: 202944300 | Y15: 1565001717 | Z15: 1409400 | AA15: 1108800 | AB15: 9313900 | AC15: 38660000 | AD15: 147362100 | AE15: 5271800 | AF15: 3699700 | AI15: 113399600
A16: 1974 | B16: 29183658 | C16: 11563455 | D16: 96761316 | E16: 58104294 | F16: 55323858 | G16: 12193554 | H16: 29998783 | I16: 3385500 | J16: 3422735 | K16: 94260723 | L16: 18825400 | M16: 19141500 | N16: 1350684331 | O16: 398128315 | P16: 84554139 | R16: 21996391 | S16: 271050 | T16: 234700 | U16: 11497694 | V16: 3633100 | W16: 3585712 | X16: 200500300 | Y16: 1584875554 | Z16: 1544800 | AA16: 1022800 | AB16: 10761500 | AC16: 39313000 | AD16: 149506908 | AE16: 5911300 | AF16: 4308100 | AH16: 7700 | AI16: 116651400
A17: 1975 | B17: 23169801 | C17: 11366949 | D17: 82755100 | E17: 47791724 | F17: 47097372 | G17: 11147843 | H17: 22980200 | I17: 3575900 | J17: 2499223 | K17: 85130950 | L17: 14677700 | M17: 15058000 | N17: 1294123107 | O17: 381849452 | P17: 81011448 | R17: 22382885 | S17: 266150 | T17: 237000 | U17: 10025594 | V17: 3161400 | W17: 2683121 | X17: 206013300 | Y17: 1591627605 | Z17: 1417700 | AA17: 801400 | AB17: 10005400 | AC17: 35074000 | AD17: 127027725 | AE17: 4387000 | AF17: 6700500 | AH17: 6400 | AI17: 101784073
A18: 1976 | B18: 26712518 | C18: 13281455 | D18: 93251518 | E18: 60194214 | F18: 61188396 | G18: 13158582 | H18: 26977300 | I18: 4254575 | J18: 3628765 | K18: 97667221 | L18: 16537747 | M18: 16905372 | N18: 1369618723 | O18: 406905862 | P18: 91795559 | R18: 23010036 | S18: 274240 | T18: 241620 | U18: 11525994 | V18: 3753658 | W18: 3692896 | X18: 205705300 | Y18: 1614684617 | Z18: 1275500 | AA18: 539400 | AB18: 11816300 | AC18: 40479000 | AD18: 146298208 | AE18: 4233510 | AF18: 6094240 | AH18: 7300 | AI18: 111034200
A19: 1977 | B19: 28014824 | C19: 13676597 | D19: 96448466 | E19: 65975004 | F19: 64741889 | G19: 13078089 | H19: 28144070 | I19: 4285085 | J19: 3855448 | K19: 97814090 | L19: 16617006 | M19: 17065540 | N19: 1378423323 | O19: 417002963 | P19: 97424509 | R19: 23590525 | S19: 290693 | T19: 254093 | U19: 16531694 | V19: 3181644 | W19: 3937354 | X19: 203597400 | Y19: 1622780443 | Z19: 1336341 | AA19: 794426 | AB19: 14018003 | AC19: 43082000 | AD19: 151146000 | AE19: 4215981 | AF19: 5337100 | AH19: 7300 | AI19: 112525800
A20: 1978 | B20: 30474660 | C20: 14877904 | D20: 98356308 | E20: 69760499 | F20: 69028670 | G20: 14267240 | H20: 30040550 | I20: 3673400 | J20: 4028947 | K20: 98446500 | L20: 18554300 | M20: 19020700 | N20: 1421901415 | O20: 426150225 | P20: 100231201 | R20: 24389109 | S20: 286300 | T20: 232700 | U20: 15249094 | V20: 2718900 | W20: 4483406 | X20: 201138400 | Y20: 1632902929 | Z20: 1050800 | AA20: 379000 | AB20: 13201100 | AC20: 45126000 | AD20: 158933700 | AE20: 4565300 | AF20: 4625900 | AH20: 7300 | AI20: 118226300
A21: 1979 | B21: 32181700 | C21: 15349800 | D21: 103160712 | E21: 74485730 | F21: 73128721 | G21: 15080076 | H21: 33139000 | I21: 3310300 | J21: 4973744 | K21: 99761208 | L21: 19944700 | M21: 20166400 | N21: 1457965423 | O21: 428491374 | P21: 101406801 | R21: 24976997 | S21: 305200 | T21: 292700 | U21: 17343794 | V21: 2923000 | W21: 5266934 | X21: 199497100 | Y21: 1662009854 | Z21: 1077500 | AA21: 477000 | AB21: 14790600 | AC21: 47152000 | AD21: 167801808 | AE21: 4383900 | AF21: 4273400 | AH21: 7700 | AI21: 123148100
A22: 1980 | B22: 33809900 | C22: 14893700 | D22: 95400712 | E22: 71528570 | F22: 70144759 | G22: 13884101 | H22: 34933100 | I22: 3526200 | J22: 5528185 | K22: 93313500 | L22: 20558200 | M22: 21181900 | N22: 1446712209 | O22: 420867512 | P22: 96891792 | R22: 25896079 | S22: 342300 | T22: 374800 | U22: 19346994 | V22: 3122500 | W22: 5683200 | X22: 202501270 | Y22: 1682302640 | Z22: 1058600 | AA22: 531600 | AB22: 17469400 | AC22: 50540000 | AD22: 169316596 | AE22: 4485900 | AF22: 4322400 | AH22: 7300 | AI22: 125679208
A23: 1981 | B23: 34240700 | C23: 15348600 | D23: 84655500 | E23: 64609905 | F23: 63571876 | G23: 14880361 | H23: 35213900 | I23: 3659100 | J23: 5308777 | K23: 79046150 | L23: 19471100 | M23: 20051400 | N23: 1412402938 | O23: 402783969 | P23: 96184739 | R23: 26496268 | S23: 320200 | T23: 323300 | U23: 16641594 | V23: 3301000 | W23: 5338856 | X23: 204920849 | Y23: 1704050800 | Z23: 611900 | AA23: 301000 | AB23: 15629200 | AC23: 51417000 | AD23: 169118143 | AE23: 4463700 | AF23: 3889100 | AH23: 6400 | AI23: 125363516
A24: 1982 | B24: 33870400 | C24: 14147800 | D24: 81456800 | E24: 65402918 | F24: 64299850 | G24: 13661061 | H24: 33490900 | I24: 3510100 | J24: 5240860 | K24: 79539004 | L24: 18196300 | M24: 18530900 | N24: 1372497942 | O24: 394435693 | P24: 91249724 | R24: 27212732 | S24: 407000 | T24: 335200 | U24: 14448394 | V24: 3530500 | W24: 5411093 | X24: 209030103 | Y24: 1744685315 | Z24: 716400 | AA24: 380400 | AB24: 13942700 | AC24: 51831000 | AD24: 166246512 | AE24: 3833900 | AF24: 3641300 | AH24: 6300 | AI24: 119535708
A25: 1983 | B25: 35686700 | C25: 15351530 | D25: 86277200 | E25: 72801489 | F25: 72790844 | G25: 14960905 | H25: 36215298 | I25: 3481800 | J25: 6817205 | K25: 81645696 | L25: 20508300 | M25: 21049400 | N25: 1455937099 | O25: 417295813 | P25: 101289698 | R25: 28158498 | S25: 420900 | T25: 378800 | U25: 14918594 | V25: 3672800 | W25: 6115374 | X25: 211827876 | Y25: 1746986309 | Z25: 1021000 | AA25: 393900 | AB25: 13817200 | AC25: 55298900 | AD25: 176427087 | AE25: 3809900 | AF25: 2999800 | AH25: 6300000 | AI25: 127076708
A26: 1984 | B26: 39340150 | C26: 16389730 | D26: 87171100 | E26: 74987014 | F26: 74596820 | G26: 16323505 | H26: 39568200 | I26: 3693000 | J26: 7572500 | K26: 83063100 | L26: 21420600 | M26: 21529200 | N26: 1521429471 | O26: 426163218 | P26: 104905308 | R26: 28971134 | S26: 471600 | T26: 372200 | U26: 16199294 | V26: 3728400 | W26: 7414441 | X26: 219379116 | Y26: 1767329663 | Z26: 1095300 | AA26: 418200 | AB26: 14710100 | AC26: 59977100 | AD26: 189058265 | AE26: 3911500 | AF26: 2739000 | AH26: 6600000 | AI26: 135077808
A27: 1985 | B27: 40367115 | C27: 17551766 | D27: 89902500 | E27: 76593289 | F27: 73978653 | G27: 17321918 | H27: 40804800 | I27: 3674600 | J27: 8530190 | K27: 86681776 | L27: 21631800 | M27: 21776900 | N27: 1523890091 | O27: 432774687 | P27: 108226150 | R27: 29701375 | S27: 509600 | T27: 299800 | U27: 15596394 | V27: 3741400 | W27: 7573286 | X27: 223394308 | Y27: 1771469304 | Z27: 1027500 | AA27: 299100 | AB27: 14630600 | AC27: 61058000 | AD27: 192052055 | AE27: 4323600 | AF27: 2649900 | AH27: 6600000 | AI27: 134318500
A28: 1986 | B28: 43701163 | C28: 19376186 | D28: 90016073 | E28: 77685752 | F28: 75342140 | G28: 18877155 | H28: 43271683 | I28: 4094000 | J28: 8280751 | K28: 86419139 | L28: 23237915 | M28: 23316136 | N28: 1592833549 | O28: 447353843 | P28: 115088923 | R28: 30515355 | S28: 490700 | T28: 291000 | U28: 17264494 | V28: 4085300 | W28: 8778457 | X28: 228047707 | Y28: 1780537886 | Z28: 923200 | AA28: 321600 | AB28: 15577913 | AC28: 65607008 | AD28: 202361443 | AE28: 4315400 | AF28: 2265500 | AH28: 6300000 | AI28: 140146008
A29: 1987 | B29: 47419068 | C29: 22166122 | D29: 99042276 | E29: 82676241 | F29: 81100240 | G29: 22268527 | H29: 46938335 | I29: 3959500 | J29: 8803416 | K29: 95450398 | L29: 25044034 | M29: 24638191 | N29: 1653670149 | O29: 465614781 | P29: 121230988 | R29: 31240272 | S29: 493700 | T29: 283300 | U29: 18462894 | V29: 4457900 | W29: 9823373 | X29: 230685818 | Y29: 1775438121 | Z29: 869500 | AA29: 410000 | AB29: 17700590 | AC29: 69965000 | AD29: 213700010 | AE29: 5002800 | AF29: 2244200 | AH29: 6902000 | AI29: 146496116
A30: 1988 | B30: 50279345 | C30: 24929002 | D30: 100238153 | E30: 83855158 | F30: 85869445 | G30: 24418747 | H30: 50842028 | I30: 3112600 | J30: 12973709 | K30: 99188705 | L30: 25624461 | M30: 25974508 | N30: 1673623822 | O30: 470499077 | P30: 127316558 | R30: 32231812 | S30: 429200 | T30: 293000 | U30: 21542794 | V30: 3844000 | W30: 11174308 | X30: 230031368 | Y30: 1792454281 | Z30: 890000 | AA30: 368600 | AB30: 22918540 | AC30: 76148008 | AD30: 226589428 | AE30: 4867000 | AF30: 1748900 | AH30: 6910000 | AI30: 151444908
A31: 1989 | B31: 53467349 | C31: 27356249 | D31: 97883813 | E31: 89327912 | F31: 85062218 | G31: 27607387 | H31: 52131595 | I31: 3649700 | J31: 11418966 | K31: 97663706 | L31: 26020220 | M31: 26135974 | N31: 1703078915 | O31: 469481122 | P31: 129233450 | R31: 29177371 | S31: 575600 | T31: 419600 | U31: 18792394 | V31: 4175200 | W31: 12485090 | X31: 232737335 | Y31: 1801563455 | Z31: 994700 | AA31: 378400 | AB31: 25435645 | AC31: 82018808 | AD31: 232199918 | AE31: 5041800 | AF31: 1896800 | AH31: 7430000 | AI31: 156083100
A32: 1990 | B32: 55639787 | C32: 28472710 | D32: 82591148 | E32: 84471461 | F32: 78148505 | G32: 27874463 | H32: 55566815 | I32: 3368200 | J32: 13328787 | K32: 83389972 | L32: 25189577 | M32: 24936805 | N32: 1709503466 | O32: 463008817 | P32: 123777435 | R32: 28609785 | S32: 606023 | T32: 359500 | U32: 20059294 | V32: 3404900 | W32: 13017658 | X32: 230401237 | Y32: 1833083000 | Z32: 838400 | AA32: 489800 | AB32: 23645467 | AC32: 84253078 | AD32: 239353243 | AH32: 7503000 | AI32: 154798200
A33: 1991 | B33: 57203617 | C33: 28242649 | D33: 84311149 | E33: 77504791 | F33: 75544654 | G33: 27335148 | H33: 58535800 | I33: 4343300 | J33: 12550920 | K33: 90120965 | L33: 26282433 | M33: 26575605 | N33: 1569184068 | O33: 418240068 | P33: 120470727 | R33: 29742156 | S33: 461186 | T33: 429400 | U33: 22368094 | V33: 3767600 | W33: 14262725 | X33: 221466442 | Y33: 1869868731 | Z33: 1005200 | AA33: 583300 | AB33: 26088567 | AC33: 89436908 | AD33: 243079992 | AH33: 23257000 | AI33: 155178233
A34: 1992 | B34: 61839530 | C34: 30996491 | D34: 83587651 | E34: 84047245 | F34: 82858083 | G34: 30550933 | H34: 62077411 | I34: 4900776 | J34: 12740998 | K34: 86140206 | L34: 28168959 | M34: 29152364 | N34: 1507084038 | O34: 403259529 | P34: 124056908 | R34: 29308573 | S34: 671207 | T34: 600570 | U34: 22276943 | V34: 4511272 | W34: 14800474 | X34: 180503218 | Y34: 1841461249 | Z34: 1334361 | AA34: 1198340 | AB34: 25000980 | AC34: 92935648 | AD34: 246614955 | AH34: 49853500 | AI34: 152845822
A35: 1993 | B35: 63312548 | C35: 33801699 | D35: 76246904 | E35: 88529866 | F35: 88135174 | G35: 32082087 | H35: 64788544 | I35: 4999547 | J35: 11960657 | K35: 72920758 | L35: 28500550 | M35: 29601542 | N35: 1486064913 | O35: 394458052 | P35: 127660150 | R35: 29959604 | S35: 638993 | T35: 599416 | U35: 23049877 | V35: 4507447 | W35: 13418898 | X35: 172336088 | Y35: 1809956198 | Z35: 1752893 | AA35: 1709382 | AB35: 24892243 | AC35: 97073200 | AD35: 252361075 | AH35: 63985500 | AI35: 151208675
A36: 1994 | B36: 69620154 | C36: 36436287 | D36: 87943592 | E36: 97492853 | F36: 92437429 | G36: 35434683 | H36: 72229647 | I36: 5535113 | J36: 15346723 | K36: 77838476 | L36: 31051260 | M36: 31654074 | N36: 1486410296 | O36: 395896837 | P36: 130520208 | R36: 35084101 | S36: 626815 | T36: 620640 | U36: 27094298 | V36: 4981790 | W36: 16550711 | X36: 151789660 | Y36: 1802119716 | Z36: 1434302 | AA36: 2231208 | AB36: 28746776 | AC36: 107703100 | AD36: 268784434 | AH36: 69807500 | AI36: 161910768
A37: 1995 | B37: 69677303 | C37: 39674176 | D37: 94932145 | E37: 95986969 | F37: 96902431 | G37: 38383997 | H37: 74952512 | I37: 5102858 | J37: 16522775 | K37: 88724196 | L37: 31942439 | M37: 33582369 | N37: 1527628044 | O37: 390752421 | P37: 141210382 | R37: 35743279 | S37: 688946 | T37: 624415 | U37: 30821647 | V37: 4742578 | W37: 18574918 | X37: 152932762 | Y37: 1809403744 | Z37: 1123643 | AA37: 2090386 | AB37: 34035807 | AC37: 114411600 | AD37: 282382193 | AH37: 79014300 | AI37: 161571317
A38: 1996 | B38: 74580628 | C38: 43162282 | D38: 82900075 | E38: 97284615 | F38: 96913561 | G38: 41590766 | H38: 76110147 | I38: 6307251 | J38: 15308943 | K38: 77987647 | L38: 32447804 | M38: 33733566 | N38: 1509699422 | O38: 386742898 | P38: 141573210 | R38: 35488284 | S38: 704372 | T38: 733648 | U38: 30357778 | V38: 4710363 | W38: 17705694 | X38: 150128091 | Y38: 1796500652 | Z38: 1493077 | AA38: 2435120 | AB38: 31267097 | AC38: 117212600 | AD38: 284467382 | AH38: 73869800 | AI38: 156441635
A39: 1997 | B39: 85728959 | C39: 46689960 | D39: 91242602 | E39: 105371028 | F39: 99318426 | G39: 45488822 | H39: 86658456 | I39: 5335388 | J39: 17317267 | K39: 84037275 | L39: 34268710 | M39: 34944663 | N39: 1561592418 | O39: 393750973 | P39: 152391315 | R39: 34740562 | S39: 759949 | T39: 675821 | U39: 30729290 | V39: 4875540 | W39: 18698613 | X39: 171218962 | Y39: 1816477564 | Z39: 1317297 | AA39: 3726571 | AB39: 32262338 | AC39: 120804400 | AD39: 301497552 | AH39: 89938600 | AI39: 162503657
A40: 1998 | B40: 87216902 | C40: 47241641 | D40: 91605786 | E40: 101940955 | F40: 98275263 | G40: 45960320 | H40: 89707713 | I40: 8727888 | J40: 18614633 | K40: 85875593 | L40: 34820237 | M40: 35005113 | N40: 1541566403 | O40: 378443601 | P40: 151452236 | R40: 36007384 | S40: 884492 | T40: 625520 | U40: 31832694 | V40: 6055760 | W40: 21340462 | X40: 130467168 | Y40: 1810515711 | Z40: 1677155 | AA40: 4564103 | AB40: 36291762 | AC40: 123746458 | AD40: 302056942 | AG40: 196654913 | AH40: 89986448 | AI40: 159756665
A41: 1999 | B41: 95109842 | C41: 48819689 | D41: 105636024 | E41: 108996420 | F41: 106319434 | G41: 50367631 | H41: 93272281 | I41: 6850606 | J41: 20908840 | K41: 98809828 | L41: 36594245 | M41: 37098364 | N41: 1588571440 | O41: 387365480 | P41: 164909976 | R41: 37102579 | S41: 808780 | T41: 671109 | U41: 30321961 | V41: 6486833 | W41: 23457818 | X41: 133551154 | Y41: 1815006045 | Z41: 1761127 | AA41: 3436827 | AB41: 35970530 | AC41: 131454968 | AD41: 315929525 | AG41: 223114320 | AH41: 102769048 | AI41: 163433779
A42: 2000 | B42: 98478247 | C42: 52602395 | D42: 115265724 | E42: 115769126 | F42: 114197916 | G42: 55235333 | H42: 98103540 | I42: 6953883 | J42: 24650544 | K42: 114401729 | L42: 37781234 | M42: 38315217 | N42: 1687166387 | O42: 384036891 | P42: 178163524 | R42: 36720927 | S42: 930790 | T42: 907697 | U42: 34400740 | V42: 6881548 | W42: 27183606 | X42: 135140448 | Y42: 1795244627 | Z42: 2085290 | AA42: 3627857 | AB42: 40516546 | AC42: 143417974 | AD42: 324606103 | AG42: 232480235 | AH42: 97489562 | AI42: 171114970
A43: 2001 | B43: 94965214 | C43: 56446767 | D43: 115624513 | E43: 112765477 | F43: 113374086 | G43: 56659653 | H43: 93501819 | I43: 7272582 | J43: 25312027 | K43: 110836724 | L43: 39138380 | M43: 38705045 | N43: 1608348593 | O43: 379433546 | P43: 178067567 | R43: 37889920 | S43: 1010191 | T43: 1021516 | U43: 33412331 | V43: 7325361 | W43: 29449890 | X43: 134743172 | Y43: 1802548663 | Z43: 2065733 | AA43: 3881896 | AB43: 37592619 | AC43: 143735183 | AD43: 318819699 | AG43: 226609389 | AH43: 96599429 | AI43: 163993414
A44: 2002 | B44: 96866117 | C44: 61585516 | D44: 117999387 | E44: 117788296 | F44: 120837030 | G44: 62386768 | H44: 97791551 | I44: 7576483 | J44: 27011733 | K44: 116511846 | L44: 40344279 | M44: 40811967 | N44: 1648754932 | O44: 392430390 | P44: 195022241 | R44: 40015839 | S44: 1022834 | T44: 1041534 | U44: 33241858 | V44: 7792703 | W44: 29354350 | X44: 133823260 | Y44: 1820643807 | Z44: 2543406 | AA44: 3715591 | AB44: 38003233 | AC44: 151299569 | AD44: 329504514 | AG44: 238172613 | AH44: 102425780 | AI44: 167163548
A45: 2003 | B45: 103376213 | C45: 61769738 | D45: 121106021 | E45: 121247120 | F45: 126159335 | G45: 65793921 | H45: 102811657 | I45: 8468659 | J45: 31976249 | K45: 115281147 | L45: 40796737 | M45: 41774486 | N45: 1690197652 | O45: 399690000 | P45: 218786933 | R45: 42386668 | S45: 1189067 | T45: 1257219 | U45: 34439642 | V45: 7815289 | W45: 33254713 | X45: 139116184 | Y45: 1831834645 | Z45: 3284780 | AA45: 4356566 | AB45: 38253346 | AC45: 157214169 | AD45: 338785165 | AG45: 258954571 | AH45: 112967496 | AI45: 169908698
A46: 2004 | B46: 109879987 | C46: 73070706 | D46: 124488682 | E46: 135036278 | F46: 135935624 | G46: 74656646 | H46: 111204480 | I46: 9881675 | J46: 36763679 | K46: 117525126 | L46: 43991465 | M46: 42812856 | N46: 1746194169 | O46: 425403462 | P46: 239260925 | R46: 43080717 | S46: 1234606 | T46: 1415631 | U46: 38098313 | V46: 10805619 | W46: 36716844 | X46: 138182232 | Y46: 1836154971 | Z46: 3246511 | AA46: 3965512 | AB46: 41957830 | AC46: 165036722 | AD46: 355698469 | AG46: 276493077 | AH46: 128083002 | AI46: 174648265
A47: 2005 | B47: 112119812 | C47: 76945324 | D47: 133238924.2 | E47: 135832075 | F47: 137965538 | G47: 76133058 | H47: 113246612 | I47: 12599209 | J47: 41668030 | K47: 129332543 | L47: 45088947.7 | M47: 43074703 | N47: 1800570769 | O47: 437813366 | P47: 252004373 | R47: 43910867 | S47: 1446851 | T47: 1510992 | U47: 40461737 | V47: 13566226 | W47: 38300420 | X47: 140296727 | Y47: 1825331097 | Z47: 3411700.7 | AA47: 4328232.2 | AB47: 45031605 | AC47: 173969399 | AD47: 365180662 | AG47: 274545437 | AH47: 163476449 | AI47: 173849097
A48: 2006 | B48: 115041854 | C48: 81168236 | D48: 131513612 | E48: 134121610 | F48: 136834817 | G48: 79758107 | H48: 114953821 | I48: 13561999 | J48: 45380411 | K48: 130334609 | L48: 46364611.24 | M48: 46367299 | N48: 1750333145 | O48: 447464633 | P48: 266675003 | R48: 44771801 | S48: 1490710 | T48: 1761645 | U48: 39602488 | V48: 13639067 | W48: 45236053 | X48: 140829183 | Y48: 1834805586 | Z48: 3955672 | AA48: 4545139 | AB48: 45119382 | AC48: 188018843 | AD48: 381783753 | AG48: 278951866 | AH48: 170073680 | AI48: 175614862
A49: 2007 | B49: 119001221 | C49: 82954865 | D49: 138448750 | E49: 134138329 | F49: 133010180 | G49: 79552554 | H49: 118427208 | I49: 15515256 | J49: 51382434 | K49: 133483975 | L49: 46291506 | M49: 48064168 | N49: 1778957557 | O49: 434303500 | P49: 281682240 | R49: 46837187 | S49: 1547099 | T49: 1557711 | U49: 44037120 | V49: 17485077 | W49: 50239078 | X49: 143911916 | Y49: 1841194068 | Z49: 3526396 | AA49: 4717593 | AB49: 49876977 | AC49: 197373687 | AD49: 392504293 | AG49: 277396894 | AH49: 164845208 | AI49: 180969754
A50: 2008 | B50: 114569161 | C50: 71590866 | D50: 119124414 | E50: 111801070 | F50: 117990079 | G50: 69367884 | H50: 113926437 | I50: 16010125 | J50: 52929055 | K50: 113809661 | L50: 47241059 | M50: 48709241 | N50: 1656413205 | O50: 387145719 | P50: 268499243 | R50: 46933875 | S50: 1826485 | T50: 1736752 | U50: 45669576 | V50: 19696954 | W50: 51484522 | X50: 147673093 | Y50: 1848396612 | Z50: 3633230 | AA50: 4860068 | AB50: 53957581 | AC50: 203372962 | AD50: 390240082 | AG50: 268709640 | AH50: 189252499 | AI50: 177284468
A51: 2009 | B51: 101127523 | C51: 60928741 | D51: 90123305 | E51: 94549059 | F51: 100969141 | G51: 56511662 | H51: 103177764.5 | I51: 17456511 | J51: 56615432 | K51: 91600462 | L51: 46147108.3 | M51: 48493609 | N51: 1556789887 | O51: 345009795 | P51: 263797680 | R51: 45520176 | S51: 1939472.2 | T51: 1910425 | U51: 43164270 | V51: 18745261 | W51: 53245280.06 | X51: 155389494 | Y51: 1840208705 | Z51: 4815548 | AA51: 6228336 | AB51: 43499858.46 | AC51: 204532820 | AD51: 370969384 | AG51: 245902388 | AH51: 189043019 | AI51: 160349084
A52: 2010 | B52: 108282667 | C52: 66842113.4 | D52: 110899963 | E52: 108891799 | F52: 112502419 | G52: 64709598.18 | H52: 109716092.4 | I52: 20750671 | J52: 55009957 | K52: 107314419 | L52: 49007098.1 | M52: 51267969 | N52: 1723129396 | O52: 375102239 | P52: 283547668 | R52: 46464359 | S52: 2162427 | T52: 1954004 | U52: 54695434.7 | V52: 22981698 | W52: 53151632.38 | X52: 167706626 | Y52: 1864002026 | Z52: 5162314.5 | AA52: 6863820 | AB52: 55434731.88 | AC52: 212733257 | AD52: 392378111 | AG52: 265385230 | AH52: 209249945 | AI52: 170828720
A53: 2011 | B53: 108919413.5 | C53: 70183438.2 | D53: 122616592 | E53: 115945161 | F53: 118644152 | G53: 68707280.31 | H53: 109983401.7 | I53: 17158342 | J53: 59805985 | K53: 118176334 | L53: 51400210.3 | M53: 53619140 | N53: 1799800097 | O53: 388230953 | P53: 301450899 | R53: 47664518 | S53: 2313241 | T53: 2085079 | U53: 58347430.06 | V53: 14262708 | W53: 56632711 | X53: 175927642 | Y53: 1870970098 | Z53: 5940014.17 | AA53: 8055238 | AB53: 62940449.06 | AC53: 216507549 | AD53: 400088926 | AG53: 271377216 | AH53: 211906311 | AI53: 173946182
A54: 2012 | B54: 106238584.8 | C54: 72855733.14 | D54: 114238468 | E54: 113497956 | F54: 119289933 | G54: 70730566.31 | H54: 108126769.8 | I54: 6632210 | J54: 59405815 | K54: 110923870 | L54: 54903067.35 | M54: 55279841.65 | N54: 1797678997 | O54: 403710423 | P54: 313705348 | R54: 49166674 | S54: 2364346.25 | T54: 2024338 | U54: 55943494.63 | V54: 13570509 | W54: 58810366 | X54: 177985389 | Y54: 1887396983 | Z54: 5957838.16 | AA54: 8195270 | AB54: 58202380.34 | AC54: 218945259 | AD54: 398893819 | AG54: 279918770 | AH54: 217394155 | AI54: 171617872
A55: 2013 | B55: 107269676 | C55: 75025570.14 | D55: 128260393.1 | E55: 122255066 | F55: 125770404 | G55: 72826013.4 | H55: 110515222.1 | I55: 8251254.91 | J55: 56150189 | K55: 126088821 | L55: 56116025.94 | M55: 56533654.05 | N55: 1839351118 | O55: 420139431 | P55: 337578554 | R55: 50791555 | S55: 2460364.26 | T55: 1987128 | U55: 61136642.2 | V55: 11667491.27 | W55: 56861736.12 | X55: 155290530 | Y55: 1897823383 | Z55: 6585883.58 | AA55: 8603920 | AB55: 58347659.51 | AC55: 220125847 | AD55: 396575104 | AG55: 242900755 | AH55: 233933694 | AI55: 172410158
A56: 2014 | B56: 109866453 | C56: 78290211.95 | D56: 134877200.2 | E56: 128713655 | F56: 133678403 | G56: 75774576.4 | H56: 112525997.7 | I56: 9518398.45 | J56: 55688982 | K56: 132194273 | L56: 57295042.65 | M56: 58108406.3 | N56: 1862018768 | O56: 433449184 | P56: 342451328 | R56: 51580932 | S56: 2596524.26 | T56: 2252425.1 | U56: 62227497 | V56: 12565574.92 | W56: 55810138.12 | X56: 167501790 | Y56: 1900374577 | Z56: 6763723 | AA56: 9105194 | AB56: 62419674.77 | AC56: 227779471 | AD56: 403699716 | AG56: 251266380 | AH56: 232494703 | AI56: 176181139
A57: 2015 | B57: 108757656 | C57: 80420742.19 | D57: 128153388 | E57: 133034618 | F57: 137480481 | G57: 77623132.27 | H57: 112220334 | I57: 9176059 | J57: 57266044 | K57: 123567181 | L57: 58825180 | M57: 58809529 | N57: 1853897832 | O57: 446346312 | P57: 344606085 | R57: 51202189 | S57: 2550476.29 | T57: 2344548.1 | U57: 62375226.03 | V57: 11829522.92 | W57: 57603012 | X57: 145957277 | Y57: 1901265439 | Z57: 6130562 | AA57: 9575513 | AB57: 63829091 | AC57: 228604481 | AD57: 406684484 | AG57: 263112219 | AH57: 230503693 | AI57: 176854398
A58: 2016 | B58: 110864219 | C58: 85248272 | D58: 134017930 | E58: 144157527 | F58: 147679476 | G58: 82257464 | H58: 113120086.7 | I58: 7794673 | J58: 58153508 | K58: 126190319 | L58: 62037102 | M58: 62206682 | N58: 1922731838 | O58: 480698231 | P58: 355617556 | R58: 50757420 | S58: 2482840 | T58: 2279980 | U58: 65377409.03 | V58: 9200388.82 | W58: 58433228 | X58: 149549811 | Y58: 1927783200 | Z58: 5991772 | AA58: 9411103 | AB58: 64981735 | AC58: 230918306 | AD58: 409155937 | AG58: 276569893 | AH58: 223795349 | AI58: 181553773
A59: 2017 | B59: 115648637 | C59: 90713348 | D59: 132049464 | E59: 151684603 | F59: 155570294 | G59: 89780469.27 | H59: 115829153 | I59: 6418031 | J59: 57230993 | K59: 128378355 | L59: 64695394 | M59: 64078900 | N59: 1951902608 | O59: 500667025 | P59: 357790205 | R59: 51596795 | S59: 2570866 | T59: 2482305 | U59: 58324661.03 | V59: 7498337.82 | W59: 58796963.12 | X59: 150272831 | Y59: 1931111419 | Z59: 5084778 | AA59: 8474609 | AB59: 68418753 | AC59: 234444359 | AD59: 415184177 | AG59: 267505793 | AH59: 225898654 | AI59: 183669744
A60: 2018 | B60: 116638166 | C60: 93556898 | D60: 144054612 | E60: 152806907 | F60: 160486937 | G60: 92906258.27 | H60: 117341105 | I60: 5621996 | J60: 56225864 | K60: 137882006 | L60: 66665535 | M60: 65752483 | N60: 2057732182 | O60: 500641345 | P60: 358520681 | R60: 53158590 | S60: 3148679 | T60: 2937995 | U60: 62388003.03 | V60: 7457533.82 | W60: 55846489.12 | X60: 159894106 | Y60: 1946047851 | Z60: 5626394 | AA60: 7841464 | AB60: 75134128 | AC60: 232512269 | AD60: 409183981 | AG60: 275483927 | AH60: 239884368 | AI60: 191784957
A61: 2019 | B61: 111356914 | C61: 88339469 | D61: 140462119 | E61: 153603818 | F61: 158879600 | G61: 89781342 | H61: 113839337 | I61: 5992433 | J61: 49292408 | K61: 135635591 | L61: 66915351 | M61: 68299303 | N61: 1985982613 | O61: 481932398 | P61: 366293759 | R61: 53449283 | S61: 3003931 | T61: 2831933 | U61: 61785570 | V61: 8478105.82 | W61: 50492001.12 | X61: 159878016 | Y61: 1940263516 | Z61: 5581341 | AA61: 7583949 | AB61: 71610279 | AC61: 230937107 | AD61: 404955784 | AG61: 273283918 | AH61: 237883823 | AI61: 189473923
A62: 2020 | B62: 110822361 | C62: 88146621 | D62: 138274848 | E62: 144435622 | F62: 154856886 | G62: 91320412 | H62: 111587207 | I62: 5549060 | J62: 44906379 | K62: 136261790 | L62: 67724829 | M62: 68258794 | N62: 1983575816 | O62: 479969657 | P62: 364573951 | R62: 54104368 | S62: 2763211 | T62: 2796078 | U62: 54786601 | V62: 8532782.82 | W62: 45700774 | X62: 159066276 | Y62: 1926547955 | Z62: 4184028 | AA62: 6173050 | AB62: 63735496 | AC62: 228284686 | AD62: 400126216 | AG62: 262938213 | AH62: 235814387 | AI62: 188398517
A63: 2021 | B63: 114228958.9 | C63: 100492208.4 | D63: 142750568 | E63: 147008981 | F63: 156248939 | G63: 99873586.27 | H63: 115594143.1 | I63: 6669454.85 | J63: 47572855.06 | K63: 132111760 | L63: 67062099.76 | M63: 67179831.97 | N63: 2053899967 | O63: 493380636 | P63: 387930315 | R63: 55956439 | S63: 2969336.4 | T63: 2824261.57 | U63: 58687060.47 | V63: 9029537.61 | W63: 45985956.8 | X63: 162031995 | Y63: 1949860042 | Z63: 5657325.32 | AA63: 7745572.3 | AB63: 73316885.89 | AC63: 242330601 | AD63: 418403343 | AG63: 270299541 | AH63: 241620493 | AI63: 193823121
A64: 2022 | B64: 111481503.9 | C64: 94139440.57 | D64: 118580121 | E64: 137332783 | F64: 143104735 | G64: 92889427.2 | H64: 111383581.6 | I64: 6235389.01 | J64: 45660375.69 | K64: 108561428 | L64: 68180948.15 | M64: 69530584.15 | N64: 2016041202 | O64: 481256472 | P64: 375289236 | R64: 57229684 | S64: 3382180.97 | T64: 3161080.66 | U64: 61567515.27 | V64: 8358047.65 | W64: 43942727.76 | X64: 158239442 | Y64: 1967294351 | Z64: 5507179.75 | AA64: 7621190.6 | AB64: 76836622.94 | AC64: 239446937 | AD64: 414094326 | AG64: 268735237 | AH64: 240980673 | AI64: 195794184
A65: 2023
A66: 2024
A67: 2025
A68: 2026
A69: 2027
A70: 2028
A71: 2029
A72: 2030
